Workbook

Sheet 실행
A1: 월산천
A2: 구역 | B2: 시.군 | C2: 구.면 | D2: 동.리 | E2: 번지 | F2: 지목 | G2: 지적 | H2: 하천구역 | I2: 예정지 | J2: 폐천구역 | K2: 홍수관리구역 | L2: 주소 | M2: 성명 | N2: 구분1 | O2: 구분2 | P2: 하천명 | Q2: PNU | R2: 전필지면적(m2) | S2: 본번 | T2: 부번
A3: 좌안 | B3: 홍성군 | C3: 홍성읍 | D3: 옥암리 | E3: 916 | F3: 도 | G3: 1365 | I3: 36 | L3: 국(건설부) | M3: 국 | N3: 국 | P3: 01-02월산천 | Q3: 4480025025109160000 | R3: 250 | S3: 916 | T3: 0
A4: 좌안 | B4: 홍성군 | C4: 홍성읍 | D4: 옥암리 | E4: 917 | F4: 구 | G4: 1366 | I4: 6 | L4: 국(건설부) | M4: 국 | N4: 국 | P4: 01-02월산천 | Q4: 4480025025109170000 | R4: 1384 | S4: 917 | T4: 0
A5: 좌안 | B5: 홍성군 | C5: 홍성읍 | D5: 옥암리 | E5: 369-1 | F5: 전 | G5: 731 | I5: 24 | L5: 충청남도홍성군홍성읍월산로43번길85-15 | M5: 조상국 | N5: 사 | P5: 01-02월산천 | Q5: 4480025025103690001 | R5: 740 | S5: 369 | T5: 1
A6: 좌안 | B6: 홍성군 | C6: 홍성읍 | D6: 옥암리 | E6: 916-1 | F6: 도 | G6: 83 | I6: 24 | L6: 국(건설부) | M6: 국 | N6: 국 | P6: 01-02월산천 | Q6: 4480025025109160001 | R6: 87 | S6: 916 | T6: 1
A7: 좌안 | B7: 홍성군 | C7: 홍성읍 | D7: 월산리 | E7: 266 | F7: 임 | G7: 542 | I7: 262 | L7: 월산리265-2 | M7: 김명호 | N7: 사 | P7: 01-02월산천 | Q7: 4480025024102660000 | R7: 547 | S7: 266 | T7: 0
A8: 우안 | B8: 홍성군 | C8: 홍성읍 | D8: 월산리 | E8: 347 | F8: 답 | G8: 955 | I8: 37 | L8: 홍성군홍성읍월산리345-2 | M8: 이남순 | N8: 사 | P8: 01-02월산천 | Q8: 4480025024103470000 | R8: 964 | S8: 347 | T8: 0
A9: 우안 | B9: 홍성군 | C9: 홍성읍 | D9: 월산리 | E9: 350 | F9: 대 | G9: 790 | I9: 145 | L9: 월산리351-2 | M9: 김원호 | N9: 사 | P9: 01-02월산천 | Q9: 4480025024103500000 | R9: 802 | S9: 350 | T9: 0
A10: 우안 | B10: 홍성군 | C10: 홍성읍 | D10: 월산리 | E10: 362 | F10: 답 | G10: 1960 | I10: 61 | L10: 예산군고덕면석곡리105 | M10: 인정식 | N10: 사 | P10: 01-02월산천 | Q10: 4480025024103620000 | R10: 1963 | S10: 362 | T10: 0
A11: 우안 | B11: 홍성군 | C11: 홍성읍 | D11: 월산리 | E11: 398 | F11: 답 | G11: 1081 | I11: 66 | L11: 홍성군 홍성읍 월산리 395 | M11: 장현갑 | N11: 사 | P11: 01-02월산천 | Q11: 4480025024103980000 | R11: 1069 | S11: 398 | T11: 0
A12: 우안 | B12: 홍성군 | C12: 홍성읍 | D12: 월산리 | E12: 746 | F12: 전 | G12: 506 | I12: 50 | L12: 서울시양천구신정동311목동신시가지아파트1018-204 | M12: 최완순 | N12: 사 | P12: 01-02월산천 | Q12: 4480025024107460000 | R12: 504 | S12: 746 | T12: 0
A13: 좌안 | B13: 홍성군 | C13: 홍성읍 | D13: 월산리 | E13: 801 | F13: 도 | G13: 2190 | I13: 26 | L13: 국(건설교통부) | M13: 국 | N13: 국 | P13: 01-02월산천 | Q13: 4480025024108010000 | R13: 222 | S13: 801 | T13: 0
A14: 좌안 | B14: 홍성군 | C14: 홍성읍 | D14: 월산리 | E14: 802 | F14: 구 | G14: 17613 | I14: 171 | L14: 국(건설교통부) | M14: 국 | N14: 국 | P14: 01-02월산천 | Q14: 4480025024108020000 | R14: 11509 | S14: 802 | T14: 0
A15: 우안 | B15: 홍성군 | C15: 홍성읍 | D15: 월산리 | E15: 817 | F15: 구 | G15: 73 | I15: 20 | L15: 국(건설부) | M15: 국 | N15: 국 | P15: 01-02월산천 | Q15: 4480025024108170000 | R15: 77 | S15: 817 | T15: 0
A16: 좌안 | B16: 홍성군 | C16: 홍성읍 | D16: 월산리 | E16: 265-1 | F16: 대 | G16: 542 | I16: 9 | L16: 홍성군 홍성읍 월산리 415 | M16: 김명호 | N16: 사 | P16: 01-02월산천 | Q16: 4480025024102650001 | R16: 573 | S16: 265 | T16: 1
A17: 좌안 | B17: 홍성군 | C17: 홍성읍 | D17: 월산리 | E17: 265-2 | F17: 전 | G17: 810 | I17: 60 | L17: 홍성군 홍성읍 월산리 415 | M17: 김명호 | N17: 사 | P17: 01-02월산천 | Q17: 4480025024102650002 | R17: 806 | S17: 265 | T17: 2
A18: 좌안 | B18: 홍성군 | C18: 홍성읍 | D18: 월산리 | E18: 265-3 | F18: 전 | G18: 635 | I18: 13 | L18: 홍성군 홍성읍 월산리 415 | M18: 김명호 | N18: 사 | P18: 01-02월산천 | Q18: 4480025024102650003 | R18: 642 | S18: 265 | T18: 3
A19: 우안 | B19: 홍성군 | C19: 홍성읍 | D19: 월산리 | E19: 267-3 | F19: 답 | G19: 60 | I19: 5 | L19: 대전중구태평동551버드내마을아파트217동1502호 | M19: 이지은 | N19: 사 | P19: 01-02월산천 | Q19: 4480025024102670003 | R19: 62 | S19: 267 | T19: 3
A20: 우안 | B20: 홍성군 | C20: 홍성읍 | D20: 월산리 | E20: 267-5 | F20: 전 | G20: 722 | I20: 54 | L20: 충청남도홍성군홍성읍월산리267-2 | M20: 이학재 | N20: 사 | P20: 01-02월산천 | Q20: 4480025024102670005 | R20: 725 | S20: 267 | T20: 5
A21: 우안 | B21: 홍성군 | C21: 홍성읍 | D21: 월산리 | E21: 325-3 | F21: 도 | G21: 7997 | I21: 508 | L21: 홍성군 | M21: 국 | N21: 국 | P21: 01-02월산천 | Q21: 4480025024103250003 | R21: 4213 | S21: 325 | T21: 3
A22: 우안 | B22: 홍성군 | C22: 홍성읍 | D22: 월산리 | E22: 351-1 | F22: 대 | G22: 1290 | I22: 29 | L22: 홍성군 홍성읍 월산리 351-1 | M22: 사회복지법인좋은세상 | N22: 사 | P22: 01-02월산천 | Q22: 4480025024103510001 | R22: 988 | S22: 351 | T22: 1
A23: 우안 | B23: 홍성군 | C23: 홍성읍 | D23: 월산리 | E23: 359-1 | F23: 도 | G23: 96 | I23: 87 | L23: 홍성군 홍성읍 월산리 396 | M23: 김기웅 | N23: 사 | P23: 01-02월산천 | Q23: 4480025024103590001 | R23: 99 | S23: 359 | T23: 1
A24: 우안 | B24: 홍성군 | C24: 홍성읍 | D24: 월산리 | E24: 361-2 | F24: 답 | G24: 678 | I24: 58 | L24: 창원시가음정동391-12금성기숙사씨동401호 | M24: 조민철 | N24: 사 | P24: 01-02월산천 | Q24: 4480025024103610002 | R24: 685 | S24: 361 | T24: 2
A25: 좌안 | B25: 홍성군 | C25: 홍성읍 | D25: 월산리 | E25: 366-1 | F25: 전 | G25: 998 | I25: 8 | L25: 아산시탕정면호산리67 | M25: 김종곤 | N25: 사 | P25: 01-02월산천 | Q25: 4480025024103660001 | R25: 657 | S25: 366 | T25: 1
A26: 좌안 | B26: 홍성군 | C26: 홍성읍 | D26: 월산리 | E26: 401-1 | F26: 도 | G26: 97 | I26: 32 | L26: 홍성군 | M26: 국 | N26: 국 | P26: 01-02월산천 | Q26: 4480025024104010001 | R26: 97 | S26: 401 | T26: 1
A27: 우안 | B27: 홍성군 | C27: 홍성읍 | D27: 월산리 | E27: 748-2 | F27: 전 | G27: 598 | I27: 2 | L27: 서울시양천구신정동311목동신시가지아파트1018-204 | M27: 최완순 | N27: 사 | P27: 01-02월산천 | Q27: 4480025024107480002 | R27: 589 | S27: 748 | T27: 2
A28: 좌안 | B28: 홍성군 | C28: 홍성읍 | D28: 월산리 | E28: 801-1 | F28: 도 | G28: 429 | I28: 27 | L28: 국(건설교통부) | M28: 국 | N28: 국 | P28: 01-02월산천 | Q28: 4480025024108010001 | R28: 397 | S28: 801 | T28: 1
A33: 좌안 | B33: 홍성군 | C33: 홍성읍 | D33: 옥암리 | E33: 100-1 | F33: =VLOOKUP(Q33,토지대장!$A$2:$N$241777,8,FALSE) -> 답 | G33: =VLOOKUP(Q33,토지대장!$A$2:$N$241777,9,FALSE) -> 660 | I33: 286 | L33: =VLOOKUP(Q33,토지대장!$A$2:$N$241777,13,FALSE) -> 홍성군 | M33: =VLOOKUP(Q33,토지대장!$A$2:$N$241777,14,FALSE) -> 국 | P33: 01-03옥암천 | Q33: 4480025025106100001 | R33: 659 | S33: 100 | T33: 1
A34: 좌안 | B34: 홍성군 | C34: 홍성읍 | D34: 옥암리 | E34: 110-1 | F34: =VLOOKUP(Q34,토지대장!$A$2:$N$241777,8,FALSE) -> 답 | G34: =VLOOKUP(Q34,토지대장!$A$2:$N$241777,9,FALSE) -> 367 | I34: 135 | L34: =VLOOKUP(Q34,토지대장!$A$2:$N$241777,13,FALSE) -> 홍성군 | M34: =VLOOKUP(Q34,토지대장!$A$2:$N$241777,14,FALSE) -> 국 | P34: 01-03옥암천 | Q34: 4480025025106110001 | R34: 366 | S34: 110 | T34: 1
A35: 좌안 | B35: 홍성군 | C35: 홍성읍 | D35: 옥암리 | E35: 270-1 | F35: =VLOOKUP(Q35,토지대장!$A$2:$N$241777,8,FALSE) -> 답 | G35: =VLOOKUP(Q35,토지대장!$A$2:$N$241777,9,FALSE) -> 389 | I35: 66 | L35: =VLOOKUP(Q35,토지대장!$A$2:$N$241777,13,FALSE) -> 홍성군 | M35: =VLOOKUP(Q35,토지대장!$A$2:$N$241777,14,FALSE) -> 국 | P35: 01-03옥암천 | Q35: 4480025025108270001 | R35: 393 | S35: 270 | T35: 1
A36: 우안 | B36: 홍성군 | C36: 홍성읍 | D36: 옥암리 | E36: 364-2 | F36: 답 | G36: 296 | I36: 2 | L36: 국(재무부) | M36: 국 | P36: 01-03옥암천 | Q36: 4480025025103640002 | R36: 200 | S36: 364 | T36: 2
A37: 우안 | B37: 홍성군 | C37: 홍성읍 | D37: 옥암리 | E37: 364-3 | F37: =VLOOKUP(Q37,토지대장!$A$2:$N$241777,8,FALSE) -> 답 | G37: =VLOOKUP(Q37,토지대장!$A$2:$N$241777,9,FALSE) -> 224 | I37: 118 | L37: =VLOOKUP(Q37,토지대장!$A$2:$N$241777,13,FALSE) -> 국(재무부) | M37: =VLOOKUP(Q37,토지대장!$A$2:$N$241777,14,FALSE) -> 국 | P37: 01-03옥암천 | Q37: 4480025025103640003 | R37: 227 | S37: 364 | T37: 3
A38: 우안 | B38: 홍성군 | C38: 홍성읍 | D38: 옥암리 | E38: 487-2 | F38: =VLOOKUP(Q38,토지대장!$A$2:$N$241777,8,FALSE) -> 답 | G38: =VLOOKUP(Q38,토지대장!$A$2:$N$241777,9,FALSE) -> 947 | I38: 614 | L38: =VLOOKUP(Q38,토지대장!$A$2:$N$241777,13,FALSE) -> 홍성군 | M38: =VLOOKUP(Q38,토지대장!$A$2:$N$241777,14,FALSE) -> 국 | P38: 01-03옥암천 | Q38: 4480025025104870002 | R38: 956 | S38: 487 | T38: 2
A39: 우안 | B39: 홍성군 | C39: 홍성읍 | D39: 옥암리 | E39: 489-2 | F39: =VLOOKUP(Q39,토지대장!$A$2:$N$241777,8,FALSE) -> 답 | G39: =VLOOKUP(Q39,토지대장!$A$2:$N$241777,9,FALSE) -> 151 | I39: 79 | L39: =VLOOKUP(Q39,토지대장!$A$2:$N$241777,13,FALSE) -> 홍성군 | M39: =VLOOKUP(Q39,토지대장!$A$2:$N$241777,14,FALSE) -> 국 | P39: 01-03옥암천 | Q39: 4480025025104890002 | R39: 152 | S39: 489 | T39: 2
A40: 우안 | B40: 홍성군 | C40: 홍성읍 | D40: 옥암리 | E40: 490-1 | F40: 답 | G40: 4099 | I40: 1 | L40: 국(건설교통부) | M40: 국 | P40: 01-03옥암천 | Q40: 4480025025104900001 | R40: 4117 | S40: 490 | T40: 1
A41: 우안 | B41: 홍성군 | C41: 홍성읍 | D41: 옥암리 | E41: 490-3 | F41: =VLOOKUP(Q41,토지대장!$A$2:$N$241777,8,FALSE) -> 답 | G41: =VLOOKUP(Q41,토지대장!$A$2:$N$241777,9,FALSE) -> 330 | I41: 205 | L41: =VLOOKUP(Q41,토지대장!$A$2:$N$241777,13,FALSE) -> 홍성군 | M41: =VLOOKUP(Q41,토지대장!$A$2:$N$241777,14,FALSE) -> 국 | P41: 01-03옥암천 | Q41: 4480025025104900003 | R41: 335 | S41: 490 | T41: 3
A42: 우안 | B42: 홍성군 | C42: 홍성읍 | D42: 옥암리 | E42: 490-4 | F42: =VLOOKUP(Q42,토지대장!$A$2:$N$241777,8,FALSE) -> 답 | G42: =VLOOKUP(Q42,토지대장!$A$2:$N$241777,9,FALSE) -> 16 | I42: 10 | L42: =VLOOKUP(Q42,토지대장!$A$2:$N$241777,13,FALSE) -> 홍성군 | M42: =VLOOKUP(Q42,토지대장!$A$2:$N$241777,14,FALSE) -> 국 | P42: 01-03옥암천 | Q42: 4480025025104900004 | R42: 16 | S42: 490 | T42: 4
A43: 우안 | B43: 홍성군 | C43: 홍성읍 | D43: 옥암리 | E43: 492-4 | F43: =VLOOKUP(Q43,토지대장!$A$2:$N$241777,8,FALSE) -> 답 | G43: =VLOOKUP(Q43,토지대장!$A$2:$N$241777,9,FALSE) -> 228 | I43: 167 | L43: =VLOOKUP(Q43,토지대장!$A$2:$N$241777,13,FALSE) -> 홍성군 | M43: =VLOOKUP(Q43,토지대장!$A$2:$N$241777,14,FALSE) -> 국 | P43: 01-03옥암천 | Q43: 4480025025104920004 | R43: 229 | S43: 492 | T43: 4
A44: 우안 | B44: 홍성군 | C44: 홍성읍 | D44: 옥암리 | E44: 493-4 | F44: =VLOOKUP(Q44,토지대장!$A$2:$N$241777,8,FALSE) -> 답 | G44: =VLOOKUP(Q44,토지대장!$A$2:$N$241777,9,FALSE) -> 338 | I44: 291 | L44: =VLOOKUP(Q44,토지대장!$A$2:$N$241777,13,FALSE) -> 홍성군 | M44: =VLOOKUP(Q44,토지대장!$A$2:$N$241777,14,FALSE) -> 국 | P44: 01-03옥암천 | Q44: 4480025025104930004 | R44: 340 | S44: 493 | T44: 4
A45: 우안 | B45: 홍성군 | C45: 홍성읍 | D45: 옥암리 | E45: 494-4 | F45: =VLOOKUP(Q45,토지대장!$A$2:$N$241777,8,FALSE) -> 답 | G45: =VLOOKUP(Q45,토지대장!$A$2:$N$241777,9,FALSE) -> 570 | I45: 420 | L45: =VLOOKUP(Q45,토지대장!$A$2:$N$241777,13,FALSE) -> 홍성군 | M45: =VLOOKUP(Q45,토지대장!$A$2:$N$241777,14,FALSE) -> 국 | P45: 01-03옥암천 | Q45: 4480025025104940004 | R45: 569 | S45: 494 | T45: 4
A46: 우안 | B46: 홍성군 | C46: 홍성읍 | D46: 옥암리 | E46: 495-8 | F46: =VLOOKUP(Q46,토지대장!$A$2:$N$241777,8,FALSE) -> 답 | G46: =VLOOKUP(Q46,토지대장!$A$2:$N$241777,9,FALSE) -> 259 | I46: 187 | L46: =VLOOKUP(Q46,토지대장!$A$2:$N$241777,13,FALSE) -> 홍성군 | M46: =VLOOKUP(Q46,토지대장!$A$2:$N$241777,14,FALSE) -> 국 | P46: 01-03옥암천 | Q46: 4480025025104950008 | R46: 268 | S46: 495 | T46: 8
A47: 우안 | B47: 홍성군 | C47: 홍성읍 | D47: 옥암리 | E47: 498-3 | F47: =VLOOKUP(Q47,토지대장!$A$2:$N$241777,8,FALSE) -> 답 | G47: =VLOOKUP(Q47,토지대장!$A$2:$N$241777,9,FALSE) -> 410 | I47: 259 | L47: =VLOOKUP(Q47,토지대장!$A$2:$N$241777,13,FALSE) -> 홍성군 | M47: =VLOOKUP(Q47,토지대장!$A$2:$N$241777,14,FALSE) -> 국 | P47: 01-03옥암천 | Q47: 4480025025104980003 | R47: 412 | S47: 498 | T47: 3
A48: 우안 | B48: 홍성군 | C48: 홍성읍 | D48: 옥암리 | E48: 499-1 | F48: =VLOOKUP(Q48,토지대장!$A$2:$N$241777,8,FALSE) -> 답 | G48: =VLOOKUP(Q48,토지대장!$A$2:$N$241777,9,FALSE) -> 548 | I48: 399 | L48: =VLOOKUP(Q48,토지대장!$A$2:$N$241777,13,FALSE) -> 홍성군 | M48: =VLOOKUP(Q48,토지대장!$A$2:$N$241777,14,FALSE) -> 국 | P48: 01-03옥암천 | Q48: 4480025025104990001 | R48: 555 | S48: 499 | T48: 1
A49: 우안 | B49: 홍성군 | C49: 홍성읍 | D49: 옥암리 | E49: 500-1 | F49: =VLOOKUP(Q49,토지대장!$A$2:$N$241777,8,FALSE) -> 답 | G49: =VLOOKUP(Q49,토지대장!$A$2:$N$241777,9,FALSE) -> 118 | I49: 77 | L49: =VLOOKUP(Q49,토지대장!$A$2:$N$241777,13,FALSE) -> 홍성군 | M49: =VLOOKUP(Q49,토지대장!$A$2:$N$241777,14,FALSE) -> 국 | P49: 01-03옥암천 | Q49: 4480025025105000001 | R49: 117 | S49: 500 | T49: 1
A50: 우안 | B50: 홍성군 | C50: 홍성읍 | D50: 옥암리 | E50: 500-4 | F50: =VLOOKUP(Q50,토지대장!$A$2:$N$241777,8,FALSE) -> 잡 | G50: =VLOOKUP(Q50,토지대장!$A$2:$N$241777,9,FALSE) -> 22 | I50: 11 | L50: =VLOOKUP(Q50,토지대장!$A$2:$N$241777,13,FALSE) -> 홍성군 | M50: =VLOOKUP(Q50,토지대장!$A$2:$N$241777,14,FALSE) -> 국 | P50: 01-03옥암천 | Q50: 4480025025105050001 | R50: 22 | S50: 500 | T50: 4
A51: 우안 | B51: 홍성군 | C51: 홍성읍 | D51: 옥암리 | E51: 501-1 | F51: =VLOOKUP(Q51,토지대장!$A$2:$N$241777,8,FALSE) -> 답 | G51: =VLOOKUP(Q51,토지대장!$A$2:$N$241777,9,FALSE) -> 241 | I51: 130 | L51: =VLOOKUP(Q51,토지대장!$A$2:$N$241777,13,FALSE) -> 홍성군 | M51: =VLOOKUP(Q51,토지대장!$A$2:$N$241777,14,FALSE) -> 국 | P51: 01-03옥암천 | Q51: 4480025025105010001 | R51: 240 | S51: 501 | T51: 1
A52: 우안 | B52: 홍성군 | C52: 홍성읍 | D52: 옥암리 | E52: 502-1 | F52: =VLOOKUP(Q52,토지대장!$A$2:$N$241777,8,FALSE) -> 답 | G52: =VLOOKUP(Q52,토지대장!$A$2:$N$241777,9,FALSE) -> 265 | I52: 178 | L52: =VLOOKUP(Q52,토지대장!$A$2:$N$241777,13,FALSE) -> 홍성군 | M52: =VLOOKUP(Q52,토지대장!$A$2:$N$241777,14,FALSE) -> 국 | P52: 01-03옥암천 | Q52: 4480025025105020001 | R52: 261 | S52: 502 | T52: 1
A53: 우안 | B53: 홍성군 | C53: 홍성읍 | D53: 옥암리 | E53: 503-1 | F53: =VLOOKUP(Q53,토지대장!$A$2:$N$241777,8,FALSE) -> 답 | G53: =VLOOKUP(Q53,토지대장!$A$2:$N$241777,9,FALSE) -> 98 | I53: 54 | L53: =VLOOKUP(Q53,토지대장!$A$2:$N$241777,13,FALSE) -> 홍성군 | M53: =VLOOKUP(Q53,토지대장!$A$2:$N$241777,14,FALSE) -> 국 | P53: 01-03옥암천 | Q53: 4480025025105030001 | R53: 98 | S53: 503 | T53: 1
A54: 우안 | B54: 홍성군 | C54: 홍성읍 | D54: 옥암리 | E54: 505 | F54: 잡 | G54: 2926 | I54: 1 | L54: 홍성군홍성읍옥암리511-2 | M54: 김성환 | P54: 01-03옥암천 | Q54: 4480025025105050000 | R54: 1262 | S54: 505 | T54: 0
A55: 우안 | B55: 홍성군 | C55: 홍성읍 | D55: 옥암리 | E55: 505-2 | F55: =VLOOKUP(Q55,토지대장!$A$2:$N$241777,8,FALSE) -> 잡 | G55: =VLOOKUP(Q55,토지대장!$A$2:$N$241777,9,FALSE) -> 27 | I55: 16 | L55: =VLOOKUP(Q55,토지대장!$A$2:$N$241777,13,FALSE) -> 홍성군 | M55: =VLOOKUP(Q55,토지대장!$A$2:$N$241777,14,FALSE) -> 국 | P55: 01-03옥암천 | Q55: 4480025025105050002 | R55: 27 | S55: 505 | T55: 2
A56: 우안 | B56: 홍성군 | C56: 홍성읍 | D56: 옥암리 | E56: 516-1 | F56: =VLOOKUP(Q56,토지대장!$A$2:$N$241777,8,FALSE) -> 답 | G56: =VLOOKUP(Q56,토지대장!$A$2:$N$241777,9,FALSE) -> 1002 | I56: 53 | L56: =VLOOKUP(Q56,토지대장!$A$2:$N$241777,13,FALSE) -> 홍성군 | M56: =VLOOKUP(Q56,토지대장!$A$2:$N$241777,14,FALSE) -> 국 | P56: 01-03옥암천 | Q56: 4480025025105160001 | R56: 1009 | S56: 516 | T56: 1
A57: 좌안 | B57: 홍성군 | C57: 홍성읍 | D57: 옥암리 | E57: 520-1 | F57: =VLOOKUP(Q57,토지대장!$A$2:$N$241777,8,FALSE) -> 답 | G57: =VLOOKUP(Q57,토지대장!$A$2:$N$241777,9,FALSE) -> 537 | I57: 248 | L57: =VLOOKUP(Q57,토지대장!$A$2:$N$241777,13,FALSE) -> 홍성군 | M57: =VLOOKUP(Q57,토지대장!$A$2:$N$241777,14,FALSE) -> 국 | P57: 01-03옥암천 | Q57: 4480025025105200001 | R57: 533 | S57: 520 | T57: 1
A58: 좌안 | B58: 홍성군 | C58: 홍성읍 | D58: 옥암리 | E58: 521-1 | F58: =VLOOKUP(Q58,토지대장!$A$2:$N$241777,8,FALSE) -> 답 | G58: =VLOOKUP(Q58,토지대장!$A$2:$N$241777,9,FALSE) -> 323 | I58: 95 | L58: =VLOOKUP(Q58,토지대장!$A$2:$N$241777,13,FALSE) -> 홍성군 | M58: =VLOOKUP(Q58,토지대장!$A$2:$N$241777,14,FALSE) -> 국 | P58: 01-03옥암천 | Q58: 4480025025105210001 | R58: 323 | S58: 521 | T58: 1
A59: 좌안 | B59: 홍성군 | C59: 홍성읍 | D59: 옥암리 | E59: 522-1 | F59: =VLOOKUP(Q59,토지대장!$A$2:$N$241777,8,FALSE) -> 답 | G59: =VLOOKUP(Q59,토지대장!$A$2:$N$241777,9,FALSE) -> 270 | I59: 53 | L59: =VLOOKUP(Q59,토지대장!$A$2:$N$241777,13,FALSE) -> 홍성군 | M59: =VLOOKUP(Q59,토지대장!$A$2:$N$241777,14,FALSE) -> 국 | P59: 01-03옥암천 | Q59: 4480025025105220001 | R59: 271 | S59: 522 | T59: 1
A60: 좌안 | B60: 홍성군 | C60: 홍성읍 | D60: 옥암리 | E60: 525-4 | F60: =VLOOKUP(Q60,토지대장!$A$2:$N$241777,8,FALSE) -> 답 | G60: =VLOOKUP(Q60,토지대장!$A$2:$N$241777,9,FALSE) -> 378 | I60: 149 | L60: =VLOOKUP(Q60,토지대장!$A$2:$N$241777,13,FALSE) -> 홍성군 | M60: =VLOOKUP(Q60,토지대장!$A$2:$N$241777,14,FALSE) -> 국 | P60: 01-03옥암천 | Q60: 4480025025105250004 | R60: 382 | S60: 525 | T60: 4
A61: 좌안 | B61: 홍성군 | C61: 홍성읍 | D61: 옥암리 | E61: 525-5 | F61: =VLOOKUP(Q61,토지대장!$A$2:$N$241777,8,FALSE) -> 답 | G61: =VLOOKUP(Q61,토지대장!$A$2:$N$241777,9,FALSE) -> 438 | I61: 74 | L61: =VLOOKUP(Q61,토지대장!$A$2:$N$241777,13,FALSE) -> 홍성군 | M61: =VLOOKUP(Q61,토지대장!$A$2:$N$241777,14,FALSE) -> 국 | P61: 01-03옥암천 | Q61: 4480025025105250005 | R61: 434 | S61: 525 | T61: 5
A62: 좌안 | B62: 홍성군 | C62: 홍성읍 | D62: 옥암리 | E62: 604-1 | F62: =VLOOKUP(Q62,토지대장!$A$2:$N$241777,8,FALSE) -> 답 | G62: =VLOOKUP(Q62,토지대장!$A$2:$N$241777,9,FALSE) -> 394 | I62: 167 | L62: =VLOOKUP(Q62,토지대장!$A$2:$N$241777,13,FALSE) -> 홍성군 | M62: =VLOOKUP(Q62,토지대장!$A$2:$N$241777,14,FALSE) -> 국 | P62: 01-03옥암천 | Q62: 4480025025106040001 | R62: 396 | S62: 604 | T62: 1
A63: 좌안 | B63: 홍성군 | C63: 홍성읍 | D63: 옥암리 | E63: 605-1 | F63: =VLOOKUP(Q63,토지대장!$A$2:$N$241777,8,FALSE) -> 전 | G63: =VLOOKUP(Q63,토지대장!$A$2:$N$241777,9,FALSE) -> 212 | I63: 66 | L63: =VLOOKUP(Q63,토지대장!$A$2:$N$241777,13,FALSE) -> 홍성군 | M63: =VLOOKUP(Q63,토지대장!$A$2:$N$241777,14,FALSE) -> 국 | P63: 01-03옥암천 | Q63: 4480025025106050001 | R63: 213 | S63: 605 | T63: 1
A64: 좌안 | B64: 홍성군 | C64: 홍성읍 | D64: 옥암리 | E64: 606-4 | F64: =VLOOKUP(Q64,토지대장!$A$2:$N$241777,8,FALSE) -> 답 | G64: =VLOOKUP(Q64,토지대장!$A$2:$N$241777,9,FALSE) -> 293 | I64: 113 | L64: =VLOOKUP(Q64,토지대장!$A$2:$N$241777,13,FALSE) -> 홍성군 | M64: =VLOOKUP(Q64,토지대장!$A$2:$N$241777,14,FALSE) -> 국 | P64: 01-03옥암천 | Q64: 4480025025106060004 | R64: 294 | S64: 606 | T64: 4
A65: 좌안 | B65: 홍성군 | C65: 홍성읍 | D65: 옥암리 | E65: 608-6 | F65: =VLOOKUP(Q65,토지대장!$A$2:$N$241777,8,FALSE) -> 답 | G65: =VLOOKUP(Q65,토지대장!$A$2:$N$241777,9,FALSE) -> 627 | I65: 117 | L65: =VLOOKUP(Q65,토지대장!$A$2:$N$241777,13,FALSE) -> 홍성군 | M65: =VLOOKUP(Q65,토지대장!$A$2:$N$241777,14,FALSE) -> 국 | P65: 01-03옥암천 | Q65: 4480025025106080006 | R65: 629 | S65: 608 | T65: 6
A66: 좌안 | B66: 홍성군 | C66: 홍성읍 | D66: 옥암리 | E66: 609 | F66: 답 | G66: 2020 | I66: 1 | L66: 서울특별시동대문구전농동155전농동삼성아파트105-402 | M66: 이호봉 | P66: 01-03옥암천 | Q66: 4480025025106090000 | R66: 1476 | S66: 609 | T66: 0
A67: 좌안 | B67: 홍성군 | C67: 홍성읍 | D67: 옥암리 | E67: 609-1 | F67: =VLOOKUP(Q67,토지대장!$A$2:$N$241777,8,FALSE) -> 답 | G67: =VLOOKUP(Q67,토지대장!$A$2:$N$241777,9,FALSE) -> 548 | I67: 245 | L67: =VLOOKUP(Q67,토지대장!$A$2:$N$241777,13,FALSE) -> 홍성군 | M67: =VLOOKUP(Q67,토지대장!$A$2:$N$241777,14,FALSE) -> 국 | P67: 01-03옥암천 | Q67: 4480025025106090001 | R67: 550 | S67: 609 | T67: 1
A68: 우안 | B68: 홍성군 | C68: 홍성읍 | D68: 옥암리 | E68: 810 | F68: 답 | G68: 2364 | I68: 14 | L68: 838 | M68: 김용희 | P68: 01-03옥암천 | Q68: 4480025025108100000 | R68: 883 | S68: 810 | T68: 0
A69: 우안 | B69: 홍성군 | C69: 홍성읍 | D69: 옥암리 | E69: 812 | F69: 답 | G69: 1236 | I69: 3 | L69: 충청남도홍성군홍성읍오관리705-20홍성향촌현대아파트103-603 | M69: 황미형 | P69: 01-03옥암천 | Q69: 4480025025108120000 | R69: 1228 | S69: 812 | T69: 0
A70: 우안 | B70: 홍성군 | C70: 홍성읍 | D70: 옥암리 | E70: 813-1 | F70: =VLOOKUP(Q70,토지대장!$A$2:$N$241777,8,FALSE) -> 답 | G70: =VLOOKUP(Q70,토지대장!$A$2:$N$241777,9,FALSE) -> 806 | I70: 543 | L70: =VLOOKUP(Q70,토지대장!$A$2:$N$241777,13,FALSE) -> 홍성군 | M70: =VLOOKUP(Q70,토지대장!$A$2:$N$241777,14,FALSE) -> 국 | P70: 01-03옥암천 | Q70: 4480025025108130001 | R70: 809 | S70: 813 | T70: 1
A71: 좌안 | B71: 홍성군 | C71: 홍성읍 | D71: 옥암리 | E71: 822-1 | F71: =VLOOKUP(Q71,토지대장!$A$2:$N$241777,8,FALSE) -> 답 | G71: =VLOOKUP(Q71,토지대장!$A$2:$N$241777,9,FALSE) -> 515 | I71: 226 | L71: =VLOOKUP(Q71,토지대장!$A$2:$N$241777,13,FALSE) -> 홍성군 | M71: =VLOOKUP(Q71,토지대장!$A$2:$N$241777,14,FALSE) -> 국 | P71: 01-03옥암천 | Q71: 4480025025108220001 | R71: 519 | S71: 822 | T71: 1
A72: 좌안 | B72: 홍성군 | C72: 홍성읍 | D72: 옥암리 | E72: 823-1 | F72: =VLOOKUP(Q72,토지대장!$A$2:$N$241777,8,FALSE) -> 답 | G72: =VLOOKUP(Q72,토지대장!$A$2:$N$241777,9,FALSE) -> 98 | I72: 19 | L72: =VLOOKUP(Q72,토지대장!$A$2:$N$241777,13,FALSE) -> 홍성군 | M72: =VLOOKUP(Q72,토지대장!$A$2:$N$241777,14,FALSE) -> 국 | P72: 01-03옥암천 | Q72: 4480025025108230001 | R72: 99 | S72: 823 | T72: 1
A73: 좌안 | B73: 홍성군 | C73: 홍성읍 | D73: 옥암리 | E73: 824-3 | F73: =VLOOKUP(Q73,토지대장!$A$2:$N$241777,8,FALSE) -> 답 | G73: =VLOOKUP(Q73,토지대장!$A$2:$N$241777,9,FALSE) -> 153 | I73: 17 | L73: =VLOOKUP(Q73,토지대장!$A$2:$N$241777,13,FALSE) -> 홍성군 | M73: =VLOOKUP(Q73,토지대장!$A$2:$N$241777,14,FALSE) -> 국 | P73: 01-03옥암천 | Q73: 4480025025108240003 | R73: 150 | S73: 824 | T73: 3
A74: 우안 | B74: 홍성군 | C74: 홍성읍 | D74: 옥암리 | E74: 917-2 | F74: 구 | G74: 390 | I74: 1 | L74: 국(건설부) | M74: 국 | P74: 01-03옥암천 | Q74: 4480025025109170002 | R74: 397 | S74: 917 | T74: 2
A75: 우안 | B75: 홍성군 | C75: 홍성읍 | D75: 옥암리 | E75: 920 | F75: 도 | G75: 108 | I75: 37 | L75: 국(건설부) | M75: 국 | P75: 01-03옥암천 | Q75: 4480025025109200000 | R75: 108 | S75: 920 | T75: 0
A76: 우안 | B76: 홍성군 | C76: 홍성읍 | D76: 옥암리 | E76: 920-2 | F76: 도 | G76: 93 | I76: 13 | L76: 국(건설부) | M76: 국 | P76: 01-03옥암천 | Q76: 4480025025109200002 | R76: 93 | S76: 920 | T76: 2
A77: 좌안 | B77: 홍성군 | C77: 홍성읍 | D77: 옥암리 | E77: 924 | F77: 구 | G77: 10337 | I77: 11 | L77: 국(건설부) | M77: 국 | P77: 01-03옥암천 | Q77: 4480025025109240000 | R77: 7007 | S77: 924 | T77: 0
A78: 우안 | B78: 홍성군 | C78: 홍성읍 | D78: 옥암리 | E78: 926 | F78: 구 | G78: 1260 | I78: 15 | L78: 국(건설부) | M78: 국 | P78: 01-03옥암천 | Q78: 4480025025109260000 | R78: 123 | S78: 926 | T78: 0
A79: 우안 | B79: 홍성군 | C79: 홍성읍 | D79: 옥암리 | E79: 927 | F79: 구 | G79: 4520 | I79: 6 | L79: 국(건설부) | M79: 국 | P79: 01-03옥암천 | Q79: 4480025025109270000 | R79: 1875 | S79: 927 | T79: 0
A80: 좌안 | B80: 홍성군 | C80: 홍성읍 | D80: 옥암리 | E80: 930 | F80: 도 | G80: 4756 | I80: 11 | L80: 국(건설부) | M80: 국 | P80: 01-03옥암천 | Q80: 4480025025109300000 | R80: 1106 | S80: 930 | T80: 0
A81: 우안 | B81: 홍성군 | C81: 홍성읍 | D81: 고암리 | E81: 46-2 | F81: 답 | G81: 1402 | I81: 3 | L81: 오관리518경성큰마을아파트102-1304 | M81: 복영진 | P81: 01-04남산골천 | Q81: 4480025030100460002 | R81: 1473 | S81: 46 | T81: 2
A82: 우안 | B82: 홍성군 | C82: 홍성읍 | D82: 고암리 | E82: 46-3 | F82: 답 | G82: 1287 | I82: 59 | L82: 298-11 | M82: 이갑재 | P82: 01-04남산골천 | Q82: 4480025030100460003 | R82: 1308 | S82: 46 | T82: 3
A83: 우안 | B83: 홍성군 | C83: 홍성읍 | D83: 고암리 | E83: 46-4 | F83: 답 | G83: 1250 | I83: 2 | L83: 경기도안양시만안구안양동695-158 | M83: 안상근 | P83: 01-04남산골천 | Q83: 4480025030100460004 | R83: 1219 | S83: 46 | T83: 4
A84: 우안 | B84: 홍성군 | C84: 홍성읍 | D84: 고암리 | E84: 46-5 | F84: 답 | G84: 1338 | I84: 22 | L84: 경기도안양시만안구안양동695-158 | M84: 안상근 | P84: 01-04남산골천 | Q84: 4480025030100460005 | R84: 1378 | S84: 46 | T84: 5
A85: 우안 | B85: 홍성군 | C85: 홍성읍 | D85: 고암리 | E85: 46-6 | F85: 답 | G85: 1409 | I85: 31 | L85: 홍성군홍성읍고암리645-4 | M85: 주명수 | P85: 01-04남산골천 | Q85: 4480025030100460006 | R85: 1413 | S85: 46 | T85: 6
A86: 우안 | B86: 홍성군 | C86: 홍성읍 | D86: 고암리 | E86: 46-7 | F86: 답 | G86: 1523 | I86: 40 | L86: 652-8 | M86: 고암리2구운영회 | P86: 01-04남산골천 | Q86: 4480025030100460007 | R86: 1505 | S86: 46 | T86: 7
A87: 우안 | B87: 홍성군 | C87: 홍성읍 | D87: 고암리 | E87: 46-8 | F87: 답 | G87: 1636 | I87: 7 | L87: 234-1 | M87: 편정갑 | P87: 01-04남산골천 | Q87: 4480025030100460008 | R87: 1287 | S87: 46 | T87: 8
A88: 우안 | B88: 홍성군 | C88: 홍성읍 | D88: 고암리 | E88: 47-1 | F88: 답 | G88: 1826 | I88: 14 | L88: 경기도고양시일산동구마두동787강촌마을312-1202 | M88: 박성덕 | P88: 01-04남산골천 | Q88: 4480025030100470001 | R88: 1174 | S88: 47 | T88: 1
A89: 우안 | B89: 홍성군 | C89: 홍성읍 | D89: 고암리 | E89: 47-2 | F89: 답 | G89: 2013 | I89: 5 | L89: 경기도고양시일산동구마두동787강촌마을312-1202 | M89: 박성덕 | P89: 01-04남산골천 | Q89: 4480025030100470002 | R89: 1022 | S89: 47 | T89: 2
A90: 우안 | B90: 홍성군 | C90: 홍성읍 | D90: 고암리 | E90: 52-1 | F90: 답 | G90: 387 | I90: 387 | L90: 경기도부천시소사구범박동150-2현대홈타운6단지601-703 | M90: 천한모 | P90: 01-04남산골천 | Q90: 4480025030100520001 | R90: 394 | S90: 52 | T90: 1
A91: 우안 | B91: 홍성군 | C91: 홍성읍 | D91: 고암리 | E91: 52-2 | F91: 답 | G91: 730 | I91: 99 | L91: 충청남도홍성군홍성읍고암리198-2 | M91: 강월득 | P91: 01-04남산골천 | Q91: 4480025030100520002 | R91: 735 | S91: 52 | T91: 2
A92: 우안 | B92: 홍성군 | C92: 홍성읍 | D92: 고암리 | E92: 52-3 | F92: 답 | G92: 1796 | I92: 43 | L92: 충청남도홍성군홍성읍고암리198-2 | M92: 강월득 | P92: 01-04남산골천 | Q92: 4480025030100520003 | R92: 1277 | S92: 52 | T92: 3
A93: 우안 | B93: 홍성군 | C93: 홍성읍 | D93: 고암리 | E93: 52-9 | F93: 답 | G93: 14 | I93: 4 | L93: 국(국방부) | M93: 국 | P93: 01-04남산골천 | Q93: 4480025030100520009 | R93: 14 | S93: 52 | T93: 9
A94: 우안 | B94: 홍성군 | C94: 홍성읍 | D94: 고암리 | E94: 52-10 | F94: 철 | G94: 76 | I94: 1 | L94: 국(국토교통부) | M94: 국 | P94: 01-04남산골천 | Q94: 4480025030100520010 | R94: 75 | S94: 52 | T94: 10
A95: 우안 | B95: 홍성군 | C95: 홍성읍 | D95: 고암리 | E95: 52-11 | F95: 답 | G95: 9 | I95: 4 | L95: 국(국토교통부) | M95: 국 | P95: 01-04남산골천 | Q95: 4480025030100520011 | R95: 9 | S95: 52 | T95: 11
A96: 우안 | B96: 홍성군 | C96: 홍성읍 | D96: 고암리 | E96: 52-17 | F96: 답 | G96: 77 | I96: 3 | L96: 홍성군 | M96: 국 | P96: 01-04남산골천 | Q96: 4480025030100520017 | R96: 80 | S96: 52 | T96: 17
A97: 우안 | B97: 홍성군 | C97: 홍성읍 | D97: 고암리 | E97: 52-18 | F97: 답 | G97: 360 | I97: 18 | L97: 홍성군 | M97: 국 | P97: 01-04남산골천 | Q97: 4480025030100520018 | R97: 357 | S97: 52 | T97: 18
A98: 우안 | B98: 홍성군 | C98: 홍성읍 | D98: 고암리 | E98: 52-22 | F98: 답 | G98: 148 | I98: 13 | L98: 국(국토해양부) | M98: 국 | P98: 01-04남산골천 | Q98: 4480025030100520022 | R98: 148 | S98: 52 | T98: 22
A99: 우안 | B99: 홍성군 | C99: 홍성읍 | D99: 고암리 | E99: 59-2 | F99: 도 | G99: 133 | I99: 20 | L99: 국(건설교통부) | M99: 국 | P99: 01-04남산골천 | Q99: 4480025030100590002 | R99: 142 | S99: 59 | T99: 2
A100: 우안 | B100: 홍성군 | C100: 홍성읍 | D100: 고암리 | E100: 298-3 | F100: 임 | G100: 6803 | I100: 178 | L100: 수원시권선구구운동462삼환아파트5-1004 | M100: 전흥정 | P100: 01-04남산골천 | Q100: 4480025030102980003 | R100: 3010 | S100: 298 | T100: 3
A101: 우안 | B101: 홍성군 | C101: 홍성읍 | D101: 고암리 | E101: 298-4 | F101: 임 | G101: 2140 | I101: 12 | L101: 292 | M101: 김병상 | P101: 01-04남산골천 | Q101: 4480025030102980004 | R101: 2157 | S101: 298 | T101: 4
A102: 우안 | B102: 홍성군 | C102: 홍성읍 | D102: 고암리 | E102: 298-7 | F102: 임 | G102: 1904 | I102: 152 | L102: 남장리95-52미성아파트비동504호 | M102: 김명직 | P102: 01-04남산골천 | Q102: 4480025030102980007 | R102: 1861 | S102: 298 | T102: 7
A103: 우안 | B103: 홍성군 | C103: 홍성읍 | D103: 고암리 | E103: 298-16 | F103: 임 | G103: 252 | I103: 48 | L103: 홍성군 | M103: 국 | P103: 01-04남산골천 | Q103: 4480025030102980016 | R103: 263 | S103: 298 | T103: 16
A104: 우안 | B104: 홍성군 | C104: 홍성읍 | D104: 고암리 | E104: 298-18 | F104: 임 | G104: 88 | I104: 73 | L104: 292 | M104: 김병상 | P104: 01-04남산골천 | Q104: 4480025030102980018 | R104: 89 | S104: 298 | T104: 18
A105: 우안 | B105: 홍성군 | C105: 홍성읍 | D105: 고암리 | E105: 298-19 | F105: =VLOOKUP(Q105,토지대장!$A$2:$N$241777,8,FALSE) -> 임 | G105: =VLOOKUP(Q105,토지대장!$A$2:$N$241777,9,FALSE) -> 1593 | I105: 70 | L105: =VLOOKUP(Q105,토지대장!$A$2:$N$241777,13,FALSE) -> 충청남도홍성군홍성읍문화로33번길11101동1402호(홍성옥암하늘채아파트) | M105: =VLOOKUP(Q105,토지대장!$A$2:$N$241777,14,FALSE) -> 최원보 | P105: 01-04남산골천 | Q105: 4480025030102980019 | R105: 1612 | S105: 298 | T105: 19
A106: 우안 | B106: 홍성군 | C106: 홍성읍 | D106: 고암리 | E106: 298-21 | F106: =VLOOKUP(Q106,토지대장!$A$2:$N$241777,8,FALSE) -> 임 | G106: =VLOOKUP(Q106,토지대장!$A$2:$N$241777,9,FALSE) -> 1054 | I106: 256 | L106: =VLOOKUP(Q106,토지대장!$A$2:$N$241777,13,FALSE) -> 충청남도홍성군홍성읍문화로33번길11107동302호(홍성옥암하늘채아파트) | M106: =VLOOKUP(Q106,토지대장!$A$2:$N$241777,14,FALSE) -> 김순복 | P106: 01-04남산골천 | Q106: 4480025030102980021 | R106: 1548 | S106: 298 | T106: 21
A107: 좌안 | B107: 홍성군 | C107: 홍성읍 | D107: 고암리 | E107: 329-1 | F107: 답 | G107: 1292 | I107: 153 | L107: 홍성군홍성읍고암리561-13 | M107: 정달희 | P107: 01-04남산골천 | Q107: 4480025030103290001 | R107: 1282 | S107: 329 | T107: 1
A108: 좌안 | B108: 홍성군 | C108: 홍성읍 | D108: 고암리 | E108: 329-2 | F108: 답 | G108: 1829 | I108: 71 | L108: 충청남도홍성군홍성읍고암리646-4 | M108: 김기호 | P108: 01-04남산골천 | Q108: 4480025030103290002 | R108: 1814 | S108: 329 | T108: 2
A109: 좌안 | B109: 홍성군 | C109: 홍성읍 | D109: 고암리 | E109: 363-1 | F109: 답 | G109: 2181 | I109: 29 | L109: 인천광역시남동구구월동7-111 | M109: 김득환 | P109: 01-04남산골천 | Q109: 4480025030103630001 | R109: 2176 | S109: 363 | T109: 1
A110: 좌안 | B110: 홍성군 | C110: 홍성읍 | D110: 고암리 | E110: 495-28 | F110: 구 | G110: 16780 | I110: 1 | L110: 국(농수산부) | M110: 국 | P110: 01-04남산골천 | Q110: 4480025030104950028 | R110: 11974 | S110: 495 | T110: 28
A111: 좌안 | B111: 홍성군 | C111: 홍성읍 | D111: 고암리 | E111: 495-42 | F111: 구 | G111: 1802 | I111: 87 | L111: 국(농수산부) | M111: 국 | P111: 01-04남산골천 | Q111: 4480025030104950042 | R111: 1453 | S111: 495 | T111: 42
A112: 우안 | B112: 홍성군 | C112: 홍성읍 | D112: 고암리 | E112: 495-66 | F112: 구 | G112: 847 | I112: 86 | L112: 국(농수산부) | M112: 국 | P112: 01-04남산골천 | Q112: 4480025030104950066 | R112: 849 | S112: 495 | T112: 66
A113: 우안 | B113: 홍성군 | C113: 홍성읍 | D113: 고암리 | E113: 495-67 | F113: 구 | G113: 3 | I113: 3 | L113: 국(농수산부) | M113: 국 | P113: 01-04남산골천 | Q113: 4480025030104950067 | R113: 3 | S113: 495 | T113: 67
A114: 우안 | B114: 홍성군 | C114: 홍성읍 | D114: 고암리 | E114: 695 | F114: 유 | G114: 251 | I114: 50 | L114: 540-2 | M114: 주류제수리계 | P114: 01-04남산골천 | Q114: 4480025030106950000 | R114: 237 | S114: 695 | T114: 0
A115: 우안 | B115: 홍성군 | C115: 홍성읍 | D115: 고암리 | E115: 695-1 | F115: 유 | G115: 661 | I115: 286 | L115: 홍성군 | M115: 국 | P115: 01-04남산골천 | Q115: 4480025030106950001 | R115: 624 | S115: 695 | T115: 1
A116: 우안 | B116: 홍성군 | C116: 홍성읍 | D116: 고암리 | E116: 696-1 | F116: 유 | G116: 178 | I116: 68 | L116: 홍성군 | M116: 국 | P116: 01-04남산골천 | Q116: 4480025030106960001 | R116: 182 | S116: 696 | T116: 1
A117: 우안 | B117: 홍성군 | C117: 홍성읍 | D117: 고암리 | E117: 697 | F117: 전 | G117: 678 | I117: 30 | L117: 충청남도홍성군홍성읍고암리1077신동아파밀리에아파트104-902 | M117: 정규용 | P117: 01-04남산골천 | Q117: 4480025030106970000 | R117: 671 | S117: 697 | T117: 0
A118: 우안 | B118: 홍성군 | C118: 홍성읍 | D118: 고암리 | E118: 716-6 | F118: 답 | G118: 2097 | I118: 19 | L118: 홍성군 | M118: 국 | P118: 01-04남산골천 | Q118: 4480025030107160006 | R118: 7486 | S118: 716 | T118: 6
A119: 우안 | B119: 홍성군 | C119: 홍성읍 | D119: 고암리 | E119: 716-7 | F119: 답 | G119: 230 | I119: 10 | L119: 홍성군 | M119: 국 | P119: 01-04남산골천 | Q119: 4480025030107160007 | R119: 230 | S119: 716 | T119: 7
A120: 우안 | B120: 홍성군 | C120: 홍성읍 | D120: 고암리 | E120: 719-7 | F120: 답 | G120: 845 | I120: 45 | L120: 홍성군 | M120: 국 | P120: 01-04남산골천 | Q120: 4480025030107190007 | R120: 835 | S120: 719 | T120: 7
A121: 우안 | B121: 홍성군 | C121: 홍성읍 | D121: 고암리 | E121: 719-8 | F121: 답 | G121: 718 | I121: 38 | L121: 홍성군 | M121: 국 | P121: 01-04남산골천 | Q121: 4480025030107190008 | R121: 717 | S121: 719 | T121: 8
A122: 우안 | B122: 홍성군 | C122: 홍성읍 | D122: 고암리 | E122: 721-4 | F122: 답 | G122: 675 | I122: 21 | L122: 홍성군 | M122: 국 | P122: 01-04남산골천 | Q122: 4480025030107210004 | R122: 679 | S122: 721 | T122: 4
A123: 우안 | B123: 홍성군 | C123: 홍성읍 | D123: 고암리 | E123: 723-7 | F123: 답 | G123: 790 | I123: 51 | L123: 홍성군 | M123: 국 | P123: 01-04남산골천 | Q123: 4480025030107230007 | R123: 786 | S123: 723 | T123: 7
A124: 우안 | B124: 홍성군 | C124: 홍성읍 | D124: 고암리 | E124: 725-7 | F124: 답 | G124: 573 | I124: 26 | L124: 홍성군 | M124: 국 | P124: 01-04남산골천 | Q124: 4480025030107250007 | R124: 564 | S124: 725 | T124: 7
A125: 우안 | B125: 홍성군 | C125: 홍성읍 | D125: 고암리 | E125: 901-3 | F125: 천 | G125: 16583 | I125: 5 | L125: 국(건설부) | M125: 국 | P125: 01-04남산골천 | Q125: 4480025030109010003 | R125: 6363 | S125: 901 | T125: 3
A126: 우안 | B126: 홍성군 | C126: 홍성읍 | D126: 고암리 | E126: 901-104 | F126: 천 | G126: 1476 | I126: 219 | L126: 국(건설부) | M126: 국 | P126: 01-04남산골천 | Q126: 4480025030109010104 | R126: 1475 | S126: 901 | T126: 104
A127: 우안 | B127: 홍성군 | C127: 홍성읍 | D127: 고암리 | E127: 902-2 | F127: 도 | G127: 710 | I127: 165 | L127: 국(건설부) | M127: 국 | P127: 01-04남산골천 | Q127: 4480025030109020002 | R127: 700 | S127: 902 | T127: 2
A128: 좌안 | B128: 홍성군 | C128: 홍성읍 | D128: 고암리 | E128: 907-12 | F128: 도 | G128: 68 | I128: 35 | L128: 국(건설교통부) | M128: 국 | P128: 01-04남산골천 | Q128: 4480025030109070012 | R128: 72 | S128: 907 | T128: 12
A129: 좌안 | B129: 홍성군 | C129: 홍성읍 | D129: 고암리 | E129: 907-13 | F129: 도 | G129: 2121 | I129: 85 | L129: 국(건설교통부) | M129: 국 | P129: 01-04남산골천 | Q129: 4480025030109070013 | R129: 1213 | S129: 907 | T129: 13
A130: 좌안 | B130: 홍성군 | C130: 홍성읍 | D130: 남장리 | E130: 73-3 | F130: 임 | G130: 1289 | I130: 106 | L130: 국(재정경제부) | M130: 국 | P130: 01-04남산골천 | Q130: 4480025026200730003 | R130: 1092 | S130: 73 | T130: 3
A131: 좌안 | B131: 홍성군 | C131: 홍성읍 | D131: 남장리 | E131: 76-9 | F131: 임 | G131: 5289 | I131: 328 | L131: 광천읍광천리101-3 | M131: 정광석 | P131: 01-04남산골천 | Q131: 4480025026200760009 | R131: 5336 | S131: 76 | T131: 9
A132: 우안 | B132: 홍성군 | C132: 홍성읍 | D132: 남장리 | E132: 122 | F132: 구 | G132: 11210 | I132: 54 | L132: 국(건설부) | M132: 국 | P132: 01-04남산골천 | Q132: 4480025026201220000 | R132: 1837 | S132: 122 | T132: 0
A133: 좌안 | B133: 홍성군 | C133: 홍성읍 | D133: 남장리 | E133: 174-1 | F133: 도 | G133: 20 | I133: 3 | L133: 210 | M133: 모윤순 | P133: 01-04남산골천 | Q133: 4480025026101740001 | R133: 19 | S133: 174 | T133: 1
A134: 좌안 | B134: 홍성군 | C134: 홍성읍 | D134: 남장리 | E134: 181-5 | F134: 대 | G134: 131 | I134: 48 | L134: 홍성군 | M134: 국 | P134: 01-04남산골천 | Q134: 4480025026101810005 | R134: 134 | S134: 181 | T134: 5
A135: 좌안 | B135: 홍성군 | C135: 홍성읍 | D135: 남장리 | E135: 181-8 | F135: 임 | G135: 581 | I135: 20 | L135: 충청남도홍성군홍성읍월산리840-7 | M135: 주식회사대정토건 | P135: 01-04남산골천 | Q135: 4480025026101810008 | R135: 399 | S135: 181 | T135: 8
A136: 좌안 | B136: 홍성군 | C136: 홍성읍 | D136: 남장리 | E136: 181-12 | F136: 임 | G136: 788 | I136: 30 | L136: 충청남도홍성군홍성읍월산리840-7 | M136: 주식회사대정토건 | P136: 01-04남산골천 | Q136: 4480025026101810012 | R136: 783 | S136: 181 | T136: 12
A137: 좌안 | B137: 홍성군 | C137: 홍성읍 | D137: 남장리 | E137: 181-21 | F137: =VLOOKUP(Q137,토지대장!$A$2:$N$241777,8,FALSE) -> 도 | G137: =VLOOKUP(Q137,토지대장!$A$2:$N$241777,9,FALSE) -> 107 | I137: 26 | L137: =VLOOKUP(Q137,토지대장!$A$2:$N$241777,13,FALSE) -> 충청남도홍성군홍성읍문화로72번길92108동1504호(주공그린빌) | M137: =VLOOKUP(Q137,토지대장!$A$2:$N$241777,14,FALSE) -> 이근창 | P137: 01-04남산골천 | Q137: 4480025026101810021 | R137: 107 | S137: 181 | T137: 21
A138: 좌안 | B138: 홍성군 | C138: 홍성읍 | D138: 남장리 | E138: 182-1 | F138: 대 | G138: 108 | I138: 56 | L138: 홍성군 | M138: 국 | P138: 01-04남산골천 | Q138: 4480025026101820001 | R138: 106 | S138: 182 | T138: 1
A139: 좌안 | B139: 홍성군 | C139: 홍성읍 | D139: 남장리 | E139: 183-1 | F139: 전 | G139: 84 | I139: 30 | L139: 홍성군 | M139: 국 | P139: 01-04남산골천 | Q139: 4480025026101830001 | R139: 88 | S139: 183 | T139: 1
A140: 좌안 | B140: 홍성군 | C140: 홍성읍 | D140: 남장리 | E140: 184 | F140: 천 | G140: 294 | I140: 52 | M140: 고제현 | P140: 01-04남산골천 | Q140: 4480025026101840000 | R140: 292 | S140: 184 | T140: 0
A141: 좌안 | B141: 홍성군 | C141: 홍성읍 | D141: 남장리 | E141: 185-3 | F141: 도 | G141: 116 | I141: 20 | L141: 국(국세청) | M141: 국 | P141: 01-04남산골천 | Q141: 4480025026101850003 | R141: 114 | S141: 185 | T141: 3
A142: 좌안 | B142: 홍성군 | C142: 홍성읍 | D142: 남장리 | E142: 185-4 | F142: 전 | G142: 83 | I142: 76 | L142: 국(국세청) | M142: 국 | P142: 01-04남산골천 | Q142: 4480025026101850004 | R142: 77 | S142: 185 | T142: 4
A143: 좌안 | B143: 홍성군 | C143: 홍성읍 | D143: 남장리 | E143: 185-5 | F143: 도 | G143: 251 | I143: 97 | L143: 홍성군 | M143: 국 | P143: 01-04남산골천 | Q143: 4480025026101850005 | R143: 254 | S143: 185 | T143: 5
A144: 좌안 | B144: 홍성군 | C144: 홍성읍 | D144: 남장리 | E144: 185-6 | F144: 전 | G144: 215 | I144: 121 | L144: 홍성군 | M144: 국 | P144: 01-04남산골천 | Q144: 4480025026101850006 | R144: 212 | S144: 185 | T144: 6
A145: 좌안 | B145: 홍성군 | C145: 홍성읍 | D145: 남장리 | E145: 188 | F145: 전 | G145: 493 | I145: 6 | L145: 경기도화성시정남면오일리14-6 | M145: 박명월 | P145: 01-04남산골천 | Q145: 4480025026101880000 | R145: 493 | S145: 188 | T145: 0
A146: 좌안 | B146: 홍성군 | C146: 홍성읍 | D146: 남장리 | E146: 188-1 | F146: 임 | G146: 4023 | I146: 229 | L146: 145-2 | M146: 이정옥 | P146: 01-04남산골천 | Q146: 4480025026101880001 | R146: 3975 | S146: 188 | T146: 1
A147: 좌안 | B147: 홍성군 | C147: 홍성읍 | D147: 남장리 | E147: 188-2 | F147: 임 | G147: 254 | I147: 39 | L147: 홍성군 | M147: 국 | P147: 01-04남산골천 | Q147: 4480025026101880002 | R147: 195 | S147: 188 | T147: 2
A148: 좌안 | B148: 홍성군 | C148: 홍성읍 | D148: 남장리 | E148: 188-3 | F148: 구 | G148: 633 | I148: 134 | L148: 국(건설부) | M148: 국 | P148: 01-04남산골천 | Q148: 4480025026101880003 | R148: 633 | S148: 188 | T148: 3
A149: 좌안 | B149: 홍성군 | C149: 홍성읍 | D149: 남장리 | E149: 189 | F149: 전 | G149: 1109 | I149: 1 | L149: 남장리145 | M149: 김기분 | P149: 01-04남산골천 | Q149: 4480025026101890000 | R149: 1098 | S149: 189 | T149: 0
A150: 좌안 | B150: 홍성군 | C150: 홍성읍 | D150: 남장리 | E150: 221-1 | F150: 대 | G150: 37756 | I150: 15 | L150: 홍성군 | M150: 국 | P150: 01-04남산골천 | Q150: 4480025026102210001 | R150: 5480 | S150: 221 | T150: 1
A151: 좌안 | B151: 홍성군 | C151: 홍성읍 | D151: 남장리 | E151: 244 | F151: 답 | G151: 513 | I151: 10 | L151: 홍성군홍성읍남장리214-13 | M151: 홍광욱 | P151: 01-04남산골천 | Q151: 4480025026102440000 | R151: 517 | S151: 244 | T151: 0
A152: 좌안 | B152: 홍성군 | C152: 홍성읍 | D152: 남장리 | E152: 245 | F152: 답 | G152: 439 | I152: 46 | L152: 서울특별시송파구문정동150훼밀리아파트226-505 | M152: 모영주 | P152: 01-04남산골천 | Q152: 4480025026102450000 | R152: 448 | S152: 245 | T152: 0
A153: 좌안 | B153: 홍성군 | C153: 홍성읍 | D153: 남장리 | E153: 247-2 | F153: 답 | G153: 1532 | I153: 40 | L153: 충청남도서산군서산읍동문리785 | M153: 김혜은 | P153: 01-04남산골천 | Q153: 4480025026102470002 | R153: 1538 | S153: 247 | T153: 2
A154: 좌안 | B154: 홍성군 | C154: 홍성읍 | D154: 남장리 | E154: 251-5 | F154: 답 | G154: 1828 | I154: 78 | L154: 충청남도예산군덕산면둔리503-6 | M154: 임종본 | P154: 01-04남산골천 | Q154: 4480025026102510005 | R154: 1833 | S154: 251 | T154: 5
A155: 좌안 | B155: 홍성군 | C155: 홍성읍 | D155: 남장리 | E155: 252-2 | F155: 답 | G155: 1882 | I155: 55 | L155: 223 | M155: 모진순 | P155: 01-04남산골천 | Q155: 4480025026102520002 | R155: 1898 | S155: 252 | T155: 2
A156: 좌안 | B156: 홍성군 | C156: 홍성읍 | D156: 남장리 | E156: 253-2 | F156: 답 | G156: 1223 | I156: 14 | L156: 서울동대문구망우동518-14 | M156: 모인권 | P156: 01-04남산골천 | Q156: 4480025026102530002 | R156: 1220 | S156: 253 | T156: 2
A157: 좌안 | B157: 홍성군 | C157: 홍성읍 | D157: 남장리 | E157: 254-2 | F157: 답 | G157: 2034 | I157: 59 | L157: 대전광역시동구우암로186105동1309호(성남동석촌마을아파트) | M157: 노귀분 | P157: 01-04남산골천 | Q157: 4480025026102540002 | R157: 2060 | S157: 254 | T157: 2
A158: 우안 | B158: 홍성군 | C158: 홍성읍 | D158: 남장리 | E158: 336-2 | F158: 답 | G158: 2000 | I158: 54 | L158: 212 | M158: 모달순 | P158: 01-04남산골천 | Q158: 4480025026103360002 | R158: 2021 | S158: 336 | T158: 2
A159: 우안 | B159: 홍성군 | C159: 홍성읍 | D159: 남장리 | E159: 336-3 | F159: 답 | G159: 1074 | I159: 39 | L159: 212 | M159: 모달순 | P159: 01-04남산골천 | Q159: 4480025026103360003 | R159: 1099 | S159: 336 | T159: 3
A160: 우안 | B160: 홍성군 | C160: 홍성읍 | D160: 남장리 | E160: 336-5 | F160: 답 | G160: 1183 | I160: 68 | L160: 경기도수원시장안구정자동37-42새한빌라비-301 | M160: 정동욱 | P160: 01-04남산골천 | Q160: 4480025026103360005 | R160: 1195 | S160: 336 | T160: 5
A161: 우안 | B161: 홍성군 | C161: 홍성읍 | D161: 남장리 | E161: 336-6 | F161: 답 | G161: 1937 | I161: 137 | L161: 예산군예산읍예산리329-2삼정연립가-302 | M161: 모돈순 | P161: 01-04남산골천 | Q161: 4480025026103360006 | R161: 1923 | S161: 336 | T161: 6
A162: 우안 | B162: 홍성군 | C162: 홍성읍 | D162: 남장리 | E162: 336-7 | F162: 전 | G162: 460 | I162: 107 | L162: 202-14 | M162: 김안수 | P162: 01-04남산골천 | Q162: 4480025026103360007 | R162: 452 | S162: 336 | T162: 7
A163: 우안 | B163: 홍성군 | C163: 홍성읍 | D163: 남장리 | E163: 336-10 | F163: 답 | G163: 89 | I163: 1 | L163: 홍성군 | M163: 국 | P163: 01-04남산골천 | Q163: 4480025026103360010 | R163: 89 | S163: 336 | T163: 10
A164: 우안 | B164: 홍성군 | C164: 홍성읍 | D164: 남장리 | E164: 338-1 | F164: 답 | G164: 1279 | I164: 73 | L164: 214 | M164: 모선기 | P164: 01-04남산골천 | Q164: 4480025026103380001 | R164: 739 | S164: 338 | T164: 1
A165: 우안 | B165: 홍성군 | C165: 홍성읍 | D165: 남장리 | E165: 338-2 | F165: 답 | G165: 1590 | I165: 126 | L165: 354 | M165: 모태철 | P165: 01-04남산골천 | Q165: 4480025026103380002 | R165: 1124 | S165: 338 | T165: 2
A166: 우안 | B166: 홍성군 | C166: 홍성읍 | D166: 남장리 | E166: 341 | F166: 답 | G166: 862 | I166: 105 | L166: 464 | M166: 모종구 | P166: 01-04남산골천 | Q166: 4480025026103410000 | R166: 869 | S166: 341 | T166: 0
A167: 좌안 | B167: 홍성군 | C167: 홍성읍 | D167: 남장리 | E167: 342 | F167: 답 | G167: 1177 | I167: 495 | L167: 470 | M167: 모종락 | P167: 01-04남산골천 | Q167: 4480025026103420000 | R167: 1187 | S167: 342 | T167: 0
A168: 좌안 | B168: 홍성군 | C168: 홍성읍 | D168: 남장리 | E168: 342-1 | F168: 전 | G168: 1028 | I168: 9 | L168: 국(재무부) | M168: 국 | P168: 01-04남산골천 | Q168: 4480025026103420001 | R168: 1059 | S168: 342 | T168: 1
A169: 좌안 | B169: 홍성군 | C169: 홍성읍 | D169: 남장리 | E169: 342-2 | F169: 답 | G169: 780 | I169: 97 | L169: 충청남도홍성군홍성읍충서로1175번길18-5 | M169: 최홍종 | P169: 01-04남산골천 | Q169: 4480025026103420002 | R169: 773 | S169: 342 | T169: 2
A170: 좌안 | B170: 홍성군 | C170: 홍성읍 | D170: 남장리 | E170: 342-3 | F170: 답 | G170: 1100 | I170: 83 | L170: 356 | M170: 최홍종 | P170: 01-04남산골천 | Q170: 4480025026103420003 | R170: 1000 | S170: 342 | T170: 3
A171: 좌안 | B171: 홍성군 | C171: 홍성읍 | D171: 남장리 | E171: 342-4 | F171: 답 | G171: 3340 | I171: 6 | L171: 서울시성북구돈암동633동부센트레빌아파트102-1202 | M171: 이용수 | P171: 01-04남산골천 | Q171: 4480025026103420004 | R171: 3346 | S171: 342 | T171: 4
A172: 좌안 | B172: 홍성군 | C172: 홍성읍 | D172: 남장리 | E172: 342-6 | F172: 답 | G172: 1118 | I172: 59 | L172: 충청남도홍성군홍성읍오관리668-2홍성향촌현대아파트101-902 | M172: 모창희 | P172: 01-04남산골천 | Q172: 4480025026103420006 | R172: 1125 | S172: 342 | T172: 6
A173: 좌안 | B173: 홍성군 | C173: 홍성읍 | D173: 남장리 | E173: 342-7 | F173: 답 | G173: 1068 | I173: 204 | L173: 국(재정경제부) | M173: 국 | P173: 01-04남산골천 | Q173: 4480025026103420007 | R173: 1084 | S173: 342 | T173: 7
A174: 좌안 | B174: 홍성군 | C174: 홍성읍 | D174: 남장리 | E174: 342-12 | F174: 답 | G174: 56 | I174: 33 | L174: 홍성군 | M174: 국 | P174: 01-04남산골천 | Q174: 4480025026103420012 | R174: 52 | S174: 342 | T174: 12
A175: 좌안 | B175: 홍성군 | C175: 홍성읍 | D175: 남장리 | E175: 389-1 | F175: 답 | G175: 83 | I175: 26 | L175: 473 | M175: 최기봉 | P175: 01-04남산골천 | Q175: 4480025026103890001 | R175: 86 | S175: 389 | T175: 1
A176: 좌안 | B176: 홍성군 | C176: 홍성읍 | D176: 남장리 | E176: 389-3 | F176: 도 | G176: 40 | I176: 1 | L176: 국(국토교통부) | M176: 국 | P176: 01-04남산골천 | Q176: 4480025026103890003 | R176: 45 | S176: 389 | T176: 3
A177: 좌안 | B177: 홍성군 | C177: 홍성읍 | D177: 남장리 | E177: 390-1 | F177: 답 | G177: 694 | I177: 67 | L177: 안양시동안구비산동1102관악아파트114-601 | M177: 박회순 | P177: 01-04남산골천 | Q177: 4480025026103900001 | R177: 601 | S177: 390 | T177: 1
A178: 좌안 | B178: 홍성군 | C178: 홍성읍 | D178: 남장리 | E178: 390-4 | F178: 답 | G178: 588 | I178: 107 | L178: 464-5 | M178: 모성수 | P178: 01-04남산골천 | Q178: 4480025026103900004 | R178: 608 | S178: 390 | T178: 4
A179: 좌안 | B179: 홍성군 | C179: 홍성읍 | D179: 남장리 | E179: 390-6 | F179: 답 | G179: 535 | I179: 69 | L179: 오관리309-11 | M179: 김지선 | P179: 01-04남산골천 | Q179: 4480025026103900006 | R179: 459 | S179: 390 | T179: 6
A180: 좌안 | B180: 홍성군 | C180: 홍성읍 | D180: 남장리 | E180: 390-7 | F180: 구 | G180: 109 | I180: 69 | L180: 국(건설교통부) | M180: 국 | P180: 01-04남산골천 | Q180: 4480025026103900007 | R180: 109 | S180: 390 | T180: 7
A181: 좌안 | B181: 홍성군 | C181: 홍성읍 | D181: 남장리 | E181: 390-9 | F181: 답 | G181: 2455 | I181: 97 | L181: 구항면내현리121-1 | M181: 전환수 | P181: 01-04남산골천 | Q181: 4480025026103900009 | R181: 2444 | S181: 390 | T181: 9
A182: 좌안 | B182: 홍성군 | C182: 홍성읍 | D182: 남장리 | E182: 390-14 | F182: 수 | G182: 841 | I182: 19 | L182: 국(국토교통부) | M182: 국 | P182: 01-04남산골천 | Q182: 4480025026103900014 | R182: 311 | S182: 390 | T182: 14
A183: 좌안 | B183: 홍성군 | C183: 홍성읍 | D183: 남장리 | E183: 390-20 | F183: 답 | G183: 4 | I183: 2 | L183: 홍성군 | M183: 국 | P183: 01-04남산골천 | Q183: 4480025026103900020 | R183: 3 | S183: 390 | T183: 20
A184: 좌안 | B184: 홍성군 | C184: 홍성읍 | D184: 남장리 | E184: 390-22 | F184: 답 | G184: 42 | I184: 34 | L184: 홍성군 | M184: 국 | P184: 01-04남산골천 | Q184: 4480025026103900022 | R184: 42 | S184: 390 | T184: 22
A185: 좌안 | B185: 홍성군 | C185: 홍성읍 | D185: 남장리 | E185: 390-23 | F185: 구 | G185: 304 | I185: 164 | L185: 국(건설교통부) | M185: 국 | P185: 01-04남산골천 | Q185: 4480025026103900023 | R185: 297 | S185: 390 | T185: 23
A186: 좌안 | B186: 홍성군 | C186: 홍성읍 | D186: 남장리 | E186: 390-24 | F186: 답 | G186: 42 | I186: 35 | L186: 홍성군 | M186: 국 | P186: 01-04남산골천 | Q186: 4480025026103900024 | R186: 42 | S186: 390 | T186: 24
A187: 좌안 | B187: 홍성군 | C187: 홍성읍 | D187: 남장리 | E187: 390-25 | F187: 답 | G187: 9 | I187: 9 | L187: 홍성군 | M187: 국 | P187: 01-04남산골천 | Q187: 4480025026103900025 | R187: 8 | S187: 390 | T187: 25
A188: 좌안 | B188: 홍성군 | C188: 홍성읍 | D188: 남장리 | E188: 391 | F188: 답 | G188: 476 | I188: 145 | L188: 안양시동안구비산동1102관악아파트114-601 | M188: 박회순 | P188: 01-04남산골천 | Q188: 4480025026103910000 | R188: 479 | S188: 391 | T188: 0
A189: 우안 | B189: 홍성군 | C189: 홍성읍 | D189: 남장리 | E189: 392-1 | F189: 학 | G189: 328337 | I189: 27 | L189: 산16 | M189: 학교법인혜전학원 | P189: 01-04남산골천 | Q189: 4480025026103920001 | R189: 11268 | S189: 392 | T189: 1
A190: 좌안 | B190: 홍성군 | C190: 홍성읍 | D190: 남장리 | E190: 491 | F190: 도 | G190: 505 | I190: 15 | L190: 국(건설부) | M190: 국 | P190: 01-04남산골천 | Q190: 4480025026104910000 | R190: 498 | S190: 491 | T190: 0
A191: 좌안 | B191: 홍성군 | C191: 홍성읍 | D191: 남장리 | E191: 499 | F191: 천 | G191: 5683 | I191: 164 | L191: 국(건설부) | M191: 국 | P191: 01-04남산골천 | Q191: 4480025026104990000 | R191: 5666 | S191: 499 | T191: 0
A192: 좌안 | B192: 홍성군 | C192: 홍성읍 | D192: 남장리 | E192: 505 | F192: 구 | G192: 779 | I192: 35 | L192: 국(건설부) | M192: 국 | P192: 01-04남산골천 | Q192: 4480025026105050000 | R192: 318 | S192: 505 | T192: 0
A193: 좌안 | B193: 홍성군 | C193: 홍성읍 | D193: 남장리 | E193: 510 | F193: 도 | G193: 66 | I193: 12 | L193: 국(건설부) | M193: 국 | P193: 01-04남산골천 | Q193: 4480025026105100000 | R193: 67 | S193: 510 | T193: 0
A194: 좌안 | B194: 홍성군 | C194: 홍성읍 | D194: 남장리 | E194: 526 | F194: 공 | G194: 2468 | I194: 51 | L194: 홍성군 | M194: 국 | P194: 01-04남산골천 | Q194: 4480025026105260000 | R194: 2469 | S194: 526 | T194: 0
A195: 우안 | B195: 홍성군 | C195: 홍성읍 | D195: 남장리 | E195: 527 | F195: 공 | G195: 1730 | I195: 93 | L195: 홍성군 | M195: 국 | P195: 01-04남산골천 | Q195: 4480025026105270000 | R195: 1736 | S195: 527 | T195: 0
A196: 우안 | B196: 홍성군 | C196: 홍성읍 | D196: 남장리 | E196: 608 | F196: 도 | G196: 1079.6 | I196: 2 | L196: 홍성군 | M196: 국 | P196: 01-04남산골천 | Q196: 4480025026106080000 | R196: 1068 | S196: 608 | T196: 0
A197: 좌안 | B197: 홍성군 | C197: 홍성읍 | D197: 고암리 | E197: 172-1 | F197: 답 | G197: 1288 | I197: 30 | L197: 충청남도홍성군홍성읍조양로65번길142층호 | M197: 전병기 | P197: 01-05영암천 | Q197: 4480025030101720001 | R197: 1280 | S197: 172 | T197: 1
A198: 좌안 | B198: 홍성군 | C198: 홍성읍 | D198: 고암리 | E198: 181 | F198: 답 | G198: 1322 | I198: 29 | L198: 충청남도홍성군홍성읍고암리860 | M198: 전병관 | P198: 01-05영암천 | Q198: 4480025030101810000 | R198: 1318 | S198: 181 | T198: 0
A199: 좌안 | B199: 홍성군 | C199: 홍성읍 | D199: 고암리 | E199: 182 | F199: 답 | G199: 1883 | I199: 198 | L199: 충청남도홍성군홍성읍충절로873번길131 | M199: 전병관 | P199: 01-05영암천 | Q199: 4480025030101820000 | R199: 1739 | S199: 182 | T199: 0
A200: 좌안 | B200: 홍성군 | C200: 홍성읍 | D200: 고암리 | E200: 182-1 | F200: 천 | G200: 1546 | I200: 36 | L200: 홍성군 | M200: 국 | P200: 01-05영암천 | Q200: 4480025030101820001 | R200: 1576 | S200: 182 | T200: 1
A201: 좌안 | B201: 홍성군 | C201: 홍성읍 | D201: 고암리 | E201: 182-2 | F201: 구 | G201: 2264 | I201: 15 | L201: 국(건설부) | M201: 국 | P201: 01-05영암천 | Q201: 4480025030101820002 | R201: 2251 | S201: 182 | T201: 2
A202: 좌안 | B202: 홍성군 | C202: 홍성읍 | D202: 고암리 | E202: 183-4 | F202: 답 | G202: 1371 | I202: 140 | L202: 서울영등포구여의도동42한양아파트이동506호 | M202: 고영애 | P202: 01-05영암천 | Q202: 4480025030101830004 | R202: 1265 | S202: 183 | T202: 4
A203: 좌안 | B203: 홍성군 | C203: 홍성읍 | D203: 고암리 | E203: 183-5 | F203: 답 | G203: 1339 | I203: 68 | L203: 서울영등포구여의도동42한양아파트이동506호 | M203: 고영애 | P203: 01-05영암천 | Q203: 4480025030101830005 | R203: 1353 | S203: 183 | T203: 5
A204: 좌안 | B204: 홍성군 | C204: 홍성읍 | D204: 고암리 | E204: 183-6 | F204: 답 | G204: 209 | I204: 4 | L204: 서울영등포구여의도동42한양아파트이동506호 | M204: 고영애 | P204: 01-05영암천 | Q204: 4480025030101830006 | R204: 198 | S204: 183 | T204: 6
... 98 more rows

Sheet 사용법
A1: 사용설명서
Q2: ProgrammedByWSW
A3: 1.개요
B4: -PNU를기반으로매칭및계산되는시트이며Office2013에서작성됨
B6: -매크로를실행하기전"실행","사용법","토지대장"탭외의시트가있으면안됨(실행탭은항상맨왼쪽에위치해야함)
B8: -실행탭은데이타베이스역할을하는시트이며1,2행의내용을수정하지말것.
B10: -실행탭의1,2행과각열의중간에행또는열을추가하지말것(단,3행이하는내용을수정하여도상관없음)
B12: -다수의하천을한번에하천별개별조서를만들수있는장점이있음(아래참고)
A15: 2.자료입력("실행"탭)
A17: 지바우천 | D17: 토지소재지 | H17: 편입면적(m2) | I17: 편입면적(m2) | J17: 편입면적(m2) | K17: 편입면적(m2) | L17: 소유자 | N17: 구분항
A18: ①구역 | B18: 시.군 | C18: 구.면 | D18: 동.리 | E18: ②번지 | F18: ③지목 | G18: 지적(공부면적) | H18: ④하천구역 | I18: 예정지 | J18: 폐천구역 | K18: 홍수관리구역 | L18: 주소 | M18: 성명 | N18: 구분1 | O18: 구분2 | P18: ⑤하천명 | Q18: ⑥PNU | R18: ⑦전필지면적(m2)
B20: -자료입력형식은위와같으며,붉은색필드는필수적으로매크로를실행전자료를입력해야함
B22: -하늘색과흰색필드는매크로실행후자동으로입력되는필드임
B24: -필드별입력및주의사항
C26: ①구역
D27: -좌우안구분시:다음과같은형식(4자리)으로구분한다.형식)좌01,우01
D28: -좌우안구분안할시:구분을안하는하천에한해서똑같은숫자를입력한다예)1
E29: ☞같은숫자를입력하는이유는해당필드값으로인해정렬이되지않게하기위함이다.만약빈칸으로두면에러가나므로주의할것
C30: ②번지
D31: -예)445-15(O),445(O),445-0(X),산115-1(O)
C32: ③지목
D33: -예)천(O),하천(X)-->1글자지목형식
C34: ④편입면적
D35: -하천구역,예정지,폐천구역,홍수관리구역으로구분
D36: -해당되는필드에편입면적을입력한다.
D37: -해당되는필드에값이있으면조서를따로정리함('0'도값으로취급하므로주의)
D38: -같은PNU인데여러행에면적이나누어져있을경우하나의행에합산하여정리한다.(GIS내에서Dissolve툴사용필요없음)
D39: -같은PNU인데좌우구분이여러개일때하나의행에정리한다.
D41: 번지 | E41: 지목 | F41: 지적 | G41: 하천구역 | H41: 예정지 | I41: 기존폐천 | J41: 신생폐천폐천 | L41: 번지 | M41: 지목 | N41: 지적 | O41: 하천구역 | P41: 예정지 | Q41: 기존폐천 | R41: 신생폐천폐천
D42: 0-1 | E42: 가 | G42: 890.3194049 | L42: 0-1 | M42: 가 | O42: 890.3194049
D43: 453-1 | E43: 답 | F43: 443 | G43: 242 | L43: 453-1 | M43: 답 | N43: 443 | O43: 242 | P43: 140 | Q43: 23
D44: 453-1 | E44: 답 | F44: 443 | H44: 140
D45: 453-1 | E45: 답 | F45: 443 | I45: 23
C47: ⑤하천명
D48: -여러하천을한번에개별조서를만들수있음
D49: -소하천정비종합계획시를기준으로설명하면,
E50: 형식)01-01개별천(면번호두자리-하천번호두자리하천명)
F51: ☞하천명은5자리부터입력되어야함!
D52: -해당시트가저장되어있는경로에하천별조서가개별적인통합문서(*.xlsm)로저장됨
C54: ⑥PNU
D55: -GIS연속지적도에서가져온PNU
C57: ⑦전필지면적
D58: -CAD나GIS내각필지의전필지면적
C60: ⑧하늘색,흰색필드
D61: -"토지대장당겨오기"및"면적비교검증"매크로실행시PNU를기준으로자동으로입력되어짐
A68: 3.자료입력("토지대장"탭)
A70: ①PNU | B70: ②토지코드 | C70: ③대장구분 | D70: ④본번 | E70: ⑤부번 | F70: ⑥면적 | G70: ⑦소유자주소 | H70: ⑧소유자명
B72: -위의붉은색필드외에다른필드는입력안해도무방
B74: -필드별입력및주의사항
C76: ①PNU
D77: -토지전산대장에서간혹PNU전체19자리가아닌10자리만제공되는경우가있으므로,"토지코드"필드를기반으로대장구분,본번,부번필드를조합하여자동으로입력되어지는필드
D78: -"실행"탭과매칭시이용되는필드임
C79: ②토지코드
D80: -전산대장에서제공되는PNU코드(입력해야하는필드.위의1번과혼동하지말것,최소10자리를입력해야함)
C81: ③대장구분
D82: -토지대장(1)과임야대장(2,산지번)구분
C83: ④본번
D84: -지번의본지번
C85: ⑤부번
D86: -지번의부지번
C87: ⑥면적
D88: -공부면적
C89: ⑦소유자주소
D90: -소유자주소
C91: ⑧소유자명
D92: -소유자명(국유지인경우"국"표기)
D93: -소유자명이"국"인경우실행탭에서국유지로구분하여조서를작성하고,나머지는사유지로간주하여조서를작성한다.
A95: 3.매크로실행
A97: "실행"탭의우측상단에매크로실행단추가있다.
B99: -실행순서
C100: (초기화)→토지대장당겨오기→면적비교검증→조서작성→Print
D101: ☞기본탭(실행,사용법,토지대장)외의시트가존재하는경우'초기화'를제일먼저실행할것!
B103: -매크로버튼
C105: 초기화
E106: -기능: | F106: -기본탭(실행,사용법,토지대장)외의시트를모두삭제
C108: 토지대장당겨오기
E109: -기능: | F109: -동일PNU에해당하는토지대장의내용을"실행"탭으로당겨온다.
F110: -"소유구분을실행할까요?"라는메시지가뜰경우
G111: ☞1을선택할경우:기본적인국유지구분을해준다.(소유자필드에"국"표기)
H112: ▷소유자명이"*시"인경우Ex)청주시
H113: ▷소유자명이"*군"인경우Ex)청송군
H114: ▷소유자명이"*도"인경우Ex)경기도
H115: ▷소유자명이"*면"인경우Ex)가음면
H116: ▷소유자명이"*구"인경우Ex)강남구
H117: ▷소유자명이"*과"인경우Ex)건설과
H118: ▷소유자명이"*부"인경우Ex)건설부
H119: ▷소유자명이"국(*"인경우Ex)국(국토교통부)
H120: ▷기본적인분류작업이므로실행후국유지여부다시확인할것
C122: 면적비교검증
E123: -기능: | F123: -공부면적과편입면적을비교하여편입면적이같거나클경우음영처리(사용자가확인후직접면적수정할것)
F124: -전필지면적과편입면적을비교하여편차가10%이내일경우음영처리(확인용도)→전필지여부확인
F125: -동일PNU필지에대한필지통합및면적합산(GIS의Dissolve기능)
F126: -편입면적이1보다작을경우필지삭제(단,공부면적이1보다클경우에만삭제)
F127: -소수점절삭
F128: -하천별,행정구역별,지번별Sorting
F129: -지번앞에어포스트로피(')추가Ex)1-1☞'1-1
G130: ▷1-1이나1-2같은경우어포스트로피가없으면날짜형태로표현되는경우가있음
F131: ※이단계를생략하여도무방하나위의작업들을사용자가직접해주어야한다.
C134: 조서작성
E135: -개요: | F135: -"실행"탭하천명필드의개별하천에대한조서를작성(개별통합문서)
F136: ☞매크로실행전저장을하고,실행후저장없이통합문서닫을것(하천별개별통합문서가작성되기때문에해당통합문서는데이타베이스로간주할것)
F137: ☞하천수가많을경우시간이오래걸리므로"완료"메시지가뜰때까지인내심을갖고기다린다.(소하천의경우면별로개별시트를만들것을추천)
E139: -주요기능:
F151: ①좌우안구분: | O151: <좌우안구분조서정리형식>
G152: ☞"실행"탭에좌우안구분이되어있는경우해당구역을체크한다. | O152: 좌1 | P152: 우1
G153: ☞다중선택가능 | O153: 좌2 | P153: 우2
G154: ☞"실행"탭에좌우안구분이되어있어도체크안할시연번형식으로조서정리 | O154: . . | P154: . .
G155: ☞"실행"탭에좌우안구분이되어있지않았는데체크할시,조서의좌측표에만연번형식으로나열하여정리된다.
O156: <좌우안구분체크안할시>
F157: ②조서작성행정구역구분단위: | O157: 1 | P157: 4
G158: ☞"실행"탭의B,C,D열을기준으로선택된행정구역단위로조서를작성 | O158: 2 | P158: 5
G159: ☞다중선택안됨 | O159: 3 | P159: 6
G160: ☞'구분없음'선택시행정구분없이각전체조서만작성됨
F162: ※집계표의필지수와조서의필지수는일치함을원칙으로작성!!
C164: SinglePrint
E165: -기능: | F165: -기본설정프린터로해당부수만큼A3사이즈로출력(용지사이즈변경불가)
F166: -용지사이즈변경하고자한다면아래PDF로만들어출력할것
C168: PDFPrint
E169: -기능: | F169: PDF파일생성
C171: 납품용
E172: -기능: | F172: 파일을정리하여전송하고자할때필요없는셀과버튼을삭제해줌
A174: 4.결언
B176: -홍수관리구역및폐천부지는사유지조서가따로생성되지않으므로,사유지조서가필요할시"실행"탭의하천구역이나예정지구역에임의적으로입력하여조서를작성할수있다.
B177: -단,작성후하천간지나각시트내의조서명은수정하여야한다.
C178: 예)예정지집계표☞홍수관리구역집계표'로수정
B179: -통합문서별간지,목차,집계표및조서가정리되므로바로출력가능하다.
B180: -하천별별도통합문서로현재통합문서의작업위치에저장된다.
B181: -셀의내용을시트별로정리하므로연산시간이조금길다.여유를갖고써보길바란다.
B182: -기능상의오류가있으면wiccsco@naver.com으로알려주면수정하겠음
A184: 5.업데이트현황
B185: -업데이트_Ver2:국유지조서작성추가(2017.12)
B186: -추후:간지작성여부선택추가
B187: -추후:개별시트내매크로삭제,실행및토지대장탭삭제
B188: -추후:진행상황bar

Sheet 토지대장
A1: PNU | B1: 토지코드 | C1: 행정구역 | D1: 대장구분 | E1: 본번 | F1: 부번 | G1: 지목코드 | H1: 지목 | I1: 공부면적 | J1: 토지이동사유코드 | K1: 토지이동사유 | L1: 토지이동일자 | M1: 소유자주소 | N1: 소유자명 | O1: 소유구분 | P1: 소유권변경일자 | Q1: 소유권변동원인코드 | R1: 소유권변동원인 | S1: 공유인수 | T1: 공시지가 | Y1: 법정동코드 | Z1: 시군구명 | AA1: 읍면동명 | AB1: 동리명 | AC1: <-----지우지말것!
A2: =LEFT($B$2,10)&TEXT($D$2,"0")&TEXT($E$2,"0000")&TEXT($F$2,"0000") -> 4480025021100020003 | B2: 4480025021 | D2: 1 | E2: 2 | F2: 3 | G2: 2-3 | H2: 제 | I2: 294 | M2: 국(기획재정부) | N2: 국 | Y2: 1111010100 | Z2: 종로구 | AA2: 청운동
A3: =LEFT($B$3,10)&TEXT($D$3,"0")&TEXT($E$3,"0000")&TEXT($F$3,"0000") -> 4480025021100030001 | B3: 4480025021 | D3: 1 | E3: 3 | F3: 1 | G3: 3-1 | H3: 천 | I3: 255 | M3: 국(국세청) | N3: 국 | Y3: 1111010200 | Z3: 종로구 | AA3: 신교동
A4: =LEFT($B$4,10)&TEXT($D$4,"0")&TEXT($E$4,"0000")&TEXT($F$4,"0000") -> 4480025021100030002 | B4: 4480025021 | D4: 1 | E4: 3 | F4: 2 | G4: 3-2 | H4: 제 | I4: 764 | M4: 국(기획재정부) | N4: 국 | Y4: 1111010300 | Z4: 종로구 | AA4: 궁정동
A5: =LEFT($B$5,10)&TEXT($D$5,"0")&TEXT($E$5,"0000")&TEXT($F$5,"0000") -> 4480025021100030003 | B5: 4480025021 | D5: 1 | E5: 3 | F5: 3 | G5: 3-3 | H5: 대 | I5: 255 | M5: 고암리192 | N5: 신경분 | Y5: 1111010400 | Z5: 종로구 | AA5: 효자동
A6: =LEFT($B$6,10)&TEXT($D$6,"0")&TEXT($E$6,"0000")&TEXT($F$6,"0000") -> 4480025021100030005 | B6: 4480025021 | D6: 1 | E6: 3 | F6: 5 | G6: 3-5 | H6: 대 | I6: 182 | M6: 충청남도홍성군홍성읍오관리3-5 | N6: 명제동 | Y6: 1111010500 | Z6: 종로구 | AA6: 창성동
A7: =LEFT($B$7,10)&TEXT($D$7,"0")&TEXT($E$7,"0000")&TEXT($F$7,"0000") -> 4480025021100030006 | B7: 4480025021 | D7: 1 | E7: 3 | F7: 6 | G7: 3-6 | H7: 대 | I7: 102 | M7: 홍성군 | N7: 국 | Y7: 1111010600 | Z7: 종로구 | AA7: 통의동
A8: =LEFT($B$8,10)&TEXT($D$8,"0")&TEXT($E$8,"0000")&TEXT($F$8,"0000") -> 4480025021100030013 | B8: 4480025021 | D8: 1 | E8: 3 | F8: 13 | G8: 3-13 | H8: 대 | I8: 172 | M8: 충청남도홍성군홍성읍당간길17-8 | N8: 명정순 | Y8: 1111010700 | Z8: 종로구 | AA8: 적선동
A9: =LEFT($B$9,10)&TEXT($D$9,"0")&TEXT($E$9,"0000")&TEXT($F$9,"0000") -> 4480025021100030015 | B9: 4480025021 | D9: 1 | E9: 3 | F9: 15 | G9: 3-15 | H9: 대 | I9: 172 | M9: 충청남도홍성군홍성읍당간길17-12 | N9: 지한순 | Y9: 1111010800 | Z9: 종로구 | AA9: 통인동
A10: =LEFT($B$10,10)&TEXT($D$10,"0")&TEXT($E$10,"0000")&TEXT($F$10,"0000") -> 4480025021100030016 | B10: 4480025021 | D10: 1 | E10: 3 | F10: 16 | G10: 3-16 | H10: 대 | I10: 175 | M10: 충청남도홍성군홍성읍오관리3-16 | N10: 전금숙 | Y10: 1111010900 | Z10: 종로구 | AA10: 누상동
A11: =LEFT($B$11,10)&TEXT($D$11,"0")&TEXT($E$11,"0000")&TEXT($F$11,"0000") -> 4480025021100030018 | B11: 4480025021 | D11: 1 | E11: 3 | F11: 18 | G11: 3-18 | H11: 대 | I11: 202 | M11: 충청남도홍성군홍성읍당간길312층 | N11: 김순단 | Y11: 1111011000 | Z11: 종로구 | AA11: 누하동
A12: =LEFT($B$12,10)&TEXT($D$12,"0")&TEXT($E$12,"0000")&TEXT($F$12,"0000") -> 4480025021100040001 | B12: 4480025021 | D12: 1 | E12: 4 | F12: 1 | G12: 4-1 | H12: 대 | I12: 169 | M12: 서울특별시서초구서초대로24길20102호(방배동) | N12: 김미경 | Y12: 1111011100 | Z12: 종로구 | AA12: 옥인동
A13: =LEFT($B$13,10)&TEXT($D$13,"0")&TEXT($E$13,"0000")&TEXT($F$13,"0000") -> 4480025021100040002 | B13: 4480025021 | D13: 1 | E13: 4 | F13: 2 | G13: 4-2 | H13: 대 | I13: 172 | M13: 강릉시포남동1293-2청송아파트102-202 | N13: 최헌숙 | Y13: 1111011200 | Z13: 종로구 | AA13: 체부동
A14: =LEFT($B$14,10)&TEXT($D$14,"0")&TEXT($E$14,"0000")&TEXT($F$14,"0000") -> 4480025021100040003 | B14: 4480025021 | D14: 1 | E14: 4 | F14: 3 | G14: 4-3 | H14: 대 | I14: 141 | M14: 서울특별시서초구서초대로24길20102호(방배동) | N14: 김미경 | Y14: 1111011300 | Z14: 종로구 | AA14: 필운동
A15: =LEFT($B$15,10)&TEXT($D$15,"0")&TEXT($E$15,"0000")&TEXT($F$15,"0000") -> 4480025021100040004 | B15: 4480025021 | D15: 1 | E15: 4 | F15: 4 | G15: 4-4 | H15: 대 | I15: 241 | M15: 강릉시포남동1293-2청송아파트102-202 | N15: 최헌숙 | Y15: 1111011400 | Z15: 종로구 | AA15: 내자동
A16: =LEFT($B$16,10)&TEXT($D$16,"0")&TEXT($E$16,"0000")&TEXT($F$16,"0000") -> 4480025021100040006 | B16: 4480025021 | D16: 1 | E16: 4 | F16: 6 | G16: 4-6 | H16: 대 | I16: 255 | M16: 2019-04-05 | N16: 최헌숙 | Y16: 1111011500 | Z16: 종로구 | AA16: 사직동
A17: =LEFT($B$17,10)&TEXT($D$17,"0")&TEXT($E$17,"0000")&TEXT($F$17,"0000") -> 4480025021100040007 | B17: 4480025021 | D17: 1 | E17: 4 | F17: 7 | G17: 4-7 | H17: 도 | I17: 2116 | M17: 홍성군 | N17: 국 | Y17: 1111011600 | Z17: 종로구 | AA17: 도렴동
A18: =LEFT($B$18,10)&TEXT($D$18,"0")&TEXT($E$18,"0000")&TEXT($F$18,"0000") -> 4480025021100040010 | B18: 4480025021 | D18: 1 | E18: 4 | F18: 10 | G18: 4-10 | H18: 대 | I18: 70 | M18: 강릉시포남동1293-2청송아파트102-202 | N18: 최헌숙 | Y18: 1111011700 | Z18: 종로구 | AA18: 당주동
A19: =LEFT($B$19,10)&TEXT($D$19,"0")&TEXT($E$19,"0000")&TEXT($F$19,"0000") -> 4480025021100040011 | B19: 4480025021 | D19: 1 | E19: 4 | F19: 11 | G19: 4-11 | H19: 대 | I19: 20 | M19: 충청남도홍성군홍북면홍천문화1길96 | N19: 이승호 | Y19: 1111011800 | Z19: 종로구 | AA19: 내수동
A20: =LEFT($B$20,10)&TEXT($D$20,"0")&TEXT($E$20,"0000")&TEXT($F$20,"0000") -> 4480025021100050005 | B20: 4480025021 | D20: 1 | E20: 5 | F20: 5 | G20: 5-5 | H20: 대 | I20: 257 | M20: 홍북면신경리174 | N20: 김선권 | Y20: 1111011900 | Z20: 종로구 | AA20: 세종로
A21: =LEFT($B$21,10)&TEXT($D$21,"0")&TEXT($E$21,"0000")&TEXT($F$21,"0000") -> 4480025021100050011 | B21: 4480025021 | D21: 1 | E21: 5 | F21: 11 | G21: 5-11 | H21: 대 | I21: 165 | M21: 충청남도홍성군홍성읍오관리276-37 | N21: 한찬희 | Y21: 1111012000 | Z21: 종로구 | AA21: 신문로1가
A22: =LEFT($B$22,10)&TEXT($D$22,"0")&TEXT($E$22,"0000")&TEXT($F$22,"0000") -> 4480025021100060002 | B22: 4480025021 | D22: 1 | E22: 6 | F22: 2 | G22: 6-2 | H22: 도 | I22: 60 | M22: 국(기획재정부) | N22: 국 | Y22: 1111012100 | Z22: 종로구 | AA22: 신문로2가
A23: =LEFT($B$23,10)&TEXT($D$23,"0")&TEXT($E$23,"0000")&TEXT($F$23,"0000") -> 4480025021100060005 | B23: 4480025021 | D23: 1 | E23: 6 | F23: 5 | G23: 6-5 | H23: 대 | I23: 331 | M23: 충청남도홍성군홍성읍당간길33 | N23: 강일성 | Y23: 1111012200 | Z23: 종로구 | AA23: 청진동
A24: =LEFT($B$24,10)&TEXT($D$24,"0")&TEXT($E$24,"0000")&TEXT($F$24,"0000") -> 4480025021100060008 | B24: 4480025021 | D24: 1 | E24: 6 | F24: 8 | G24: 6-8 | H24: 대 | I24: 17 | M24: 2019-06-04 | N24: 오계표 | Y24: 1111012300 | Z24: 종로구 | AA24: 서린동
A25: =LEFT($B$25,10)&TEXT($D$25,"0")&TEXT($E$25,"0000")&TEXT($F$25,"0000") -> 4480025021100070001 | B25: 4480025021 | D25: 1 | E25: 7 | F25: 1 | G25: 7-1 | H25: 도 | I25: 7 | M25: 국(기획재정부) | N25: 국 | Y25: 1111012400 | Z25: 종로구 | AA25: 수송동
A26: =LEFT($B$26,10)&TEXT($D$26,"0")&TEXT($E$26,"0000")&TEXT($F$26,"0000") -> 4480025021100070003 | B26: 4480025021 | D26: 1 | E26: 7 | F26: 3 | G26: 7-3 | H26: 제 | I26: 545 | M26: 국(기획재정부) | N26: 국 | Y26: 1111012500 | Z26: 종로구 | AA26: 중학동
A27: =LEFT($B$27,10)&TEXT($D$27,"0")&TEXT($E$27,"0000")&TEXT($F$27,"0000") -> 4480025021100070006 | B27: 4480025021 | D27: 1 | E27: 7 | F27: 6 | G27: 7-6 | H27: 대 | I27: 46 | M27: 288-2 | N27: 홍성군농업협동조합 | Y27: 1111012600 | Z27: 종로구 | AA27: 종로1가
A28: =LEFT($B$28,10)&TEXT($D$28,"0")&TEXT($E$28,"0000")&TEXT($F$28,"0000") -> 4480025021100070007 | B28: 4480025021 | D28: 1 | E28: 7 | F28: 7 | G28: 7-7 | H28: 대 | I28: 295 | M28: 충청남도홍성군홍성읍조양로143번길59 | N28: 황규일 | Y28: 1111012700 | Z28: 종로구 | AA28: 공평동
A29: =LEFT($B$29,10)&TEXT($D$29,"0")&TEXT($E$29,"0000")&TEXT($F$29,"0000") -> 4480025021100070011 | B29: 4480025021 | D29: 1 | E29: 7 | F29: 11 | G29: 7-11 | H29: 대 | I29: 18 | M29: 홍성군 | N29: 국 | Y29: 1111012800 | Z29: 종로구 | AA29: 관훈동
A30: =LEFT($B$30,10)&TEXT($D$30,"0")&TEXT($E$30,"0000")&TEXT($F$30,"0000") -> 4480025021100080001 | B30: 4480025021 | D30: 1 | E30: 8 | F30: 1 | G30: 8-1 | H30: 천 | I30: 159 | M30: 국(국세청) | N30: 국 | Y30: 1111012900 | Z30: 종로구 | AA30: 견지동
A31: =LEFT($B$31,10)&TEXT($D$31,"0")&TEXT($E$31,"0000")&TEXT($F$31,"0000") -> 4480025021100080002 | B31: 4480025021 | D31: 1 | E31: 8 | F31: 2 | G31: 8-2 | H31: 제 | I31: 469 | M31: 국(기획재정부) | N31: 국 | Y31: 1111013000 | Z31: 종로구 | AA31: 와룡동
A32: =LEFT($B$32,10)&TEXT($D$32,"0")&TEXT($E$32,"0000")&TEXT($F$32,"0000") -> 4480025021100080005 | B32: 4480025021 | D32: 1 | E32: 8 | F32: 5 | G32: 8-5 | H32: 대 | I32: 1982 | Y32: 1111013100 | Z32: 종로구 | AA32: 권농동
A33: =LEFT($B$33,10)&TEXT($D$33,"0")&TEXT($E$33,"0000")&TEXT($F$33,"0000") -> 4480025021100080007 | B33: 4480025021 | D33: 1 | E33: 8 | F33: 7 | G33: 8-7 | H33: 대 | I33: 281 | M33: 대교리402-4 | N33: 김옥희 | Y33: 1111013200 | Z33: 종로구 | AA33: 운니동
A34: =LEFT($B$34,10)&TEXT($D$34,"0")&TEXT($E$34,"0000")&TEXT($F$34,"0000") -> 4480025021100080012 | B34: 4480025021 | D34: 1 | E34: 8 | F34: 12 | G34: 8-12 | H34: 도 | I34: 85 | M34: 홍성군 | N34: 국 | Y34: 1111013300 | Z34: 종로구 | AA34: 익선동
A35: =LEFT($B$35,10)&TEXT($D$35,"0")&TEXT($E$35,"0000")&TEXT($F$35,"0000") -> 4480025021100080015 | B35: 4480025021 | D35: 1 | E35: 8 | F35: 15 | G35: 8-15 | H35: 도 | I35: 3 | M35: 홍성군 | N35: 국 | Y35: 1111013400 | Z35: 종로구 | AA35: 경운동
A36: =LEFT($B$36,10)&TEXT($D$36,"0")&TEXT($E$36,"0000")&TEXT($F$36,"0000") -> 4480025021100080017 | B36: 4480025021 | D36: 1 | E36: 8 | F36: 17 | G36: 8-17 | H36: 도 | I36: 3 | M36: 홍성군 | N36: 국 | Y36: 1111013500 | Z36: 종로구 | AA36: 관철동
A37: =LEFT($B$37,10)&TEXT($D$37,"0")&TEXT($E$37,"0000")&TEXT($F$37,"0000") -> 4480025021100090001 | B37: 4480025021 | D37: 1 | E37: 9 | F37: 1 | G37: 9-1 | H37: 천 | I37: 129 | M37: 국(국세청) | N37: 국 | Y37: 1111013600 | Z37: 종로구 | AA37: 인사동
A38: =LEFT($B$38,10)&TEXT($D$38,"0")&TEXT($E$38,"0000")&TEXT($F$38,"0000") -> 4480025021100090002 | B38: 4480025021 | D38: 1 | E38: 9 | F38: 2 | G38: 9-2 | H38: 제 | I38: 959 | M38: 국(기획재정부) | N38: 국 | Y38: 1111013700 | Z38: 종로구 | AA38: 낙원동
A39: =LEFT($B$39,10)&TEXT($D$39,"0")&TEXT($E$39,"0000")&TEXT($F$39,"0000") -> 4480025021100090003 | B39: 4480025021 | D39: 1 | E39: 9 | F39: 3 | G39: 9-3 | H39: 답 | I39: 1620 | M39: 10 | N39: 박영자 | Y39: 1111013800 | Z39: 종로구 | AA39: 종로2가
A40: =LEFT($B$40,10)&TEXT($D$40,"0")&TEXT($E$40,"0000")&TEXT($F$40,"0000") -> 4480025021100090004 | B40: 4480025021 | D40: 1 | E40: 9 | F40: 4 | G40: 9-4 | H40: 답 | I40: 268 | M40: 갈산면가곡리299-1 | N40: 최재금 | Y40: 1111013900 | Z40: 종로구 | AA40: 팔판동
A41: =LEFT($B$41,10)&TEXT($D$41,"0")&TEXT($E$41,"0000")&TEXT($F$41,"0000") -> 4480025021100090005 | B41: 4480025021 | D41: 1 | E41: 9 | F41: 5 | G41: 9-5 | H41: 대 | I41: 231 | M41: 서울특별시광진구광장동577현대파크빌1006-1503 | N41: 김연권 | Y41: 1111014000 | Z41: 종로구 | AA41: 삼청동
A42: =LEFT($B$42,10)&TEXT($D$42,"0")&TEXT($E$42,"0000")&TEXT($F$42,"0000") -> 4480025021100090006 | B42: 4480025021 | D42: 1 | E42: 9 | F42: 6 | G42: 9-6 | H42: 답 | I42: 607 | M42: 홍성군홍성읍오관리947홍성향촌현대아파트102-1207 | N42: 이기만 | Y42: 1111014100 | Z42: 종로구 | AA42: 안국동
A43: =LEFT($B$43,10)&TEXT($D$43,"0")&TEXT($E$43,"0000")&TEXT($F$43,"0000") -> 4480025021100090007 | B43: 4480025021 | D43: 1 | E43: 9 | F43: 7 | G43: 9-7 | H43: 답 | I43: 10 | M43: 홍성군홍성읍오관리947홍성향촌현대아파트102-1207 | N43: 이기만 | Y43: 1111014200 | Z43: 종로구 | AA43: 소격동
A44: =LEFT($B$44,10)&TEXT($D$44,"0")&TEXT($E$44,"0000")&TEXT($F$44,"0000") -> 4480025021100100000 | B44: 4480025021 | D44: 1 | E44: 10 | F44: 0 | G44: 10 | H44: 대 | I44: 347 | M44: 충청남도홍성군홍성읍오관리10 | N44: 박영자 | Y44: 1111014300 | Z44: 종로구 | AA44: 화동
A45: =LEFT($B$45,10)&TEXT($D$45,"0")&TEXT($E$45,"0000")&TEXT($F$45,"0000") -> 4480025021100110002 | B45: 4480025021 | D45: 1 | E45: 11 | F45: 2 | G45: 11-2 | H45: 대 | I45: 215 | M45: 2019-11-02 | N45: 최중섭 | Y45: 1111014400 | Z45: 종로구 | AA45: 사간동
A46: =LEFT($B$46,10)&TEXT($D$46,"0")&TEXT($E$46,"0000")&TEXT($F$46,"0000") -> 4480025021100110003 | B46: 4480025021 | D46: 1 | E46: 11 | F46: 3 | G46: 11-3 | H46: 대 | I46: 169 | M46: 2019-11-03 | N46: 최영석 | Y46: 1111014500 | Z46: 종로구 | AA46: 송현동
A47: =LEFT($B$47,10)&TEXT($D$47,"0")&TEXT($E$47,"0000")&TEXT($F$47,"0000") -> 4480025021100130002 | B47: 4480025021 | D47: 1 | E47: 13 | F47: 2 | G47: 13-2 | H47: 대 | I47: 20 | M47: 13-1 | N47: 이풍전 | Y47: 1111014600 | Z47: 종로구 | AA47: 가회동
A48: =LEFT($B$48,10)&TEXT($D$48,"0")&TEXT($E$48,"0000")&TEXT($F$48,"0000") -> 4480025021100140001 | B48: 4480025021 | D48: 1 | E48: 14 | F48: 1 | G48: 14-1 | H48: 대 | I48: 479 | M48: 14-1 | N48: 오화근 | Y48: 1111014700 | Z48: 종로구 | AA48: 재동
A49: =LEFT($B$49,10)&TEXT($D$49,"0")&TEXT($E$49,"0000")&TEXT($F$49,"0000") -> 4480025021100140003 | B49: 4480025021 | D49: 1 | E49: 14 | F49: 3 | G49: 14-3 | H49: 대 | I49: 106 | M49: 홍성군 | N49: 국 | Y49: 1111014800 | Z49: 종로구 | AA49: 계동
A50: =LEFT($B$50,10)&TEXT($D$50,"0")&TEXT($E$50,"0000")&TEXT($F$50,"0000") -> 4480025021100150001 | B50: 4480025021 | D50: 1 | E50: 15 | F50: 1 | G50: 15-1 | H50: 대 | I50: 397 | M50: 홍성군 | N50: 국 | Y50: 1111014900 | Z50: 종로구 | AA50: 원서동
A51: =LEFT($B$51,10)&TEXT($D$51,"0")&TEXT($E$51,"0000")&TEXT($F$51,"0000") -> 4480025021100150003 | B51: 4480025021 | D51: 1 | E51: 15 | F51: 3 | G51: 15-3 | H51: 도 | I51: 43 | M51: 홍성군 | N51: 국 | Y51: 1111015000 | Z51: 종로구 | AA51: 훈정동
A52: =LEFT($B$52,10)&TEXT($D$52,"0")&TEXT($E$52,"0000")&TEXT($F$52,"0000") -> 4480025021100150005 | B52: 4480025021 | D52: 1 | E52: 15 | F52: 5 | G52: 15-5 | H52: 대 | I52: 3 | M52: 홍성군 | N52: 국 | Y52: 1111015100 | Z52: 종로구 | AA52: 묘동
A53: =LEFT($B$53,10)&TEXT($D$53,"0")&TEXT($E$53,"0000")&TEXT($F$53,"0000") -> 4480025021100160001 | B53: 4480025021 | D53: 1 | E53: 16 | F53: 1 | G53: 16-1 | H53: 천 | I53: 79 | M53: 국(국세청) | N53: 국 | Y53: 1111015200 | Z53: 종로구 | AA53: 봉익동
A54: =LEFT($B$54,10)&TEXT($D$54,"0")&TEXT($E$54,"0000")&TEXT($F$54,"0000") -> 4480025021100160002 | B54: 4480025021 | D54: 1 | E54: 16 | F54: 2 | G54: 16-2 | H54: 도 | I54: 69 | M54: 국(기획재정부) | N54: 국 | Y54: 1111015300 | Z54: 종로구 | AA54: 돈의동
A55: =LEFT($B$55,10)&TEXT($D$55,"0")&TEXT($E$55,"0000")&TEXT($F$55,"0000") -> 4480025021100160003 | B55: 4480025021 | D55: 1 | E55: 16 | F55: 3 | G55: 16-3 | H55: 제 | I55: 278 | M55: 국(기획재정부) | N55: 국 | Y55: 1111015400 | Z55: 종로구 | AA55: 장사동
A56: =LEFT($B$56,10)&TEXT($D$56,"0")&TEXT($E$56,"0000")&TEXT($F$56,"0000") -> 4480025021100170001 | B56: 4480025021 | D56: 1 | E56: 17 | F56: 1 | G56: 17-1 | H56: 도 | I56: 76 | M56: 대교리319 | N56: 최병옥 | Y56: 1111015500 | Z56: 종로구 | AA56: 관수동
A57: =LEFT($B$57,10)&TEXT($D$57,"0")&TEXT($E$57,"0000")&TEXT($F$57,"0000") -> 4480025021100170002 | B57: 4480025021 | D57: 1 | E57: 17 | F57: 2 | G57: 17-2 | H57: 대 | I57: 287 | M57: 296-10동성연립21호 | N57: 진정숙 | Y57: 1111015600 | Z57: 종로구 | AA57: 종로3가
A58: =LEFT($B$58,10)&TEXT($D$58,"0")&TEXT($E$58,"0000")&TEXT($F$58,"0000") -> 4480025021100170003 | B58: 4480025021 | D58: 1 | E58: 17 | F58: 3 | G58: 17-3 | H58: 천 | I58: 307 | M58: 국(국세청) | N58: 국 | Y58: 1111015700 | Z58: 종로구 | AA58: 인의동
A59: =LEFT($B$59,10)&TEXT($D$59,"0")&TEXT($E$59,"0000")&TEXT($F$59,"0000") -> 4480025021100170004 | B59: 4480025021 | D59: 1 | E59: 17 | F59: 4 | G59: 17-4 | H59: 제 | I59: 602 | M59: 국(국세청) | N59: 국 | Y59: 1111015800 | Z59: 종로구 | AA59: 예지동
A60: =LEFT($B$60,10)&TEXT($D$60,"0")&TEXT($E$60,"0000")&TEXT($F$60,"0000") -> 4480025021100170005 | B60: 4480025021 | D60: 1 | E60: 17 | F60: 5 | G60: 17-5 | H60: 대 | I60: 126 | M60: 296-10동성연립21호 | N60: 진정숙 | Y60: 1111015900 | Z60: 종로구 | AA60: 원남동
A61: =LEFT($B$61,10)&TEXT($D$61,"0")&TEXT($E$61,"0000")&TEXT($F$61,"0000") -> 4480025021100170006 | B61: 4480025021 | D61: 1 | E61: 17 | F61: 6 | G61: 17-6 | H61: 대 | I61: 288 | M61: 296-10동성연립21호 | N61: 진정숙 | Y61: 1111016000 | Z61: 종로구 | AA61: 연지동
A62: =LEFT($B$62,10)&TEXT($D$62,"0")&TEXT($E$62,"0000")&TEXT($F$62,"0000") -> 4480025021100170007 | B62: 4480025021 | D62: 1 | E62: 17 | F62: 7 | G62: 17-7 | H62: 도 | I62: 436 | M62: 홍성군 | N62: 국 | Y62: 1111016100 | Z62: 종로구 | AA62: 종로4가
A63: =LEFT($B$63,10)&TEXT($D$63,"0")&TEXT($E$63,"0000")&TEXT($F$63,"0000") -> 4480025021100180002 | B63: 4480025021 | D63: 1 | E63: 18 | F63: 2 | G63: 18-2 | H63: 대 | I63: 140 | M63: 홍성군 | N63: 국 | Y63: 1111016200 | Z63: 종로구 | AA63: 효제동
A64: =LEFT($B$64,10)&TEXT($D$64,"0")&TEXT($E$64,"0000")&TEXT($F$64,"0000") -> 4480025021100180003 | B64: 4480025021 | D64: 1 | E64: 18 | F64: 3 | G64: 18-3 | H64: 대 | I64: 93 | M64: 홍성군 | N64: 국 | Y64: 1111016300 | Z64: 종로구 | AA64: 종로5가
A65: =LEFT($B$65,10)&TEXT($D$65,"0")&TEXT($E$65,"0000")&TEXT($F$65,"0000") -> 4480025021100210001 | B65: 4480025021 | D65: 1 | E65: 21 | F65: 1 | G65: 21-1 | H65: 대 | I65: 678 | M65: 대교리643 | N65: 이종문 | Y65: 1111016400 | Z65: 종로구 | AA65: 종로6가
A66: =LEFT($B$66,10)&TEXT($D$66,"0")&TEXT($E$66,"0000")&TEXT($F$66,"0000") -> 4480025021100210002 | B66: 4480025021 | D66: 1 | E66: 21 | F66: 2 | G66: 21-2 | H66: 대 | I66: 261 | M66: 홍성군홍성읍오관리21-2 | N66: 이환웅 | Y66: 1111016500 | Z66: 종로구 | AA66: 이화동
A67: =LEFT($B$67,10)&TEXT($D$67,"0")&TEXT($E$67,"0000")&TEXT($F$67,"0000") -> 4480025021100220002 | B67: 4480025021 | D67: 1 | E67: 22 | F67: 2 | G67: 22-2 | H67: 제 | I67: 241 | M67: 국(건설교통부) | N67: 국 | Y67: 1111016600 | Z67: 종로구 | AA67: 연건동
A68: =LEFT($B$68,10)&TEXT($D$68,"0")&TEXT($E$68,"0000")&TEXT($F$68,"0000") -> 4480025021100220003 | B68: 4480025021 | D68: 1 | E68: 22 | F68: 3 | G68: 22-3 | H68: 천 | I68: 321 | M68: 국(건설교통부) | N68: 국 | Y68: 1111016700 | Z68: 종로구 | AA68: 충신동
A69: =LEFT($B$69,10)&TEXT($D$69,"0")&TEXT($E$69,"0000")&TEXT($F$69,"0000") -> 4480025021100230002 | B69: 4480025021 | D69: 1 | E69: 23 | F69: 2 | G69: 23-2 | H69: 제 | I69: 129 | M69: 국(국세청) | N69: 국 | Y69: 1111016800 | Z69: 종로구 | AA69: 동숭동
A70: =LEFT($B$70,10)&TEXT($D$70,"0")&TEXT($E$70,"0000")&TEXT($F$70,"0000") -> 4480025021100240001 | B70: 4480025021 | D70: 1 | E70: 24 | F70: 1 | G70: 24-1 | H70: 대 | I70: 124 | M70: 홍성군 | N70: 국 | Y70: 1111016900 | Z70: 종로구 | AA70: 혜화동
A71: =LEFT($B$71,10)&TEXT($D$71,"0")&TEXT($E$71,"0000")&TEXT($F$71,"0000") -> 4480025021100240003 | B71: 4480025021 | D71: 1 | E71: 24 | F71: 3 | G71: 24-3 | H71: 대 | I71: 165 | M71: 홍성군 | N71: 국 | Y71: 1111017000 | Z71: 종로구 | AA71: 명륜1가
A72: =LEFT($B$72,10)&TEXT($D$72,"0")&TEXT($E$72,"0000")&TEXT($F$72,"0000") -> 4480025021100240006 | B72: 4480025021 | D72: 1 | E72: 24 | F72: 6 | G72: 24-6 | H72: 대 | I72: 171 | M72: 24-6 | N72: 송민수 | Y72: 1111017100 | Z72: 종로구 | AA72: 명륜2가
A73: =LEFT($B$73,10)&TEXT($D$73,"0")&TEXT($E$73,"0000")&TEXT($F$73,"0000") -> 4480025021100240007 | B73: 4480025021 | D73: 1 | E73: 24 | F73: 7 | G73: 24-7 | H73: 도 | I73: 302 | M73: 홍성군 | N73: 국 | Y73: 1111017200 | Z73: 종로구 | AA73: 명륜4가
A74: =LEFT($B$74,10)&TEXT($D$74,"0")&TEXT($E$74,"0000")&TEXT($F$74,"0000") -> 4480025021100250001 | B74: 4480025021 | D74: 1 | E74: 25 | F74: 1 | G74: 25-1 | H74: 대 | I74: 79 | M74: 홍성군 | N74: 국 | Y74: 1111017300 | Z74: 종로구 | AA74: 명륜3가
A75: =LEFT($B$75,10)&TEXT($D$75,"0")&TEXT($E$75,"0000")&TEXT($F$75,"0000") -> 4480025021100250004 | B75: 4480025021 | D75: 1 | E75: 25 | F75: 4 | G75: 25-4 | H75: 대 | I75: 299 | M75: 홍성군 | N75: 국 | Y75: 1111017400 | Z75: 종로구 | AA75: 창신동
A76: =LEFT($B$76,10)&TEXT($D$76,"0")&TEXT($E$76,"0000")&TEXT($F$76,"0000") -> 4480025021100250006 | B76: 4480025021 | D76: 1 | E76: 25 | F76: 6 | G76: 25-6 | H76: 천 | I76: 101 | M76: 국(기획재정부) | N76: 국 | Y76: 1111017500 | Z76: 종로구 | AA76: 숭인동
A77: =LEFT($B$77,10)&TEXT($D$77,"0")&TEXT($E$77,"0000")&TEXT($F$77,"0000") -> 4480025021100250007 | B77: 4480025021 | D77: 1 | E77: 25 | F77: 7 | G77: 25-7 | H77: 제 | I77: 3 | M77: 국(건설교통부) | N77: 국 | Y77: 1111017600 | Z77: 종로구 | AA77: 교남동
A78: =LEFT($B$78,10)&TEXT($D$78,"0")&TEXT($E$78,"0000")&TEXT($F$78,"0000") -> 4480025021100250008 | B78: 4480025021 | D78: 1 | E78: 25 | F78: 8 | G78: 25-8 | H78: 대 | I78: 30 | M78: 서울시마포구공덕동122-57202호 | N78: 한재범 | Y78: 1111017700 | Z78: 종로구 | AA78: 평동
A79: =LEFT($B$79,10)&TEXT($D$79,"0")&TEXT($E$79,"0000")&TEXT($F$79,"0000") -> 4480025021100250011 | B79: 4480025021 | D79: 1 | E79: 25 | F79: 11 | G79: 25-11 | H79: 대 | I79: 169 | M79: 오관리25-11 | N79: 남철희 | Y79: 1111017800 | Z79: 종로구 | AA79: 송월동
A80: =LEFT($B$80,10)&TEXT($D$80,"0")&TEXT($E$80,"0000")&TEXT($F$80,"0000") -> 4480025021100250012 | B80: 4480025021 | D80: 1 | E80: 25 | F80: 12 | G80: 25-12 | H80: 대 | I80: 169 | M80: 홍성군 | N80: 국 | Y80: 1111017900 | Z80: 종로구 | AA80: 홍파동
A81: =LEFT($B$81,10)&TEXT($D$81,"0")&TEXT($E$81,"0000")&TEXT($F$81,"0000") -> 4480025021100250013 | B81: 4480025021 | D81: 1 | E81: 25 | F81: 13 | G81: 25-13 | H81: 천 | I81: 5 | M81: 국(국세청) | N81: 국 | Y81: 1111018000 | Z81: 종로구 | AA81: 교북동
A82: =LEFT($B$82,10)&TEXT($D$82,"0")&TEXT($E$82,"0000")&TEXT($F$82,"0000") -> 4480025021100260002 | B82: 4480025021 | D82: 1 | E82: 26 | F82: 2 | G82: 26-2 | H82: 도 | I82: 68 | M82: 홍성군 | N82: 국 | Y82: 1111018100 | Z82: 종로구 | AA82: 행촌동
A83: =LEFT($B$83,10)&TEXT($D$83,"0")&TEXT($E$83,"0000")&TEXT($F$83,"0000") -> 4480025021100270001 | B83: 4480025021 | D83: 1 | E83: 27 | F83: 1 | G83: 27-1 | H83: 전 | I83: 552 | M83: 국(기획재정부) | N83: 국 | Y83: 1111018200 | Z83: 종로구 | AA83: 구기동
A84: =LEFT($B$84,10)&TEXT($D$84,"0")&TEXT($E$84,"0000")&TEXT($F$84,"0000") -> 4480025021100270002 | B84: 4480025021 | D84: 1 | E84: 27 | F84: 2 | G84: 27-2 | H84: 천 | I84: 231 | M84: 홍성군 | N84: 국 | Y84: 1111018300 | Z84: 종로구 | AA84: 평창동
A85: =LEFT($B$85,10)&TEXT($D$85,"0")&TEXT($E$85,"0000")&TEXT($F$85,"0000") -> 4480025021100280001 | B85: 4480025021 | D85: 1 | E85: 28 | F85: 1 | G85: 28-1 | H85: 도 | I85: 231 | M85: 홍성군 | N85: 국 | Y85: 1111018400 | Z85: 종로구 | AA85: 부암동
A86: =LEFT($B$86,10)&TEXT($D$86,"0")&TEXT($E$86,"0000")&TEXT($F$86,"0000") -> 4480025021100280003 | B86: 4480025021 | D86: 1 | E86: 28 | F86: 3 | G86: 28-3 | H86: 대 | I86: 130 | M86: 홍성군 | N86: 국 | Y86: 1111018500 | Z86: 종로구 | AA86: 홍지동
A87: =LEFT($B$87,10)&TEXT($D$87,"0")&TEXT($E$87,"0000")&TEXT($F$87,"0000") -> 4480025021100280004 | B87: 4480025021 | D87: 1 | E87: 28 | F87: 4 | G87: 28-4 | H87: 대 | I87: 98 | M87: 홍성군 | N87: 국 | Y87: 1111018600 | Z87: 종로구 | AA87: 신영동
A88: =LEFT($B$88,10)&TEXT($D$88,"0")&TEXT($E$88,"0000")&TEXT($F$88,"0000") -> 4480025021100280006 | B88: 4480025021 | D88: 1 | E88: 28 | F88: 6 | G88: 28-6 | H88: 도 | I88: 115 | M88: 홍성군 | N88: 국 | Y88: 1111018700 | Z88: 종로구 | AA88: 무악동
A89: =LEFT($B$89,10)&TEXT($D$89,"0")&TEXT($E$89,"0000")&TEXT($F$89,"0000") -> 4480025021100290001 | B89: 4480025021 | D89: 1 | E89: 29 | F89: 1 | G89: 29-1 | H89: 대 | I89: 95 | M89: 홍성군 | N89: 국 | Y89: 1114010100 | Z89: 중구 | AA89: 무교동
A90: =LEFT($B$90,10)&TEXT($D$90,"0")&TEXT($E$90,"0000")&TEXT($F$90,"0000") -> 4480025021100290003 | B90: 4480025021 | D90: 1 | E90: 29 | F90: 3 | G90: 29-3 | H90: 대 | I90: 4 | M90: 홍성군 | N90: 국 | Y90: 1114010200 | Z90: 중구 | AA90: 다동
A91: =LEFT($B$91,10)&TEXT($D$91,"0")&TEXT($E$91,"0000")&TEXT($F$91,"0000") -> 4480025021100300000 | B91: 4480025021 | D91: 1 | E91: 30 | F91: 0 | G91: 30 | H91: 대 | I91: 298 | M91: 홍성군 | N91: 국 | Y91: 1114010300 | Z91: 중구 | AA91: 태평로1가
A92: =LEFT($B$92,10)&TEXT($D$92,"0")&TEXT($E$92,"0000")&TEXT($F$92,"0000") -> 4480025021100300001 | B92: 4480025021 | D92: 1 | E92: 30 | F92: 1 | G92: 30-1 | H92: 도 | I92: 22 | M92: 홍성군 | N92: 국 | Y92: 1114010400 | Z92: 중구 | AA92: 을지로1가
A93: =LEFT($B$93,10)&TEXT($D$93,"0")&TEXT($E$93,"0000")&TEXT($F$93,"0000") -> 4480025021100300002 | B93: 4480025021 | D93: 1 | E93: 30 | F93: 2 | G93: 30-2 | H93: 대 | I93: 279 | M93: 홍성군 | N93: 국 | Y93: 1114010500 | Z93: 중구 | AA93: 을지로2가
A94: =LEFT($B$94,10)&TEXT($D$94,"0")&TEXT($E$94,"0000")&TEXT($F$94,"0000") -> 4480025021100310000 | B94: 4480025021 | D94: 1 | E94: 31 | F94: 0 | G94: 31 | H94: 대 | I94: 149 | M94: 홍성군 | N94: 국 | Y94: 1114010600 | Z94: 중구 | AA94: 남대문로1가
A95: =LEFT($B$95,10)&TEXT($D$95,"0")&TEXT($E$95,"0000")&TEXT($F$95,"0000") -> 4480025021100310002 | B95: 4480025021 | D95: 1 | E95: 31 | F95: 2 | G95: 31-2 | H95: 도 | I95: 433 | M95: 홍성군 | N95: 국 | Y95: 1114010700 | Z95: 중구 | AA95: 삼각동
A96: =LEFT($B$96,10)&TEXT($D$96,"0")&TEXT($E$96,"0000")&TEXT($F$96,"0000") -> 4480025021100310003 | B96: 4480025021 | D96: 1 | E96: 31 | F96: 3 | G96: 31-3 | H96: 도 | I96: 18 | M96: 홍성군 | N96: 국 | Y96: 1114010800 | Z96: 중구 | AA96: 수하동
A97: =LEFT($B$97,10)&TEXT($D$97,"0")&TEXT($E$97,"0000")&TEXT($F$97,"0000") -> 4480025021100330001 | B97: 4480025021 | D97: 1 | E97: 33 | F97: 1 | G97: 33-1 | H97: 대 | I97: 281 | M97: 서울시마포구공덕동122-57202호 | N97: 한재범 | Y97: 1114010900 | Z97: 중구 | AA97: 장교동
A98: =LEFT($B$98,10)&TEXT($D$98,"0")&TEXT($E$98,"0000")&TEXT($F$98,"0000") -> 4480025021100330002 | B98: 4480025021 | D98: 1 | E98: 33 | F98: 2 | G98: 33-2 | H98: 대 | I98: 836 | M98: 서울특별시서초구동산로8길63-9202호(양재동) | N98: 김태완 | Y98: 1114011000 | Z98: 중구 | AA98: 수표동
A99: =LEFT($B$99,10)&TEXT($D$99,"0")&TEXT($E$99,"0000")&TEXT($F$99,"0000") -> 4480025021100330003 | B99: 4480025021 | D99: 1 | E99: 33 | F99: 3 | G99: 33-3 | H99: 대 | I99: 400 | M99: 홍성군 | N99: 국 | Y99: 1114011100 | Z99: 중구 | AA99: 소공동
A100: =LEFT($B$100,10)&TEXT($D$100,"0")&TEXT($E$100,"0000")&TEXT($F$100,"0000") -> 4480025021100330004 | B100: 4480025021 | D100: 1 | E100: 33 | F100: 4 | G100: 33-4 | H100: 대 | I100: 172 | M100: 오관리33 | N100: 박광신 | Y100: 1114011200 | Z100: 중구 | AA100: 남창동
A101: =LEFT($B$101,10)&TEXT($D$101,"0")&TEXT($E$101,"0000")&TEXT($F$101,"0000") -> 4480025021100330006 | B101: 4480025021 | D101: 1 | E101: 33 | F101: 6 | G101: 33-6 | H101: 도 | I101: 33 | M101: 국(건설부) | N101: 국 | Y101: 1114011300 | Z101: 중구 | AA101: 북창동
A102: =LEFT($B$102,10)&TEXT($D$102,"0")&TEXT($E$102,"0000")&TEXT($F$102,"0000") -> 4480025021100330007 | B102: 4480025021 | D102: 1 | E102: 33 | F102: 7 | G102: 33-7 | H102: 대 | I102: 19 | M102: 홍성군 | N102: 국 | Y102: 1114011400 | Z102: 중구 | AA102: 태평로2가
A103: =LEFT($B$103,10)&TEXT($D$103,"0")&TEXT($E$103,"0000")&TEXT($F$103,"0000") -> 4480025021100340002 | B103: 4480025021 | D103: 1 | E103: 34 | F103: 2 | G103: 34-2 | H103: 대 | I103: 241 | M103: 홍성군 | N103: 국 | Y103: 1114011500 | Z103: 중구 | AA103: 남대문로2가
A104: =LEFT($B$104,10)&TEXT($D$104,"0")&TEXT($E$104,"0000")&TEXT($F$104,"0000") -> 4480025021100340003 | B104: 4480025021 | D104: 1 | E104: 34 | F104: 3 | G104: 34-3 | H104: 대 | I104: 50 | M104: 홍성군 | N104: 국 | Y104: 1114011600 | Z104: 중구 | AA104: 남대문로3가
A105: =LEFT($B$105,10)&TEXT($D$105,"0")&TEXT($E$105,"0000")&TEXT($F$105,"0000") -> 4480025021100340005 | B105: 4480025021 | D105: 1 | E105: 34 | F105: 5 | G105: 34-5 | H105: 대 | I105: 40 | M105: 홍성군 | N105: 국 | Y105: 1114011700 | Z105: 중구 | AA105: 남대문로4가
A106: =LEFT($B$106,10)&TEXT($D$106,"0")&TEXT($E$106,"0000")&TEXT($F$106,"0000") -> 4480025021100350002 | B106: 4480025021 | D106: 1 | E106: 35 | F106: 2 | G106: 35-2 | H106: 대 | I106: 139 | M106: 대전광역시서구가장동55삼성래미안아파트112-1903 | N106: 주진광 | Y106: 1114011800 | Z106: 중구 | AA106: 남대문로5가
A107: =LEFT($B$107,10)&TEXT($D$107,"0")&TEXT($E$107,"0000")&TEXT($F$107,"0000") -> 4480025021100360000 | B107: 4480025021 | D107: 1 | E107: 36 | F107: 0 | G107: 36 | H107: 대 | I107: 274 | M107: 오관리36 | N107: 김흥석 | Y107: 1114011900 | Z107: 중구 | AA107: 봉래동1가
A108: =LEFT($B$108,10)&TEXT($D$108,"0")&TEXT($E$108,"0000")&TEXT($F$108,"0000") -> 4480025021100400000 | B108: 4480025021 | D108: 1 | E108: 40 | F108: 0 | G108: 40 | H108: 대 | I108: 128 | M108: 홍성군 | N108: 국 | Y108: 1114012000 | Z108: 중구 | AA108: 봉래동2가
A109: =LEFT($B$109,10)&TEXT($D$109,"0")&TEXT($E$109,"0000")&TEXT($F$109,"0000") -> 4480025021100410002 | B109: 4480025021 | D109: 1 | E109: 41 | F109: 2 | G109: 41-2 | H109: 대 | I109: 21 | M109: 홍성군 | N109: 국 | Y109: 1114012100 | Z109: 중구 | AA109: 회현동1가
A110: =LEFT($B$110,10)&TEXT($D$110,"0")&TEXT($E$110,"0000")&TEXT($F$110,"0000") -> 4480025021100420002 | B110: 4480025021 | D110: 1 | E110: 42 | F110: 2 | G110: 42-2 | H110: 대 | I110: 59 | M110: 42-2 | N110: 복기표 | Y110: 1114012200 | Z110: 중구 | AA110: 회현동2가
A111: =LEFT($B$111,10)&TEXT($D$111,"0")&TEXT($E$111,"0000")&TEXT($F$111,"0000") -> 4480025021100420003 | B111: 4480025021 | D111: 1 | E111: 42 | F111: 3 | G111: 42-3 | H111: 대 | I111: 31 | M111: 홍성군 | N111: 국 | Y111: 1114012300 | Z111: 중구 | AA111: 회현동3가
A112: =LEFT($B$112,10)&TEXT($D$112,"0")&TEXT($E$112,"0000")&TEXT($F$112,"0000") -> 4480025021100420005 | B112: 4480025021 | D112: 1 | E112: 42 | F112: 5 | G112: 42-5 | H112: 도 | I112: 530 | M112: 홍성군 | N112: 국 | Y112: 1114012400 | Z112: 중구 | AA112: 충무로1가
A113: =LEFT($B$113,10)&TEXT($D$113,"0")&TEXT($E$113,"0000")&TEXT($F$113,"0000") -> 4480025021100430000 | B113: 4480025021 | D113: 1 | E113: 43 | F113: 0 | G113: 43 | H113: 대 | I113: 403 | M113: 충청남도홍성군홍성읍조양로103번길13 | N113: 강순옥 | Y113: 1114012500 | Z113: 중구 | AA113: 충무로2가
A114: =LEFT($B$114,10)&TEXT($D$114,"0")&TEXT($E$114,"0000")&TEXT($F$114,"0000") -> 4480025021100430001 | B114: 4480025021 | D114: 1 | E114: 43 | F114: 1 | G114: 43-1 | H114: 대 | I114: 1 | M114: 충청남도홍성군홍성읍조양로103번길13 | N114: 강순옥 | Y114: 1114012600 | Z114: 중구 | AA114: 명동1가
A115: =LEFT($B$115,10)&TEXT($D$115,"0")&TEXT($E$115,"0000")&TEXT($F$115,"0000") -> 4480025021100440001 | B115: 4480025021 | D115: 1 | E115: 44 | F115: 1 | G115: 44-1 | H115: 도 | I115: 50 | M115: 국(기획재정부) | N115: 국 | Y115: 1114012700 | Z115: 중구 | AA115: 명동2가
A116: =LEFT($B$116,10)&TEXT($D$116,"0")&TEXT($E$116,"0000")&TEXT($F$116,"0000") -> 4480025021100450003 | B116: 4480025021 | D116: 1 | E116: 45 | F116: 3 | G116: 45-3 | H116: 대 | I116: 11 | M116: 홍성군 | N116: 국 | Y116: 1114012800 | Z116: 중구 | AA116: 남산동1가
A117: =LEFT($B$117,10)&TEXT($D$117,"0")&TEXT($E$117,"0000")&TEXT($F$117,"0000") -> 4480025021100450008 | B117: 4480025021 | D117: 1 | E117: 45 | F117: 8 | G117: 45-8 | H117: 도 | I117: 158 | M117: 홍성군 | N117: 국 | Y117: 1114012900 | Z117: 중구 | AA117: 남산동2가
A118: =LEFT($B$118,10)&TEXT($D$118,"0")&TEXT($E$118,"0000")&TEXT($F$118,"0000") -> 4480025021100460000 | B118: 4480025021 | D118: 1 | E118: 46 | F118: 0 | G118: 46 | H118: 대 | I118: 1073 | M118: 165-3 | N118: 조수형 | Y118: 1114013000 | Z118: 중구 | AA118: 남산동3가
A119: =LEFT($B$119,10)&TEXT($D$119,"0")&TEXT($E$119,"0000")&TEXT($F$119,"0000") -> 4480025021100460001 | B119: 4480025021 | D119: 1 | E119: 46 | F119: 1 | G119: 46-1 | H119: 도 | I119: 302 | M119: 홍성군 | N119: 국 | Y119: 1114013100 | Z119: 중구 | AA119: 저동1가
A120: =LEFT($B$120,10)&TEXT($D$120,"0")&TEXT($E$120,"0000")&TEXT($F$120,"0000") -> 4480025021100460003 | B120: 4480025021 | D120: 1 | E120: 46 | F120: 3 | G120: 46-3 | H120: 대 | I120: 59 | M120: 165-3 | N120: 조수형 | Y120: 1114013200 | Z120: 중구 | AA120: 충무로4가
A121: =LEFT($B$121,10)&TEXT($D$121,"0")&TEXT($E$121,"0000")&TEXT($F$121,"0000") -> 4480025021100470001 | B121: 4480025021 | D121: 1 | E121: 47 | F121: 1 | G121: 47-1 | H121: 대 | I121: 105 | M121: 47-1 | N121: 조기형 | Y121: 1114013300 | Z121: 중구 | AA121: 충무로5가
A122: =LEFT($B$122,10)&TEXT($D$122,"0")&TEXT($E$122,"0000")&TEXT($F$122,"0000") -> 4480025021100480003 | B122: 4480025021 | D122: 1 | E122: 48 | F122: 3 | G122: 48-3 | H122: 대 | I122: 221 | M122: 48-3 | N122: 장태선 | Y122: 1114013400 | Z122: 중구 | AA122: 인현동2가
A123: =LEFT($B$123,10)&TEXT($D$123,"0")&TEXT($E$123,"0000")&TEXT($F$123,"0000") -> 4480025021100490000 | B123: 4480025021 | D123: 1 | E123: 49 | F123: 0 | G123: 49 | H123: 대 | I123: 136 | M123: 49 | N123: 김순석 | Y123: 1114013500 | Z123: 중구 | AA123: 예관동
A124: =LEFT($B$124,10)&TEXT($D$124,"0")&TEXT($E$124,"0000")&TEXT($F$124,"0000") -> 4480025021100510002 | B124: 4480025021 | D124: 1 | E124: 51 | F124: 2 | G124: 51-2 | H124: 대 | I124: 33 | M124: 홍성군 | N124: 국 | Y124: 1114013600 | Z124: 중구 | AA124: 묵정동
A125: =LEFT($B$125,10)&TEXT($D$125,"0")&TEXT($E$125,"0000")&TEXT($F$125,"0000") -> 4480025021100510003 | B125: 4480025021 | D125: 1 | E125: 51 | F125: 3 | G125: 51-3 | H125: 대 | I125: 12 | M125: 홍성군 | N125: 국 | Y125: 1114013700 | Z125: 중구 | AA125: 필동1가
A126: =LEFT($B$126,10)&TEXT($D$126,"0")&TEXT($E$126,"0000")&TEXT($F$126,"0000") -> 4480025021100510005 | B126: 4480025021 | D126: 1 | E126: 51 | F126: 5 | G126: 51-5 | H126: 도 | I126: 512 | M126: 홍성군 | N126: 국 | Y126: 1114013800 | Z126: 중구 | AA126: 필동2가
A127: =LEFT($B$127,10)&TEXT($D$127,"0")&TEXT($E$127,"0000")&TEXT($F$127,"0000") -> 4480025021100530001 | B127: 4480025021 | D127: 1 | E127: 53 | F127: 1 | G127: 53-1 | H127: 대 | I127: 124 | M127: 충청남도홍성군홍성읍오관리50 | N127: 김종웅 | Y127: 1114013900 | Z127: 중구 | AA127: 필동3가
A128: =LEFT($B$128,10)&TEXT($D$128,"0")&TEXT($E$128,"0000")&TEXT($F$128,"0000") -> 4480025021100530005 | B128: 4480025021 | D128: 1 | E128: 53 | F128: 5 | G128: 53-5 | H128: 대 | I128: 17 | M128: 충청남도홍성군홍성읍충서로1159번길26-1 | N128: 박옥숙 | Y128: 1114014000 | Z128: 중구 | AA128: 남학동
A129: =LEFT($B$129,10)&TEXT($D$129,"0")&TEXT($E$129,"0000")&TEXT($F$129,"0000") -> 4480025021100540008 | B129: 4480025021 | D129: 1 | E129: 54 | F129: 8 | G129: 54-8 | H129: 대 | I129: 99 | M129: 충청남도(교육감) | N129: 국 | Y129: 1114014100 | Z129: 중구 | AA129: 주자동
A130: =LEFT($B$130,10)&TEXT($D$130,"0")&TEXT($E$130,"0000")&TEXT($F$130,"0000") -> 4480025021100560000 | B130: 4480025021 | D130: 1 | E130: 56 | F130: 0 | G130: 56 | H130: 학 | I130: 1706 | M130: 충청남도(교육감) | N130: 국 | Y130: 1114014200 | Z130: 중구 | AA130: 예장동
A131: =LEFT($B$131,10)&TEXT($D$131,"0")&TEXT($E$131,"0000")&TEXT($F$131,"0000") -> 4480025021100800009 | B131: 4480025021 | D131: 1 | E131: 80 | F131: 9 | G131: 80-9 | H131: 대 | I131: 4 | M131: 45 | N131: 홍규진 | Y131: 1114014300 | Z131: 중구 | AA131: 장충동1가
A132: =LEFT($B$132,10)&TEXT($D$132,"0")&TEXT($E$132,"0000")&TEXT($F$132,"0000") -> 4480025021100800010 | B132: 4480025021 | D132: 1 | E132: 80 | F132: 10 | G132: 80-10 | H132: 도 | I132: 22 | M132: 홍성군 | N132: 국 | Y132: 1114014400 | Z132: 중구 | AA132: 장충동2가
A133: =LEFT($B$133,10)&TEXT($D$133,"0")&TEXT($E$133,"0000")&TEXT($F$133,"0000") -> 4480025021100820000 | B133: 4480025021 | D133: 1 | E133: 82 | F133: 0 | G133: 82 | H133: 대 | I133: 166 | M133: 충청남도홍성군홍북면홍학로88112동1003호(한울마을모아엘가아파트) | N133: 이영화 | Y133: 1114014500 | Z133: 중구 | AA133: 광희동1가
A134: =LEFT($B$134,10)&TEXT($D$134,"0")&TEXT($E$134,"0000")&TEXT($F$134,"0000") -> 4480025021100830000 | B134: 4480025021 | D134: 1 | E134: 83 | F134: 0 | G134: 83 | H134: 대 | I134: 165 | M134: 광천읍광천리205 | N134: 오명석 | Y134: 1114014600 | Z134: 중구 | AA134: 광희동2가
A135: =LEFT($B$135,10)&TEXT($D$135,"0")&TEXT($E$135,"0000")&TEXT($F$135,"0000") -> 4480025021100840002 | B135: 4480025021 | D135: 1 | E135: 84 | F135: 2 | G135: 84-2 | H135: 대 | I135: 311 | M135: 충청남도홍성군홍성읍조양로106 | N135: 김상호 | Y135: 1114014700 | Z135: 중구 | AA135: 쌍림동
A136: =LEFT($B$136,10)&TEXT($D$136,"0")&TEXT($E$136,"0000")&TEXT($F$136,"0000") -> 4480025021100850001 | B136: 4480025021 | D136: 1 | E136: 85 | F136: 1 | G136: 85-1 | H136: 대 | I136: 50 | M136: 국(기획재정부) | N136: 국 | Y136: 1114014800 | Z136: 중구 | AA136: 을지로6가
A137: =LEFT($B$137,10)&TEXT($D$137,"0")&TEXT($E$137,"0000")&TEXT($F$137,"0000") -> 4480025021100850002 | B137: 4480025021 | D137: 1 | E137: 85 | F137: 2 | G137: 85-2 | H137: 대 | I137: 195 | M137: 충청남도홍성군홍성읍오관리85-2 | N137: 주정예 | Y137: 1114014900 | Z137: 중구 | AA137: 을지로7가
A138: =LEFT($B$138,10)&TEXT($D$138,"0")&TEXT($E$138,"0000")&TEXT($F$138,"0000") -> 4480025021100860000 | B138: 4480025021 | D138: 1 | E138: 86 | F138: 0 | G138: 86 | H138: 대 | I138: 3590 | M138: 홍성군 | N138: 국 | Y138: 1114015000 | Z138: 중구 | AA138: 을지로4가
A139: =LEFT($B$139,10)&TEXT($D$139,"0")&TEXT($E$139,"0000")&TEXT($F$139,"0000") -> 4480025021100880001 | B139: 4480025021 | D139: 1 | E139: 88 | F139: 1 | G139: 88-1 | H139: 대 | I139: 102 | M139: 88-2 | N139: 전란영 | Y139: 1114015100 | Z139: 중구 | AA139: 을지로5가
A140: =LEFT($B$140,10)&TEXT($D$140,"0")&TEXT($E$140,"0000")&TEXT($F$140,"0000") -> 4480025021100880002 | B140: 4480025021 | D140: 1 | E140: 88 | F140: 2 | G140: 88-2 | H140: 대 | I140: 311 | M140: 88-2 | N140: 전란영 | Y140: 1114015200 | Z140: 중구 | AA140: 주교동
A141: =LEFT($B$141,10)&TEXT($D$141,"0")&TEXT($E$141,"0000")&TEXT($F$141,"0000") -> 4480025021100890001 | B141: 4480025021 | D141: 1 | E141: 89 | F141: 1 | G141: 89-1 | H141: 대 | I141: 13 | M141: 국(기획재정부) | N141: 국 | Y141: 1114015300 | Z141: 중구 | AA141: 방산동
A142: =LEFT($B$142,10)&TEXT($D$142,"0")&TEXT($E$142,"0000")&TEXT($F$142,"0000") -> 4480025021100890002 | B142: 4480025021 | D142: 1 | E142: 89 | F142: 2 | G142: 89-2 | H142: 대 | I142: 40 | M142: 국(기획재정부) | N142: 국 | Y142: 1114015400 | Z142: 중구 | AA142: 오장동
A143: =LEFT($B$143,10)&TEXT($D$143,"0")&TEXT($E$143,"0000")&TEXT($F$143,"0000") -> 4480025021100890004 | B143: 4480025021 | D143: 1 | E143: 89 | F143: 4 | G143: 89-4 | H143: 대 | I143: 10 | M143: 홍성군 | N143: 국 | Y143: 1114015500 | Z143: 중구 | AA143: 을지로3가
A144: =LEFT($B$144,10)&TEXT($D$144,"0")&TEXT($E$144,"0000")&TEXT($F$144,"0000") -> 4480025021100890005 | B144: 4480025021 | D144: 1 | E144: 89 | F144: 5 | G144: 89-5 | H144: 대 | I144: 365 | M144: 충청남도예산군덕산면홍덕서로380-24 | N144: 인영희 | Y144: 1114015600 | Z144: 중구 | AA144: 입정동
A145: =LEFT($B$145,10)&TEXT($D$145,"0")&TEXT($E$145,"0000")&TEXT($F$145,"0000") -> 4480025021100900002 | B145: 4480025021 | D145: 1 | E145: 90 | F145: 2 | G145: 90-2 | H145: 대 | I145: 754 | M145: 홍성군 | N145: 국 | Y145: 1114015700 | Z145: 중구 | AA145: 산림동
A146: =LEFT($B$146,10)&TEXT($D$146,"0")&TEXT($E$146,"0000")&TEXT($F$146,"0000") -> 4480025021100900003 | B146: 4480025021 | D146: 1 | E146: 90 | F146: 3 | G146: 90-3 | H146: 대 | I146: 13 | M146: 89-3 | N146: 최원상 | Y146: 1114015800 | Z146: 중구 | AA146: 충무로3가
A147: =LEFT($B$147,10)&TEXT($D$147,"0")&TEXT($E$147,"0000")&TEXT($F$147,"0000") -> 4480025021100900005 | B147: 4480025021 | D147: 1 | E147: 90 | F147: 5 | G147: 90-5 | H147: 대 | I147: 63 | M147: 국(기획재정부) | N147: 국 | Y147: 1114015900 | Z147: 중구 | AA147: 초동
A148: =LEFT($B$148,10)&TEXT($D$148,"0")&TEXT($E$148,"0000")&TEXT($F$148,"0000") -> 4480025021100900006 | B148: 4480025021 | D148: 1 | E148: 90 | F148: 6 | G148: 90-6 | H148: 대 | I148: 281 | M148: 홍성군 | N148: 국 | Y148: 1114016000 | Z148: 중구 | AA148: 인현동1가
A149: =LEFT($B$149,10)&TEXT($D$149,"0")&TEXT($E$149,"0000")&TEXT($F$149,"0000") -> 4480025021100920000 | B149: 4480025021 | D149: 1 | E149: 92 | F149: 0 | G149: 92 | H149: 전 | I149: 179 | M149: 80-5 | N149: 대한예수교장로회홍성중앙교회(합동측) | Y149: 1114016100 | Z149: 중구 | AA149: 저동2가
A150: =LEFT($B$150,10)&TEXT($D$150,"0")&TEXT($E$150,"0000")&TEXT($F$150,"0000") -> 4480025021100930001 | B150: 4480025021 | D150: 1 | E150: 93 | F150: 1 | G150: 93-1 | H150: 대 | I150: 1143 | M150: 홍성군 | N150: 국 | Y150: 1114016200 | Z150: 중구 | AA150: 신당동
A151: =LEFT($B$151,10)&TEXT($D$151,"0")&TEXT($E$151,"0000")&TEXT($F$151,"0000") -> 4480025021100960000 | B151: 4480025021 | D151: 1 | E151: 96 | F151: 0 | G151: 96 | H151: 학 | I151: 575 | M151: 충청남도(교육감) | N151: 국 | Y151: 1114016300 | Z151: 중구 | AA151: 흥인동
A152: =LEFT($B$152,10)&TEXT($D$152,"0")&TEXT($E$152,"0000")&TEXT($F$152,"0000") -> 4480025021100980000 | B152: 4480025021 | D152: 1 | E152: 98 | F152: 0 | G152: 98 | H152: 대 | I152: 15301 | M152: 홍성군 | N152: 국 | Y152: 1114016400 | Z152: 중구 | AA152: 무학동
A153: =LEFT($B$153,10)&TEXT($D$153,"0")&TEXT($E$153,"0000")&TEXT($F$153,"0000") -> 4480025021101040002 | B153: 4480025021 | D153: 1 | E153: 104 | F153: 2 | G153: 104-2 | H153: 대 | I153: 519 | M153: 홍성군 | N153: 국 | Y153: 1114016500 | Z153: 중구 | AA153: 황학동
A154: =LEFT($B$154,10)&TEXT($D$154,"0")&TEXT($E$154,"0000")&TEXT($F$154,"0000") -> 4480025021101040003 | B154: 4480025021 | D154: 1 | E154: 104 | F154: 3 | G154: 104-3 | H154: 대 | I154: 436 | M154: 홍성군 | N154: 국 | Y154: 1114016600 | Z154: 중구 | AA154: 서소문동
A155: =LEFT($B$155,10)&TEXT($D$155,"0")&TEXT($E$155,"0000")&TEXT($F$155,"0000") -> 4480025021101040006 | B155: 4480025021 | D155: 1 | E155: 104 | F155: 6 | G155: 104-6 | H155: 대 | I155: 142 | M155: 홍성군 | N155: 국 | Y155: 1114016700 | Z155: 중구 | AA155: 정동
A156: =LEFT($B$156,10)&TEXT($D$156,"0")&TEXT($E$156,"0000")&TEXT($F$156,"0000") -> 4480025021101040007 | B156: 4480025021 | D156: 1 | E156: 104 | F156: 7 | G156: 104-7 | H156: 대 | I156: 291 | M156: 홍성군 | N156: 국 | Y156: 1114016800 | Z156: 중구 | AA156: 순화동
A157: =LEFT($B$157,10)&TEXT($D$157,"0")&TEXT($E$157,"0000")&TEXT($F$157,"0000") -> 4480025021101040008 | B157: 4480025021 | D157: 1 | E157: 104 | F157: 8 | G157: 104-8 | H157: 대 | I157: 165 | M157: 홍성군 | N157: 국 | Y157: 1114016900 | Z157: 중구 | AA157: 의주로1가
A158: =LEFT($B$158,10)&TEXT($D$158,"0")&TEXT($E$158,"0000")&TEXT($F$158,"0000") -> 4480025021101040011 | B158: 4480025021 | D158: 1 | E158: 104 | F158: 11 | G158: 104-11 | H158: 대 | I158: 205 | M158: 홍성군 | N158: 국 | Y158: 1114017000 | Z158: 중구 | AA158: 충정로1가
A159: =LEFT($B$159,10)&TEXT($D$159,"0")&TEXT($E$159,"0000")&TEXT($F$159,"0000") -> 4480025021101050002 | B159: 4480025021 | D159: 1 | E159: 105 | F159: 2 | G159: 105-2 | H159: 대 | I159: 4480 | M159: 국(문화재청) | N159: 국 | Y159: 1114017100 | Z159: 중구 | AA159: 중림동
A160: =LEFT($B$160,10)&TEXT($D$160,"0")&TEXT($E$160,"0000")&TEXT($F$160,"0000") -> 4480025021101050011 | B160: 4480025021 | D160: 1 | E160: 105 | F160: 11 | G160: 105-11 | H160: 대 | I160: 455 | M160: 국(문화재청) | N160: 국 | Y160: 1114017200 | Z160: 중구 | AA160: 의주로2가
A161: =LEFT($B$161,10)&TEXT($D$161,"0")&TEXT($E$161,"0000")&TEXT($F$161,"0000") -> 4480025021101050012 | B161: 4480025021 | D161: 1 | E161: 105 | F161: 12 | G161: 105-12 | H161: 전 | I161: 179 | M161: 홍성군 | N161: 국 | Y161: 1114017300 | Z161: 중구 | AA161: 만리동1가
A162: =LEFT($B$162,10)&TEXT($D$162,"0")&TEXT($E$162,"0000")&TEXT($F$162,"0000") -> 4480025021101060002 | B162: 4480025021 | D162: 1 | E162: 106 | F162: 2 | G162: 106-2 | H162: 도 | I162: 2 | M162: 국(건설부) | N162: 국 | Y162: 1114017400 | Z162: 중구 | AA162: 만리동2가
A163: =LEFT($B$163,10)&TEXT($D$163,"0")&TEXT($E$163,"0000")&TEXT($F$163,"0000") -> 4480025021101070008 | B163: 4480025021 | D163: 1 | E163: 107 | F163: 8 | G163: 107-8 | H163: 대 | I163: 26 | M163: 홍성군 | N163: 국 | Y163: 1117010100 | Z163: 용산구 | AA163: 후암동
A164: =LEFT($B$164,10)&TEXT($D$164,"0")&TEXT($E$164,"0000")&TEXT($F$164,"0000") -> 4480025021101070010 | B164: 4480025021 | D164: 1 | E164: 107 | F164: 10 | G164: 107-10 | H164: 대 | I164: 169 | M164: 홍성군 | N164: 국 | Y164: 1117010200 | Z164: 용산구 | AA164: 용산동2가
A165: =LEFT($B$165,10)&TEXT($D$165,"0")&TEXT($E$165,"0000")&TEXT($F$165,"0000") -> 4480025021101080000 | B165: 4480025021 | D165: 1 | E165: 108 | F165: 0 | G165: 108 | H165: 대 | I165: 9505 | M165: 국(문화재청) | N165: 국 | Y165: 1117010300 | Z165: 용산구 | AA165: 용산동4가
A166: =LEFT($B$166,10)&TEXT($D$166,"0")&TEXT($E$166,"0000")&TEXT($F$166,"0000") -> 4480025021101090001 | B166: 4480025021 | D166: 1 | E166: 109 | F166: 1 | G166: 109-1 | H166: 대 | I166: 142 | M166: 홍성군 | N166: 국 | Y166: 1117010400 | Z166: 용산구 | AA166: 갈월동
A167: =LEFT($B$167,10)&TEXT($D$167,"0")&TEXT($E$167,"0000")&TEXT($F$167,"0000") -> 4480025021101090004 | B167: 4480025021 | D167: 1 | E167: 109 | F167: 4 | G167: 109-4 | H167: 대 | I167: 13 | M167: 홍성군 | N167: 국 | Y167: 1117010500 | Z167: 용산구 | AA167: 남영동
A168: =LEFT($B$168,10)&TEXT($D$168,"0")&TEXT($E$168,"0000")&TEXT($F$168,"0000") -> 4480025021101090006 | B168: 4480025021 | D168: 1 | E168: 109 | F168: 6 | G168: 109-6 | H168: 대 | I168: 10 | M168: 홍성군 | N168: 국 | Y168: 1117010600 | Z168: 용산구 | AA168: 용산동1가
A169: =LEFT($B$169,10)&TEXT($D$169,"0")&TEXT($E$169,"0000")&TEXT($F$169,"0000") -> 4480025021101090007 | B169: 4480025021 | D169: 1 | E169: 109 | F169: 7 | G169: 109-7 | H169: 대 | I169: 79 | M169: 홍성군 | N169: 국 | Y169: 1117010700 | Z169: 용산구 | AA169: 동자동
A170: =LEFT($B$170,10)&TEXT($D$170,"0")&TEXT($E$170,"0000")&TEXT($F$170,"0000") -> 4480025021101090009 | B170: 4480025021 | D170: 1 | E170: 109 | F170: 9 | G170: 109-9 | H170: 대 | I170: 60 | M170: 홍성군 | N170: 국 | Y170: 1117010800 | Z170: 용산구 | AA170: 서계동
A171: =LEFT($B$171,10)&TEXT($D$171,"0")&TEXT($E$171,"0000")&TEXT($F$171,"0000") -> 4480025021101090010 | B171: 4480025021 | D171: 1 | E171: 109 | F171: 10 | G171: 109-10 | H171: 대 | I171: 17 | M171: 홍성군 | N171: 국 | Y171: 1117010900 | Z171: 용산구 | AA171: 청파동1가
A172: =LEFT($B$172,10)&TEXT($D$172,"0")&TEXT($E$172,"0000")&TEXT($F$172,"0000") -> 4480025021101100002 | B172: 4480025021 | D172: 1 | E172: 110 | F172: 2 | G172: 110-2 | H172: 도 | I172: 410 | M172: 국(건설부) | N172: 국 | Y172: 1117011000 | Z172: 용산구 | AA172: 청파동2가
A173: =LEFT($B$173,10)&TEXT($D$173,"0")&TEXT($E$173,"0000")&TEXT($F$173,"0000") -> 4480025021101100004 | B173: 4480025021 | D173: 1 | E173: 110 | F173: 4 | G173: 110-4 | H173: 도 | I173: 40 | M173: 홍성군 | N173: 국 | Y173: 1117011100 | Z173: 용산구 | AA173: 청파동3가
A174: =LEFT($B$174,10)&TEXT($D$174,"0")&TEXT($E$174,"0000")&TEXT($F$174,"0000") -> 4480025021101100007 | B174: 4480025021 | D174: 1 | E174: 110 | F174: 7 | G174: 110-7 | H174: 도 | I174: 159 | M174: 장곡면행정리110 | N174: 하병수 | Y174: 1117011200 | Z174: 용산구 | AA174: 원효로1가
A175: =LEFT($B$175,10)&TEXT($D$175,"0")&TEXT($E$175,"0000")&TEXT($F$175,"0000") -> 4480025021101100008 | B175: 4480025021 | D175: 1 | E175: 110 | F175: 8 | G175: 110-8 | H175: 대 | I175: 76 | M175: 홍성군 | N175: 국 | Y175: 1117011300 | Z175: 용산구 | AA175: 원효로2가
A176: =LEFT($B$176,10)&TEXT($D$176,"0")&TEXT($E$176,"0000")&TEXT($F$176,"0000") -> 4480025021101100011 | B176: 4480025021 | D176: 1 | E176: 110 | F176: 11 | G176: 110-11 | H176: 대 | I176: 102 | M176: 340-1 | N176: 박승헌 | Y176: 1117011400 | Z176: 용산구 | AA176: 신창동
A177: =LEFT($B$177,10)&TEXT($D$177,"0")&TEXT($E$177,"0000")&TEXT($F$177,"0000") -> 4480025021101100017 | B177: 4480025021 | D177: 1 | E177: 110 | F177: 17 | G177: 110-17 | H177: 대 | I177: 360 | M177: 홍성군 | N177: 국 | Y177: 1117011500 | Z177: 용산구 | AA177: 산천동
A178: =LEFT($B$178,10)&TEXT($D$178,"0")&TEXT($E$178,"0000")&TEXT($F$178,"0000") -> 4480025021101100019 | B178: 4480025021 | D178: 1 | E178: 110 | F178: 19 | G178: 110-19 | H178: 도 | I178: 17 | M178: 홍성군 | N178: 국 | Y178: 1117011600 | Z178: 용산구 | AA178: 청암동
A179: =LEFT($B$179,10)&TEXT($D$179,"0")&TEXT($E$179,"0000")&TEXT($F$179,"0000") -> 4480025021101100023 | B179: 4480025021 | D179: 1 | E179: 110 | F179: 23 | G179: 110-23 | H179: 대 | I179: 17 | M179: 홍성군 | N179: 국 | Y179: 1117011700 | Z179: 용산구 | AA179: 원효로3가
A180: =LEFT($B$180,10)&TEXT($D$180,"0")&TEXT($E$180,"0000")&TEXT($F$180,"0000") -> 4480025021101100025 | B180: 4480025021 | D180: 1 | E180: 110 | F180: 25 | G180: 110-25 | H180: 대 | I180: 160 | M180: 오관리113 | N180: 강경문 | Y180: 1117011800 | Z180: 용산구 | AA180: 원효로4가
A181: =LEFT($B$181,10)&TEXT($D$181,"0")&TEXT($E$181,"0000")&TEXT($F$181,"0000") -> 4480025021101100031 | B181: 4480025021 | D181: 1 | E181: 110 | F181: 31 | G181: 110-31 | H181: 대 | I181: 40 | M181: 홍성군 | N181: 국 | Y181: 1117011900 | Z181: 용산구 | AA181: 효창동
A182: =LEFT($B$182,10)&TEXT($D$182,"0")&TEXT($E$182,"0000")&TEXT($F$182,"0000") -> 4480025021101100033 | B182: 4480025021 | D182: 1 | E182: 110 | F182: 33 | G182: 110-33 | H182: 대 | I182: 10 | M182: 충청남도천안시쌍용동1273상록수현대아파트402-105 | N182: 권영수 | Y182: 1117012000 | Z182: 용산구 | AA182: 도원동
A183: =LEFT($B$183,10)&TEXT($D$183,"0")&TEXT($E$183,"0000")&TEXT($F$183,"0000") -> 4480025021101100036 | B183: 4480025021 | D183: 1 | E183: 110 | F183: 36 | G183: 110-36 | H183: 대 | I183: 83 | M183: 충청남도천안시쌍용동1273상록수현대아파트402-105 | N183: 권영수 | Y183: 1117012100 | Z183: 용산구 | AA183: 용문동
A184: =LEFT($B$184,10)&TEXT($D$184,"0")&TEXT($E$184,"0000")&TEXT($F$184,"0000") -> 4480025021101100039 | B184: 4480025021 | D184: 1 | E184: 110 | F184: 39 | G184: 110-39 | H184: 도 | I184: 484 | M184: 홍성군 | N184: 국 | Y184: 1117012200 | Z184: 용산구 | AA184: 문배동
A185: =LEFT($B$185,10)&TEXT($D$185,"0")&TEXT($E$185,"0000")&TEXT($F$185,"0000") -> 4480025021101110001 | B185: 4480025021 | D185: 1 | E185: 111 | F185: 1 | G185: 111-1 | H185: 대 | I185: 503 | M185: 홍성군 | N185: 국 | Y185: 1117012300 | Z185: 용산구 | AA185: 신계동
A186: =LEFT($B$186,10)&TEXT($D$186,"0")&TEXT($E$186,"0000")&TEXT($F$186,"0000") -> 4480025021101110002 | B186: 4480025021 | D186: 1 | E186: 111 | F186: 2 | G186: 111-2 | H186: 도 | I186: 159 | M186: 국(기획재정부) | N186: 국 | Y186: 1117012400 | Z186: 용산구 | AA186: 한강로1가
A187: =LEFT($B$187,10)&TEXT($D$187,"0")&TEXT($E$187,"0000")&TEXT($F$187,"0000") -> 4480025021101110004 | B187: 4480025021 | D187: 1 | E187: 111 | F187: 4 | G187: 111-4 | H187: 도 | I187: 50 | M187: 홍성군 | N187: 국 | Y187: 1117012500 | Z187: 용산구 | AA187: 한강로2가
A188: =LEFT($B$188,10)&TEXT($D$188,"0")&TEXT($E$188,"0000")&TEXT($F$188,"0000") -> 4480025021101110006 | B188: 4480025021 | D188: 1 | E188: 111 | F188: 6 | G188: 111-6 | H188: 대 | I188: 60 | M188: 홍성군 | N188: 국 | Y188: 1117012600 | Z188: 용산구 | AA188: 용산동3가
A189: =LEFT($B$189,10)&TEXT($D$189,"0")&TEXT($E$189,"0000")&TEXT($F$189,"0000") -> 4480025021101110007 | B189: 4480025021 | D189: 1 | E189: 111 | F189: 7 | G189: 111-7 | H189: 도 | I189: 76 | M189: 홍성군 | N189: 국 | Y189: 1117012700 | Z189: 용산구 | AA189: 용산동5가
A190: =LEFT($B$190,10)&TEXT($D$190,"0")&TEXT($E$190,"0000")&TEXT($F$190,"0000") -> 4480025021101110008 | B190: 4480025021 | D190: 1 | E190: 111 | F190: 8 | G190: 111-8 | H190: 대 | I190: 873 | M190: 홍성군 | N190: 국 | Y190: 1117012800 | Z190: 용산구 | AA190: 한강로3가
A191: =LEFT($B$191,10)&TEXT($D$191,"0")&TEXT($E$191,"0000")&TEXT($F$191,"0000") -> 4480025021101110011 | B191: 4480025021 | D191: 1 | E191: 111 | F191: 11 | G191: 111-11 | H191: 도 | I191: 20 | M191: 홍성군 | N191: 국 | Y191: 1117012900 | Z191: 용산구 | AA191: 이촌동
A192: =LEFT($B$192,10)&TEXT($D$192,"0")&TEXT($E$192,"0000")&TEXT($F$192,"0000") -> 4480025021101120000 | B192: 4480025021 | D192: 1 | E192: 112 | F192: 0 | G192: 112 | H192: 잡 | I192: 952 | M192: 국(문화재청) | N192: 국 | Y192: 1117013000 | Z192: 용산구 | AA192: 이태원동
A193: =LEFT($B$193,10)&TEXT($D$193,"0")&TEXT($E$193,"0000")&TEXT($F$193,"0000") -> 4480025021101130002 | B193: 4480025021 | D193: 1 | E193: 113 | F193: 2 | G193: 113-2 | H193: 도 | I193: 542 | M193: 홍성군 | N193: 국 | Y193: 1117013100 | Z193: 용산구 | AA193: 한남동
A194: =LEFT($B$194,10)&TEXT($D$194,"0")&TEXT($E$194,"0000")&TEXT($F$194,"0000") -> 4480025021101130003 | B194: 4480025021 | D194: 1 | E194: 113 | F194: 3 | G194: 113-3 | H194: 대 | I194: 142 | M194: 대교리286 | N194: 박범동 | Y194: 1117013200 | Z194: 용산구 | AA194: 동빙고동
A195: =LEFT($B$195,10)&TEXT($D$195,"0")&TEXT($E$195,"0000")&TEXT($F$195,"0000") -> 4480025021101130004 | B195: 4480025021 | D195: 1 | E195: 113 | F195: 4 | G195: 113-4 | H195: 도 | I195: 50 | M195: 홍성군 | N195: 국 | Y195: 1117013300 | Z195: 용산구 | AA195: 서빙고동
A196: =LEFT($B$196,10)&TEXT($D$196,"0")&TEXT($E$196,"0000")&TEXT($F$196,"0000") -> 4480025021101130006 | B196: 4480025021 | D196: 1 | E196: 113 | F196: 6 | G196: 113-6 | H196: 도 | I196: 347 | M196: 홍성군장곡면행정리110 | N196: 하병수 | Y196: 1117013400 | Z196: 용산구 | AA196: 주성동
A197: =LEFT($B$197,10)&TEXT($D$197,"0")&TEXT($E$197,"0000")&TEXT($F$197,"0000") -> 4480025021101130013 | B197: 4480025021 | D197: 1 | E197: 113 | F197: 13 | G197: 113-13 | H197: 대 | I197: 43 | M197: 국(문화재청) | N197: 국 | Y197: 1117013500 | Z197: 용산구 | AA197: 용산동6가
A198: =LEFT($B$198,10)&TEXT($D$198,"0")&TEXT($E$198,"0000")&TEXT($F$198,"0000") -> 4480025021101130015 | B198: 4480025021 | D198: 1 | E198: 113 | F198: 15 | G198: 113-15 | H198: 도 | I198: 552 | M198: 홍성군 | N198: 국 | Y198: 1117013600 | Z198: 용산구 | AA198: 보광동
A199: =LEFT($B$199,10)&TEXT($D$199,"0")&TEXT($E$199,"0000")&TEXT($F$199,"0000") -> 4480025021101130017 | B199: 4480025021 | D199: 1 | E199: 113 | F199: 17 | G199: 113-17 | H199: 대 | I199: 278 | M199: 홍성군홍성읍오관리387 | N199: 이상홍 | Y199: 1120010100 | Z199: 성동구 | AA199: 상왕십리동
A200: =LEFT($B$200,10)&TEXT($D$200,"0")&TEXT($E$200,"0000")&TEXT($F$200,"0000") -> 4480025021101130018 | B200: 4480025021 | D200: 1 | E200: 113 | F200: 18 | G200: 113-18 | H200: 도 | I200: 440 | M200: 홍성군 | N200: 국 | Y200: 1120010200 | Z200: 성동구 | AA200: 하왕십리동
... 4300 more rows

Sheet 간지(하천)
A3: 월산천

Sheet 목차
E1: 목 차
E14: ▷ 예정지
E15: ▷ 예정지 국유지
E16: ▷ 예정지 사유지

Sheet 하천구역1열 (hidden)
A1: 월산천
A2: 구역 | B2: 시.군 | C2: 구.면 | D2: 동.리 | E2: 번지 | F2: 지목 | G2: 지적 | H2: 하천구역 | I2: 주소 | J2: 성명 | K2: 구분1 | L2: 구분2 | M2: 하천명 | N2: PNU | O2: 전필지면적(m2) | P2: 본번 | Q2: 부번
L3: 0

Sheet 하천구역국유지1열 (hidden)
A1: 월산천
A2: 구역 | B2: 시.군 | C2: 구.면 | D2: 동.리 | E2: 번지 | F2: 지목 | G2: 지적 | H2: 하천구역 | I2: 주소 | J2: 성명 | K2: 구분1 | L2: 구분2 | M2: 하천명 | N2: PNU | O2: 전필지면적(m2) | P2: 본번 | Q2: 부번
L3: 0

Sheet 하천구역사유지1열 (hidden)
A1: 월산천
A2: 구역 | B2: 시.군 | C2: 구.면 | D2: 동.리 | E2: 번지 | F2: 지목 | G2: 지적 | H2: 하천구역 | I2: 주소 | J2: 성명 | K2: 구분1 | L2: 구분2 | M2: 하천명 | N2: PNU | O2: 전필지면적(m2) | P2: 본번 | Q2: 부번
L3: 0

Sheet 간지3
A5: 예정지

Sheet 예정지 집계
A2: 월산천 예정지 집계표
A4: 하천명 | B4: 시.군 | C4: 구.면 | D4: 읍.리 | E4: 필지수(EA) | F4: 지 목 별 구 분 | AI4: 계
E5: 편입면적(m2) | F5: 천 | G5: 전 | H5: 답 | I5: 도 | J5: 대 | K5: 임 | L5: 구 | M5: 제 | N5: 잡 | O5: 장 | P5: 목 | Q5: 과 | R5: 묘 | S5: 유 | T5: 학 | U5: 철 | V5: 수 | W5: 차 | X5: 창 | Y5: 가 | Z5: 광 | AA5: 염 | AB5: 주 | AC5: 양 | AD5: 공 | AE5: 체 | AF5: 원 | AG5: 종 | AH5: 사
A6: 월산천 | B6: 홍성군 | C6: 홍성읍 | D6: 옥암리 | E6: 필지수 | G6: 1 | I6: 2 | L6: 1 | AI6: 4
E7: 편입면적 | G7: 24 | I7: 60 | L7: 6 | AI7: 90
B8: 홍성군 | C8: 홍성읍 | D8: 월산리 | E8: 필지수 | G8: 6 | H8: 5 | I8: 5 | J8: 3 | K8: 1 | L8: 2 | AI8: 22
E9: 편입면적 | G9: 187 | H9: 227 | I9: 680 | J9: 183 | K9: 262 | L9: 191 | AI9: 1730
B10: 합 계 | E10: 필지수 | G10: 7 | H10: 5 | I10: 7 | J10: 3 | K10: 1 | L10: 3 | AI10: 26
E11: 편입면적 | G11: 211 | H11: 227 | I11: 740 | J11: 183 | K11: 262 | L11: 197 | AI11: 1820

Sheet 예정지1열 (hidden)
A1: 월산천
A2: 구역 | B2: 시.군 | C2: 구.면 | D2: 동.리 | E2: 번지 | F2: 지목 | G2: 지적 | H2: 예정지 | I2: 주소 | J2: 성명 | K2: 구분1 | L2: 구분2 | M2: 하천명 | N2: PNU | O2: 전필지면적(m2) | P2: 본번 | Q2: 부번
A3: 우안 | B3: 홍성군 | C3: 홍성읍 | D3: 옥암리 | E3: 916 | F3: 도 | G3: 1365 | H3: 36 | I3: 국(건설부) | J3: 국 | K3: 국 | L3: 1 | M3: 01-02월산천 | N3: 4480025025109160000 | O3: 250 | P3: 267 | Q3: 3
A4: 우안 | B4: 홍성군 | C4: 홍성읍 | D4: 옥암리 | E4: 917 | F4: 구 | G4: 1366 | H4: 6 | I4: 국(건설부) | J4: 국 | K4: 국 | L4: 1 | M4: 01-02월산천 | N4: 4480025025109170000 | O4: 1384 | P4: 267 | Q4: 5
A5: 우안 | B5: 홍성군 | C5: 홍성읍 | D5: 옥암리 | E5: 369-1 | F5: 전 | G5: 731 | H5: 24 | I5: 충청남도홍성군홍성읍월산로43번길85-15 | J5: 조상국 | K5: 사 | L5: 1 | M5: 01-02월산천 | N5: 4480025025103690001 | O5: 740 | P5: 325 | Q5: 3
A6: 우안 | B6: 홍성군 | C6: 홍성읍 | D6: 옥암리 | E6: 916-1 | F6: 도 | G6: 83 | H6: 24 | I6: 국(건설부) | J6: 국 | K6: 국 | L6: 1 | M6: 01-02월산천 | N6: 4480025025109160001 | O6: 87 | P6: 347 | Q6: 0
A7: 우안 | B7: 홍성군 | C7: 홍성읍 | D7: 월산리 | E7: 266 | F7: 임 | G7: 542 | H7: 262 | I7: 월산리265-2 | J7: 김명호 | K7: 사 | L7: 1 | M7: 01-02월산천 | N7: 4480025024102660000 | O7: 547 | P7: 350 | Q7: 0
A8: 우안 | B8: 홍성군 | C8: 홍성읍 | D8: 월산리 | E8: 347 | F8: 답 | G8: 955 | H8: 37 | I8: 홍성군홍성읍월산리345-2 | J8: 이남순 | K8: 사 | L8: 1 | M8: 01-02월산천 | N8: 4480025024103470000 | O8: 964 | P8: 351 | Q8: 1
A9: 우안 | B9: 홍성군 | C9: 홍성읍 | D9: 월산리 | E9: 350 | F9: 대 | G9: 790 | H9: 145 | I9: 월산리351-2 | J9: 김원호 | K9: 사 | L9: 1 | M9: 01-02월산천 | N9: 4480025024103500000 | O9: 802 | P9: 359 | Q9: 1
A10: 우안 | B10: 홍성군 | C10: 홍성읍 | D10: 월산리 | E10: 362 | F10: 답 | G10: 1960 | H10: 61 | I10: 예산군고덕면석곡리105 | J10: 인정식 | K10: 사 | L10: 1 | M10: 01-02월산천 | N10: 4480025024103620000 | O10: 1963 | P10: 361 | Q10: 2
A11: 우안 | B11: 홍성군 | C11: 홍성읍 | D11: 월산리 | E11: 398 | F11: 답 | G11: 1081 | H11: 66 | I11: 홍성군 홍성읍 월산리 395 | J11: 장현갑 | K11: 사 | L11: 1 | M11: 01-02월산천 | N11: 4480025024103980000 | O11: 1069 | P11: 362 | Q11: 0
A12: 우안 | B12: 홍성군 | C12: 홍성읍 | D12: 월산리 | E12: 746 | F12: 전 | G12: 506 | H12: 50 | I12: 서울시양천구신정동311목동신시가지아파트1018-204 | J12: 최완순 | K12: 사 | L12: 1 | M12: 01-02월산천 | N12: 4480025024107460000 | O12: 504 | P12: 398 | Q12: 0
A13: 우안 | B13: 홍성군 | C13: 홍성읍 | D13: 월산리 | E13: 801 | F13: 도 | G13: 2190 | H13: 26 | I13: 국(건설교통부) | J13: 국 | K13: 국 | L13: 1 | M13: 01-02월산천 | N13: 4480025024108010000 | O13: 222 | P13: 746 | Q13: 0
A14: 우안 | B14: 홍성군 | C14: 홍성읍 | D14: 월산리 | E14: 802 | F14: 구 | G14: 17613 | H14: 171 | I14: 국(건설교통부) | J14: 국 | K14: 국 | L14: 1 | M14: 01-02월산천 | N14: 4480025024108020000 | O14: 11509 | P14: 748 | Q14: 2
A15: 우안 | B15: 홍성군 | C15: 홍성읍 | D15: 월산리 | E15: 817 | F15: 구 | G15: 73 | H15: 20 | I15: 국(건설부) | J15: 국 | K15: 국 | L15: 1 | M15: 01-02월산천 | N15: 4480025024108170000 | O15: 77 | P15: 817 | Q15: 0
A16: 좌안 | B16: 홍성군 | C16: 홍성읍 | D16: 월산리 | E16: 265-1 | F16: 대 | G16: 542 | H16: 9 | I16: 홍성군 홍성읍 월산리 415 | J16: 김명호 | K16: 사 | L16: 1 | M16: 01-02월산천 | N16: 4480025024102650001 | O16: 573 | P16: 369 | Q16: 1
A17: 좌안 | B17: 홍성군 | C17: 홍성읍 | D17: 월산리 | E17: 265-2 | F17: 전 | G17: 810 | H17: 60 | I17: 홍성군 홍성읍 월산리 415 | J17: 김명호 | K17: 사 | L17: 1 | M17: 01-02월산천 | N17: 4480025024102650002 | O17: 806 | P17: 916 | Q17: 0
A18: 좌안 | B18: 홍성군 | C18: 홍성읍 | D18: 월산리 | E18: 265-3 | F18: 전 | G18: 635 | H18: 13 | I18: 홍성군 홍성읍 월산리 415 | J18: 김명호 | K18: 사 | L18: 1 | M18: 01-02월산천 | N18: 4480025024102650003 | O18: 642 | P18: 916 | Q18: 1
A19: 좌안 | B19: 홍성군 | C19: 홍성읍 | D19: 월산리 | E19: 267-3 | F19: 답 | G19: 60 | H19: 5 | I19: 대전중구태평동551버드내마을아파트217동1502호 | J19: 이지은 | K19: 사 | L19: 1 | M19: 01-02월산천 | N19: 4480025024102670003 | O19: 62 | P19: 917 | Q19: 0
A20: 좌안 | B20: 홍성군 | C20: 홍성읍 | D20: 월산리 | E20: 267-5 | F20: 전 | G20: 722 | H20: 54 | I20: 충청남도홍성군홍성읍월산리267-2 | J20: 이학재 | K20: 사 | L20: 1 | M20: 01-02월산천 | N20: 4480025024102670005 | O20: 725 | P20: 265 | Q20: 1
A21: 좌안 | B21: 홍성군 | C21: 홍성읍 | D21: 월산리 | E21: 325-3 | F21: 도 | G21: 7997 | H21: 508 | I21: 홍성군 | J21: 국 | K21: 국 | L21: 1 | M21: 01-02월산천 | N21: 4480025024103250003 | O21: 4213 | P21: 265 | Q21: 2
A22: 좌안 | B22: 홍성군 | C22: 홍성읍 | D22: 월산리 | E22: 351-1 | F22: 대 | G22: 1290 | H22: 29 | I22: 홍성군 홍성읍 월산리 351-1 | J22: 사회복지법인좋은세상 | K22: 사 | L22: 1 | M22: 01-02월산천 | N22: 4480025024103510001 | O22: 988 | P22: 265 | Q22: 3
A23: 좌안 | B23: 홍성군 | C23: 홍성읍 | D23: 월산리 | E23: 359-1 | F23: 도 | G23: 96 | H23: 87 | I23: 홍성군 홍성읍 월산리 396 | J23: 김기웅 | K23: 사 | L23: 1 | M23: 01-02월산천 | N23: 4480025024103590001 | O23: 99 | P23: 266 | Q23: 0
A24: 좌안 | B24: 홍성군 | C24: 홍성읍 | D24: 월산리 | E24: 361-2 | F24: 답 | G24: 678 | H24: 58 | I24: 창원시가음정동391-12금성기숙사씨동401호 | J24: 조민철 | K24: 사 | L24: 1 | M24: 01-02월산천 | N24: 4480025024103610002 | O24: 685 | P24: 366 | Q24: 1
A25: 좌안 | B25: 홍성군 | C25: 홍성읍 | D25: 월산리 | E25: 366-1 | F25: 전 | G25: 998 | H25: 8 | I25: 아산시탕정면호산리67 | J25: 김종곤 | K25: 사 | L25: 1 | M25: 01-02월산천 | N25: 4480025024103660001 | O25: 657 | P25: 401 | Q25: 1
A26: 좌안 | B26: 홍성군 | C26: 홍성읍 | D26: 월산리 | E26: 401-1 | F26: 도 | G26: 97 | H26: 32 | I26: 홍성군 | J26: 국 | K26: 국 | L26: 1 | M26: 01-02월산천 | N26: 4480025024104010001 | O26: 97 | P26: 801 | Q26: 0
A27: 좌안 | B27: 홍성군 | C27: 홍성읍 | D27: 월산리 | E27: 748-2 | F27: 전 | G27: 598 | H27: 2 | I27: 서울시양천구신정동311목동신시가지아파트1018-204 | J27: 최완순 | K27: 사 | L27: 1 | M27: 01-02월산천 | N27: 4480025024107480002 | O27: 589 | P27: 801 | Q27: 1
A28: 좌안 | B28: 홍성군 | C28: 홍성읍 | D28: 월산리 | E28: 801-1 | F28: 도 | G28: 429 | H28: 27 | I28: 국(건설교통부) | J28: 국 | K28: 국 | L28: 1 | M28: 01-02월산천 | N28: 4480025024108010001 | O28: 397 | P28: 802 | Q28: 0

Sheet 예정지지번조서
A1: 구역 | B1: 토지소재지 | F1: 지목 | G1: 지적 | H1: 편입면적 | I1: 소 유 자 | L1: 구역 | M1: 토지소재지 | Q1: 지목 | R1: 지적 | S1: 편입면적 | T1: 소 유 자
B2: 시.군 | C2: 구.면 | D2: 동.리 | E2: 번.지 | I2: 주 소 | J2: 성 명 | M2: 시.군 | N2: 구.면 | O2: 동.리 | P2: 번.지 | T2: 주 소 | U2: 성 명
A3: 좌안 | B3: 홍성군 | C3: 홍성읍 | D3: 옥암리 | E3: 369-1 | F3: 전 | G3: 731 | H3: 24 | I3: 충청남도홍성군홍성읍월산로43번길85-15 | J3: 조상국 | L3: 우안 | M3: 홍성군 | N3: 홍성읍 | O3: 월산리 | P3: 267-3 | Q3: 답 | R3: 60 | S3: 5 | T3: 대전중구태평동551버드내마을아파트217동1502호 | U3: 이지은
A4: 좌안 | B4: 홍성군 | C4: 홍성읍 | D4: 옥암리 | E4: 916 | F4: 도 | G4: 1365 | H4: 36 | I4: 국(건설부) | J4: 국 | L4: 우안 | M4: 홍성군 | N4: 홍성읍 | O4: 월산리 | P4: 267-5 | Q4: 전 | R4: 722 | S4: 54 | T4: 충청남도홍성군홍성읍월산리267-2 | U4: 이학재
A5: 좌안 | B5: 홍성군 | C5: 홍성읍 | D5: 옥암리 | E5: 916-1 | F5: 도 | G5: 83 | H5: 24 | I5: 국(건설부) | J5: 국 | L5: 우안 | M5: 홍성군 | N5: 홍성읍 | O5: 월산리 | P5: 325-3 | Q5: 도 | R5: 7997 | S5: 508 | T5: 홍성군 | U5: 국
A6: 좌안 | B6: 홍성군 | C6: 홍성읍 | D6: 옥암리 | E6: 917 | F6: 구 | G6: 1366 | H6: 6 | I6: 국(건설부) | J6: 국 | L6: 우안 | M6: 홍성군 | N6: 홍성읍 | O6: 월산리 | P6: 347 | Q6: 답 | R6: 955 | S6: 37 | T6: 홍성군홍성읍월산리345-2 | U6: 이남순
A7: 좌안 | B7: 홍성군 | C7: 홍성읍 | D7: 월산리 | E7: 265-1 | F7: 대 | G7: 542 | H7: 9 | I7: 홍성군 홍성읍 월산리 415 | J7: 김명호 | L7: 우안 | M7: 홍성군 | N7: 홍성읍 | O7: 월산리 | P7: 350 | Q7: 대 | R7: 790 | S7: 145 | T7: 월산리351-2 | U7: 김원호
A8: 좌안 | B8: 홍성군 | C8: 홍성읍 | D8: 월산리 | E8: 265-2 | F8: 전 | G8: 810 | H8: 60 | I8: 홍성군 홍성읍 월산리 415 | J8: 김명호 | L8: 우안 | M8: 홍성군 | N8: 홍성읍 | O8: 월산리 | P8: 351-1 | Q8: 대 | R8: 1290 | S8: 29 | T8: 홍성군 홍성읍 월산리 351-1 | U8: 사회복지법인좋은세상
A9: 좌안 | B9: 홍성군 | C9: 홍성읍 | D9: 월산리 | E9: 265-3 | F9: 전 | G9: 635 | H9: 13 | I9: 홍성군 홍성읍 월산리 415 | J9: 김명호 | L9: 우안 | M9: 홍성군 | N9: 홍성읍 | O9: 월산리 | P9: 359-1 | Q9: 도 | R9: 96 | S9: 87 | T9: 홍성군 홍성읍 월산리 396 | U9: 김기웅
A10: 좌안 | B10: 홍성군 | C10: 홍성읍 | D10: 월산리 | E10: 266 | F10: 임 | G10: 542 | H10: 262 | I10: 월산리265-2 | J10: 김명호 | L10: 우안 | M10: 홍성군 | N10: 홍성읍 | O10: 월산리 | P10: 361-2 | Q10: 답 | R10: 678 | S10: 58 | T10: 창원시가음정동391-12금성기숙사씨동401호 | U10: 조민철
A11: 좌안 | B11: 홍성군 | C11: 홍성읍 | D11: 월산리 | E11: 366-1 | F11: 전 | G11: 998 | H11: 8 | I11: 아산시탕정면호산리67 | J11: 김종곤 | L11: 우안 | M11: 홍성군 | N11: 홍성읍 | O11: 월산리 | P11: 362 | Q11: 답 | R11: 1960 | S11: 61 | T11: 예산군고덕면석곡리105 | U11: 인정식
A12: 좌안 | B12: 홍성군 | C12: 홍성읍 | D12: 월산리 | E12: 401-1 | F12: 도 | G12: 97 | H12: 32 | I12: 홍성군 | J12: 국 | L12: 우안 | M12: 홍성군 | N12: 홍성읍 | O12: 월산리 | P12: 398 | Q12: 답 | R12: 1081 | S12: 66 | T12: 홍성군 홍성읍 월산리 395 | U12: 장현갑
A13: 좌안 | B13: 홍성군 | C13: 홍성읍 | D13: 월산리 | E13: 801 | F13: 도 | G13: 2190 | H13: 26 | I13: 국(건설교통부) | J13: 국 | L13: 우안 | M13: 홍성군 | N13: 홍성읍 | O13: 월산리 | P13: 746 | Q13: 전 | R13: 506 | S13: 50 | T13: 서울시양천구신정동311목동신시가지아파트1018-204 | U13: 최완순
A14: 좌안 | B14: 홍성군 | C14: 홍성읍 | D14: 월산리 | E14: 801-1 | F14: 도 | G14: 429 | H14: 27 | I14: 국(건설교통부) | J14: 국 | L14: 우안 | M14: 홍성군 | N14: 홍성읍 | O14: 월산리 | P14: 748-2 | Q14: 전 | R14: 598 | S14: 2 | T14: 서울시양천구신정동311목동신시가지아파트1018-204 | U14: 최완순
A15: 좌안 | B15: 홍성군 | C15: 홍성읍 | D15: 월산리 | E15: 802 | F15: 구 | G15: 17613 | H15: 171 | I15: 국(건설교통부) | J15: 국 | L15: 우안 | M15: 홍성군 | N15: 홍성읍 | O15: 월산리 | P15: 817 | Q15: 구 | R15: 73 | S15: 20 | T15: 국(건설부) | U15: 국

Sheet 간지4
A5: 예정지 국유지

Sheet 예정지 국유지 집계
A2: 월산천 예정지 국유지 집계표
A4: 하천명 | B4: 시.군 | C4: 구.면 | D4: 읍.리 | E4: 필지수(EA) | F4: 지 목 별 구 분 | AI4: 계
E5: 편입면적(m2) | F5: 천 | G5: 전 | H5: 답 | I5: 도 | J5: 대 | K5: 임 | L5: 구 | M5: 제 | N5: 잡 | O5: 장 | P5: 목 | Q5: 과 | R5: 묘 | S5: 유 | T5: 학 | U5: 철 | V5: 수 | W5: 차 | X5: 창 | Y5: 가 | Z5: 광 | AA5: 염 | AB5: 주 | AC5: 양 | AD5: 공 | AE5: 체 | AF5: 원 | AG5: 종 | AH5: 사
A6: 월산천 | B6: 홍성군 | C6: 홍성읍 | D6: 옥암리 | E6: 필지수 | I6: 2 | L6: 1 | AI6: 3
E7: 편입면적 | I7: 60 | L7: 6 | AI7: 66
B8: 홍성군 | C8: 홍성읍 | D8: 월산리 | E8: 필지수 | I8: 4 | L8: 2 | AI8: 6
E9: 편입면적 | I9: 593 | L9: 191 | AI9: 784
B10: 합 계 | E10: 필지수 | I10: 6 | L10: 3 | AI10: 9
E11: 편입면적 | I11: 653 | L11: 197 | AI11: 850

Sheet 예정지국유지1열 (hidden)
A1: 월산천
A2: 구역 | B2: 시.군 | C2: 구.면 | D2: 동.리 | E2: 번지 | F2: 지목 | G2: 지적 | H2: 예정지 | I2: 주소 | J2: 성명 | K2: 구분1 | L2: 구분2 | M2: 하천명 | N2: PNU | O2: 전필지면적(m2) | P2: 본번 | Q2: 부번
A3: 우안 | B3: 홍성군 | C3: 홍성읍 | D3: 옥암리 | E3: 916 | F3: 도 | G3: 1365 | H3: 36 | I3: 국(건설부) | J3: 국 | K3: 국 | L3: 1 | M3: 01-02월산천 | N3: 4480025025109160000 | O3: 250 | P3: 325 | Q3: 3
A4: 우안 | B4: 홍성군 | C4: 홍성읍 | D4: 옥암리 | E4: 917 | F4: 구 | G4: 1366 | H4: 6 | I4: 국(건설부) | J4: 국 | K4: 국 | L4: 1 | M4: 01-02월산천 | N4: 4480025025109170000 | O4: 1384 | P4: 817 | Q4: 0
A5: 좌안 | B5: 홍성군 | C5: 홍성읍 | D5: 옥암리 | E5: 916-1 | F5: 도 | G5: 83 | H5: 24 | I5: 국(건설부) | J5: 국 | K5: 국 | L5: 1 | M5: 01-02월산천 | N5: 4480025025109160001 | O5: 87 | P5: 916 | Q5: 0
A6: 좌안 | B6: 홍성군 | C6: 홍성읍 | D6: 월산리 | E6: 801 | F6: 도 | G6: 2190 | H6: 26 | I6: 국(건설교통부) | J6: 국 | K6: 국 | L6: 1 | M6: 01-02월산천 | N6: 4480025024108010000 | O6: 222 | P6: 916 | Q6: 1
A7: 좌안 | B7: 홍성군 | C7: 홍성읍 | D7: 월산리 | E7: 802 | F7: 구 | G7: 17613 | H7: 171 | I7: 국(건설교통부) | J7: 국 | K7: 국 | L7: 1 | M7: 01-02월산천 | N7: 4480025024108020000 | O7: 11509 | P7: 917 | Q7: 0
A8: 좌안 | B8: 홍성군 | C8: 홍성읍 | D8: 월산리 | E8: 817 | F8: 구 | G8: 73 | H8: 20 | I8: 국(건설부) | J8: 국 | K8: 국 | L8: 1 | M8: 01-02월산천 | N8: 4480025024108170000 | O8: 77 | P8: 401 | Q8: 1
A9: 좌안 | B9: 홍성군 | C9: 홍성읍 | D9: 월산리 | E9: 325-3 | F9: 도 | G9: 7997 | H9: 508 | I9: 홍성군 | J9: 국 | K9: 국 | L9: 1 | M9: 01-02월산천 | N9: 4480025024103250003 | O9: 4213 | P9: 801 | Q9: 0
A10: 좌안 | B10: 홍성군 | C10: 홍성읍 | D10: 월산리 | E10: 401-1 | F10: 도 | G10: 97 | H10: 32 | I10: 홍성군 | J10: 국 | K10: 국 | L10: 1 | M10: 01-02월산천 | N10: 4480025024104010001 | O10: 97 | P10: 801 | Q10: 1
A11: 좌안 | B11: 홍성군 | C11: 홍성읍 | D11: 월산리 | E11: 801-1 | F11: 도 | G11: 429 | H11: 27 | I11: 국(건설교통부) | J11: 국 | K11: 국 | L11: 1 | M11: 01-02월산천 | N11: 4480025024108010001 | O11: 397 | P11: 802 | Q11: 0

Sheet 예정지국유지지번조서
A1: 구역 | B1: 토지소재지 | F1: 지목 | G1: 지적 | H1: 편입면적 | I1: 소 유 자 | L1: 구역 | M1: 토지소재지 | Q1: 지목 | R1: 지적 | S1: 편입면적 | T1: 소 유 자
B2: 시.군 | C2: 구.면 | D2: 동.리 | E2: 번.지 | I2: 주 소 | J2: 성 명 | M2: 시.군 | N2: 구.면 | O2: 동.리 | P2: 번.지 | T2: 주 소 | U2: 성 명
A3: 좌안 | B3: 홍성군 | C3: 홍성읍 | D3: 옥암리 | E3: 916 | F3: 도 | G3: 1365 | H3: 36 | I3: 국(건설부) | J3: 국 | L3: 우안 | M3: 홍성군 | N3: 홍성읍 | O3: 월산리 | P3: 325-3 | Q3: 도 | R3: 7997 | S3: 508 | T3: 홍성군 | U3: 국
A4: 좌안 | B4: 홍성군 | C4: 홍성읍 | D4: 옥암리 | E4: 916-1 | F4: 도 | G4: 83 | H4: 24 | I4: 국(건설부) | J4: 국 | L4: 우안 | M4: 홍성군 | N4: 홍성읍 | O4: 월산리 | P4: 817 | Q4: 구 | R4: 73 | S4: 20 | T4: 국(건설부) | U4: 국
A5: 좌안 | B5: 홍성군 | C5: 홍성읍 | D5: 옥암리 | E5: 917 | F5: 구 | G5: 1366 | H5: 6 | I5: 국(건설부) | J5: 국
A6: 좌안 | B6: 홍성군 | C6: 홍성읍 | D6: 월산리 | E6: 401-1 | F6: 도 | G6: 97 | H6: 32 | I6: 홍성군 | J6: 국
A7: 좌안 | B7: 홍성군 | C7: 홍성읍 | D7: 월산리 | E7: 801 | F7: 도 | G7: 2190 | H7: 26 | I7: 국(건설교통부) | J7: 국
A8: 좌안 | B8: 홍성군 | C8: 홍성읍 | D8: 월산리 | E8: 801-1 | F8: 도 | G8: 429 | H8: 27 | I8: 국(건설교통부) | J8: 국
A9: 좌안 | B9: 홍성군 | C9: 홍성읍 | D9: 월산리 | E9: 802 | F9: 구 | G9: 17613 | H9: 171 | I9: 국(건설교통부) | J9: 국

Sheet 간지5
A5: 예정지 사유지

Sheet 예정지 사유지 집계
A2: 월산천 예정지 사유지 집계표
A4: 하천명 | B4: 시.군 | C4: 구.면 | D4: 읍.리 | E4: 필지수(EA) | F4: 지 목 별 구 분 | AI4: 계
E5: 편입면적(m2) | F5: 천 | G5: 전 | H5: 답 | I5: 도 | J5: 대 | K5: 임 | L5: 구 | M5: 제 | N5: 잡 | O5: 장 | P5: 목 | Q5: 과 | R5: 묘 | S5: 유 | T5: 학 | U5: 철 | V5: 수 | W5: 차 | X5: 창 | Y5: 가 | Z5: 광 | AA5: 염 | AB5: 주 | AC5: 양 | AD5: 공 | AE5: 체 | AF5: 원 | AG5: 종 | AH5: 사
A6: 월산천 | B6: 홍성군 | C6: 홍성읍 | D6: 옥암리 | E6: 필지수 | G6: 1 | AI6: 1
E7: 편입면적 | G7: 24 | AI7: 24
B8: 홍성군 | C8: 홍성읍 | D8: 월산리 | E8: 필지수 | G8: 6 | H8: 5 | I8: 1 | J8: 3 | K8: 1 | AI8: 16
E9: 편입면적 | G9: 187 | H9: 227 | I9: 87 | J9: 183 | K9: 262 | AI9: 946
B10: 합 계 | E10: 필지수 | G10: 7 | H10: 5 | I10: 1 | J10: 3 | K10: 1 | AI10: 17
E11: 편입면적 | G11: 211 | H11: 227 | I11: 87 | J11: 183 | K11: 262 | AI11: 970

Sheet 예정지사유지1열 (hidden)
A1: 월산천
A2: 구역 | B2: 시.군 | C2: 구.면 | D2: 동.리 | E2: 번지 | F2: 지목 | G2: 지적 | H2: 예정지 | I2: 주소 | J2: 성명 | K2: 구분1 | L2: 구분2 | M2: 하천명 | N2: PNU | O2: 전필지면적(m2) | P2: 본번 | Q2: 부번
A3: 우안 | B3: 홍성군 | C3: 홍성읍 | D3: 옥암리 | E3: 369-1 | F3: 전 | G3: 731 | H3: 24 | I3: 충청남도홍성군홍성읍월산로43번길85-15 | J3: 조상국 | K3: 사 | L3: 1 | M3: 01-02월산천 | N3: 4480025025103690001 | O3: 740 | P3: 267 | Q3: 3
A4: 우안 | B4: 홍성군 | C4: 홍성읍 | D4: 월산리 | E4: 266 | F4: 임 | G4: 542 | H4: 262 | I4: 월산리265-2 | J4: 김명호 | K4: 사 | L4: 1 | M4: 01-02월산천 | N4: 4480025024102660000 | O4: 547 | P4: 267 | Q4: 5
A5: 우안 | B5: 홍성군 | C5: 홍성읍 | D5: 월산리 | E5: 347 | F5: 답 | G5: 955 | H5: 37 | I5: 홍성군홍성읍월산리345-2 | J5: 이남순 | K5: 사 | L5: 1 | M5: 01-02월산천 | N5: 4480025024103470000 | O5: 964 | P5: 347 | Q5: 0
A6: 우안 | B6: 홍성군 | C6: 홍성읍 | D6: 월산리 | E6: 350 | F6: 대 | G6: 790 | H6: 145 | I6: 월산리351-2 | J6: 김원호 | K6: 사 | L6: 1 | M6: 01-02월산천 | N6: 4480025024103500000 | O6: 802 | P6: 350 | Q6: 0
A7: 우안 | B7: 홍성군 | C7: 홍성읍 | D7: 월산리 | E7: 362 | F7: 답 | G7: 1960 | H7: 61 | I7: 예산군고덕면석곡리105 | J7: 인정식 | K7: 사 | L7: 1 | M7: 01-02월산천 | N7: 4480025024103620000 | O7: 1963 | P7: 351 | Q7: 1
A8: 우안 | B8: 홍성군 | C8: 홍성읍 | D8: 월산리 | E8: 398 | F8: 답 | G8: 1081 | H8: 66 | I8: 홍성군 홍성읍 월산리 395 | J8: 장현갑 | K8: 사 | L8: 1 | M8: 01-02월산천 | N8: 4480025024103980000 | O8: 1069 | P8: 359 | Q8: 1
A9: 우안 | B9: 홍성군 | C9: 홍성읍 | D9: 월산리 | E9: 746 | F9: 전 | G9: 506 | H9: 50 | I9: 서울시양천구신정동311목동신시가지아파트1018-204 | J9: 최완순 | K9: 사 | L9: 1 | M9: 01-02월산천 | N9: 4480025024107460000 | O9: 504 | P9: 361 | Q9: 2
A10: 우안 | B10: 홍성군 | C10: 홍성읍 | D10: 월산리 | E10: 265-1 | F10: 대 | G10: 542 | H10: 9 | I10: 홍성군 홍성읍 월산리 415 | J10: 김명호 | K10: 사 | L10: 1 | M10: 01-02월산천 | N10: 4480025024102650001 | O10: 573 | P10: 362 | Q10: 0
A11: 우안 | B11: 홍성군 | C11: 홍성읍 | D11: 월산리 | E11: 265-2 | F11: 전 | G11: 810 | H11: 60 | I11: 홍성군 홍성읍 월산리 415 | J11: 김명호 | K11: 사 | L11: 1 | M11: 01-02월산천 | N11: 4480025024102650002 | O11: 806 | P11: 398 | Q11: 0
A12: 우안 | B12: 홍성군 | C12: 홍성읍 | D12: 월산리 | E12: 265-3 | F12: 전 | G12: 635 | H12: 13 | I12: 홍성군 홍성읍 월산리 415 | J12: 김명호 | K12: 사 | L12: 1 | M12: 01-02월산천 | N12: 4480025024102650003 | O12: 642 | P12: 746 | Q12: 0
A13: 우안 | B13: 홍성군 | C13: 홍성읍 | D13: 월산리 | E13: 267-3 | F13: 답 | G13: 60 | H13: 5 | I13: 대전중구태평동551버드내마을아파트217동1502호 | J13: 이지은 | K13: 사 | L13: 1 | M13: 01-02월산천 | N13: 4480025024102670003 | O13: 62 | P13: 748 | Q13: 2
A14: 좌안 | B14: 홍성군 | C14: 홍성읍 | D14: 월산리 | E14: 267-5 | F14: 전 | G14: 722 | H14: 54 | I14: 충청남도홍성군홍성읍월산리267-2 | J14: 이학재 | K14: 사 | L14: 1 | M14: 01-02월산천 | N14: 4480025024102670005 | O14: 725 | P14: 369 | Q14: 1
A15: 좌안 | B15: 홍성군 | C15: 홍성읍 | D15: 월산리 | E15: 351-1 | F15: 대 | G15: 1290 | H15: 29 | I15: 홍성군 홍성읍 월산리 351-1 | J15: 사회복지법인좋은세상 | K15: 사 | L15: 1 | M15: 01-02월산천 | N15: 4480025024103510001 | O15: 988 | P15: 265 | Q15: 1
A16: 좌안 | B16: 홍성군 | C16: 홍성읍 | D16: 월산리 | E16: 359-1 | F16: 도 | G16: 96 | H16: 87 | I16: 홍성군 홍성읍 월산리 396 | J16: 김기웅 | K16: 사 | L16: 1 | M16: 01-02월산천 | N16: 4480025024103590001 | O16: 99 | P16: 265 | Q16: 2
A17: 좌안 | B17: 홍성군 | C17: 홍성읍 | D17: 월산리 | E17: 361-2 | F17: 답 | G17: 678 | H17: 58 | I17: 창원시가음정동391-12금성기숙사씨동401호 | J17: 조민철 | K17: 사 | L17: 1 | M17: 01-02월산천 | N17: 4480025024103610002 | O17: 685 | P17: 265 | Q17: 3
A18: 좌안 | B18: 홍성군 | C18: 홍성읍 | D18: 월산리 | E18: 366-1 | F18: 전 | G18: 998 | H18: 8 | I18: 아산시탕정면호산리67 | J18: 김종곤 | K18: 사 | L18: 1 | M18: 01-02월산천 | N18: 4480025024103660001 | O18: 657 | P18: 266 | Q18: 0
A19: 좌안 | B19: 홍성군 | C19: 홍성읍 | D19: 월산리 | E19: 748-2 | F19: 전 | G19: 598 | H19: 2 | I19: 서울시양천구신정동311목동신시가지아파트1018-204 | J19: 최완순 | K19: 사 | L19: 1 | M19: 01-02월산천 | N19: 4480025024107480002 | O19: 589 | P19: 366 | Q19: 1

Sheet 예정지사유지지번조서
A1: 구역 | B1: 토지소재지 | F1: 지목 | G1: 지적 | H1: 편입면적 | I1: 소 유 자 | L1: 구역 | M1: 토지소재지 | Q1: 지목 | R1: 지적 | S1: 편입면적 | T1: 소 유 자
B2: 시.군 | C2: 구.면 | D2: 동.리 | E2: 번.지 | I2: 주 소 | J2: 성 명 | M2: 시.군 | N2: 구.면 | O2: 동.리 | P2: 번.지 | T2: 주 소 | U2: 성 명
A3: 좌안 | B3: 홍성군 | C3: 홍성읍 | D3: 옥암리 | E3: 369-1 | F3: 전 | G3: 731 | H3: 24 | I3: 충청남도홍성군홍성읍월산로43번길85-15 | J3: 조상국 | L3: 우안 | M3: 홍성군 | N3: 홍성읍 | O3: 월산리 | P3: 267-3 | Q3: 답 | R3: 60 | S3: 5 | T3: 대전중구태평동551버드내마을아파트217동1502호 | U3: 이지은
A4: 좌안 | B4: 홍성군 | C4: 홍성읍 | D4: 월산리 | E4: 265-1 | F4: 대 | G4: 542 | H4: 9 | I4: 홍성군 홍성읍 월산리 415 | J4: 김명호 | L4: 우안 | M4: 홍성군 | N4: 홍성읍 | O4: 월산리 | P4: 267-5 | Q4: 전 | R4: 722 | S4: 54 | T4: 충청남도홍성군홍성읍월산리267-2 | U4: 이학재
A5: 좌안 | B5: 홍성군 | C5: 홍성읍 | D5: 월산리 | E5: 265-2 | F5: 전 | G5: 810 | H5: 60 | I5: 홍성군 홍성읍 월산리 415 | J5: 김명호 | L5: 우안 | M5: 홍성군 | N5: 홍성읍 | O5: 월산리 | P5: 347 | Q5: 답 | R5: 955 | S5: 37 | T5: 홍성군홍성읍월산리345-2 | U5: 이남순
A6: 좌안 | B6: 홍성군 | C6: 홍성읍 | D6: 월산리 | E6: 265-3 | F6: 전 | G6: 635 | H6: 13 | I6: 홍성군 홍성읍 월산리 415 | J6: 김명호 | L6: 우안 | M6: 홍성군 | N6: 홍성읍 | O6: 월산리 | P6: 350 | Q6: 대 | R6: 790 | S6: 145 | T6: 월산리351-2 | U6: 김원호
A7: 좌안 | B7: 홍성군 | C7: 홍성읍 | D7: 월산리 | E7: 266 | F7: 임 | G7: 542 | H7: 262 | I7: 월산리265-2 | J7: 김명호 | L7: 우안 | M7: 홍성군 | N7: 홍성읍 | O7: 월산리 | P7: 351-1 | Q7: 대 | R7: 1290 | S7: 29 | T7: 홍성군 홍성읍 월산리 351-1 | U7: 사회복지법인좋은세상
A8: 좌안 | B8: 홍성군 | C8: 홍성읍 | D8: 월산리 | E8: 366-1 | F8: 전 | G8: 998 | H8: 8 | I8: 아산시탕정면호산리67 | J8: 김종곤 | L8: 우안 | M8: 홍성군 | N8: 홍성읍 | O8: 월산리 | P8: 359-1 | Q8: 도 | R8: 96 | S8: 87 | T8: 홍성군 홍성읍 월산리 396 | U8: 김기웅
L9: 우안 | M9: 홍성군 | N9: 홍성읍 | O9: 월산리 | P9: 361-2 | Q9: 답 | R9: 678 | S9: 58 | T9: 창원시가음정동391-12금성기숙사씨동401호 | U9: 조민철
L10: 우안 | M10: 홍성군 | N10: 홍성읍 | O10: 월산리 | P10: 362 | Q10: 답 | R10: 1960 | S10: 61 | T10: 예산군고덕면석곡리105 | U10: 인정식
L11: 우안 | M11: 홍성군 | N11: 홍성읍 | O11: 월산리 | P11: 398 | Q11: 답 | R11: 1081 | S11: 66 | T11: 홍성군 홍성읍 월산리 395 | U11: 장현갑
L12: 우안 | M12: 홍성군 | N12: 홍성읍 | O12: 월산리 | P12: 746 | Q12: 전 | R12: 506 | S12: 50 | T12: 서울시양천구신정동311목동신시가지아파트1018-204 | U12: 최완순
L13: 우안 | M13: 홍성군 | N13: 홍성읍 | O13: 월산리 | P13: 748-2 | Q13: 전 | R13: 598 | S13: 2 | T13: 서울시양천구신정동311목동신시가지아파트1018-204 | U13: 최완순

Sheet 기존폐천1열 (hidden)
A1: 월산천
A2: 구역 | B2: 시.군 | C2: 구.면 | D2: 동.리 | E2: 번지 | F2: 지목 | G2: 지적 | H2: 폐천구역 | I2: 주소 | J2: 성명 | K2: 구분1 | L2: 구분2 | M2: 하천명 | N2: PNU | O2: 전필지면적(m2) | P2: 본번 | Q2: 부번
L3: 0

Sheet 홍수관리구역1열 (hidden)
A1: 월산천
A2: 구역 | B2: 시.군 | C2: 구.면 | D2: 동.리 | E2: 번지 | F2: 지목 | G2: 지적 | H2: 홍수관리구역 | I2: 주소 | J2: 성명 | K2: 구분1 | L2: 구분2 | M2: 하천명 | N2: PNU | O2: 전필지면적(m2) | P2: 본번 | Q2: 부번
K3: 사 | L3: 0
